Workbook

Sheet Home
B2: Valid 01/01/2024
B3: 2024 Digital Price Book
B6: Article Number
B8: Article No. | D8: Article description | G8: Product range | J8: List Price | M8: Price group | P8: Full Price List
B9: =IFERROR(VLOOKUP(D6,'Wilo Price List'!B:H,1,FALSE),"") ->  | D9: =IFERROR(VLOOKUP(D6,'Wilo Price List'!B:H,2,FALSE),"") ->  | G9: =IFERROR(VLOOKUP(D6,'Wilo Price List'!B:H,4,FALSE),"") ->  | J9: =IFERROR(VLOOKUP(D6,'Wilo Price List'!B:H,5,FALSE),"") ->  | M9: =IFERROR(VLOOKUP(D6,'Wilo Price List'!B:H,6,FALSE),"") -> 
B13: Glandless Pumps | L13: Boosting
B16: Pico | E16: Top Z | H16: SB | L16: ISAR Sce | P16: Booster + Tank
B20: Yonos Maxo | E20: Yonos Maxo D | H20: Yonos Maxo Z | L20: SIBOOST SMART | P20: ISAR Boost 5
B24: Stratos Maxo / R7 | E24: Stratos Maxo D / R7 | H24: Stratos Maxo Z
B28: Glanded Fixed Speed Pumps | L28: Pressurisation System
B31: IL | E31: IPL | L31: Comfort Pressurisation
B35: DL | E35: DPL | L35: Vessel
B39: Glanded VSD Pumps
B42: Yonos Giga I 2.0 | E42: Stratos Giga I 2.0
B46: Yonos Giga D 2.0 | E46: Stratos Giga D 2.0
B50: THIS PRICE LIST IS CORRECT AT TIME OF PRINT AND SUBJECT TO CHANGE

Sheet Home RES (hidden)
A1: Valid 01/01/2023
B2: 2023 Digital Price Book
B5: Article Number
B7: Article No. | D7: Article description | G7: Product range | J7: List Price | M7: Price group | P7: Full Price List
B8: =IFERROR(VLOOKUP(D5,'Wilo Price List'!B:H,1,FALSE),"") ->  | D8: =IFERROR(VLOOKUP(D5,'Wilo Price List'!B:H,2,FALSE),"") ->  | G8: =IFERROR(VLOOKUP(D5,'Wilo Price List'!B:H,4,FALSE),"") ->  | J8: =IFERROR(VLOOKUP(D5,'Wilo Price List'!B:H,5,FALSE),"") ->  | M8: =IFERROR(VLOOKUP(D5,'Wilo Price List'!B:H,6,FALSE),"") -> 
B12: Glandless Pumps | L12: Boosting
B15: Pico | E15: Top Z | H15: SB | L15: ISAR Sce
B19: Yonos Maxo | E19: Yonos Maxo D | H19: Yonos Maxo Z | L19: SIBOOST SMART
B23: Stratos Maxo / R7 | E23: Stratos Maxo D / R7 | H23: Stratos Maxo Z | L23: Booster + Tank
B27: Glanded Fixed Speed Pumps | L27: Pressurisation System
B30: IL | E30: IPL | L30: Comfort Pressurisation
B34: DL | E34: DPL | L34: Vessel
B38: Glanded VSD Pumps
B41: IL-E | E41: IP-E | H41: Yonos Giga2.0
B45: DL-E | E45: DP-E | H45: Yonos Giga D 2.0

Sheet Picos
B2: Pico | I2: Home
B5: Article No. (or variant) | C5: Article description | D5: Type (Pump / Accessory / Spare Part / Addon / Service) | E5: Product range | F5: List Price | G5: Price group | I5: Article No. (or variant) | J5: Article description | K5: Type | L5: Product range | M5: List Price | N5: Price group
B6: Yonos Pico | I6: Yonos Pico
B7: 4215511 | C7: YONOS PICO 15/1-4-(ROW) | D7: 1 Pump | E7: Yonos PICO | F7: =VLOOKUP(B7,'Wilo Price List'!B:H,5,FALSE) -> £155 | G7: PG01 | I7: 4255410 | J7: Yonos PICO-Z 15/0.5-4 130 | K7: 1 Pump | L7: Yonos PICO | M7: =VLOOKUP(I7,'[1]Wilo Price List'!A:G,5,FALSE) -> £273 | N7: PG01
B8: 4215512 | C8: YONOS PICO 15/1-6-(ROW) | D8: 1 Pump | E8: Yonos PICO | F8: =VLOOKUP(B8,'Wilo Price List'!B:H,5,FALSE) -> £157 | G8: PG01 | I8: 4255411 | J8: Yonos PICO-Z 15/0.5-4 140 | K8: 1 Pump | L8: Yonos PICO | M8: =VLOOKUP(I8,'[1]Wilo Price List'!A:G,5,FALSE) -> £276 | N8: PG01
B10: 4215513 | C10: YONOS PICO 25/1-4-(ROW) | D10: 1 Pump | E10: Yonos PICO | F10: =VLOOKUP(B10,'Wilo Price List'!B:H,5,FALSE) -> £371 | G10: PG01 | I10: 4255412 | J10: Yonos PICO-Z 20/0.5-4 150 | K10: 1 Pump | L10: Yonos PICO | M10: =VLOOKUP(I10,'[1]Wilo Price List'!A:G,5,FALSE) -> £276 | N10: PG01
B11: 4215514 | C11: YONOS PICO 25/1-4-130-(ROW) | D11: 1 Pump | E11: Yonos PICO | F11: =VLOOKUP(B11,'Wilo Price List'!B:H,5,FALSE) -> £517 | G11: PG01 | I11: 4255413 | J11: Yonos PICO-Z 20/0.5-6 150 | K11: 1 Pump | L11: Yonos PICO | M11: =VLOOKUP(I11,'[1]Wilo Price List'!A:G,5,FALSE) -> £277 | N11: PG01
B12: 4215522 | C12: YONOS PICO 25/1-5-130-(ROW) | D12: 1 Pump | E12: Yonos PICO | F12: =VLOOKUP(B12,'Wilo Price List'!B:H,5,FALSE) -> £180 | G12: PG01 | I12: 4255414 | J12: Yonos PICO-Z 20/0.5-8 150 | K12: 1 Pump | M12: £264 | N12: PG01
B13: 4215515 | C13: YONOS PICO 25/1-6-(ROW) | D13: 1 Pump | E13: Yonos PICO | F13: =VLOOKUP(B13,'Wilo Price List'!B:H,5,FALSE) -> £272 | G13: PG01
B14: 4215516 | C14: YONOS PICO 25/1-6-130-(ROW) | D14: 1 Pump | E14: Yonos PICO | F14: =VLOOKUP(B14,'Wilo Price List'!B:H,5,FALSE) -> £195 | G14: PG01 | I14: 4255416 | J14: Yonos PICO-Z 25/0.5-6 130 | K14: 1 Pump | L14: Yonos PICO | M14: £264 | N14: PG01
B15: 4215517 | C15: YONOS PICO 25/1-8-(ROW) | D15: 1 Pump | E15: Yonos PICO | F15: =VLOOKUP(B15,'Wilo Price List'!B:H,5,FALSE) -> £242 | G15: PG01 | I15: 4255417 | J15: Yonos PICO-Z 25/0.5-4 180 | K15: 1 Pump | L15: Yonos PICO | M15: =VLOOKUP(I15,'[1]Wilo Price List'!A:G,5,FALSE) -> £273 | N15: PG01
B16: 4215518 | C16: YONOS PICO 25/1-8-130-(ROW) | D16: 1 Pump | E16: Yonos PICO | F16: =VLOOKUP(B16,'Wilo Price List'!B:H,5,FALSE) -> £224 | G16: PG01 | I16: 4255418 | J16: Yonos PICO-Z 25/0.5-6 180 | K16: 1 Pump | L16: Yonos PICO | M16: =VLOOKUP(I16,'[1]Wilo Price List'!A:G,5,FALSE) -> £274 | N16: PG01
I17: Stratos
B18: 4215519 | C18: YONOS PICO 30/1-4-(ROW) | D18: 1 Pump | E18: Yonos PICO | F18: =VLOOKUP(B18,'Wilo Price List'!B:H,5,FALSE) -> £444 | G18: PG01 | I18: 4255430 | J18: Stratos PICO-Z 20/0.5-4 | K18: 1 Pump | L18: Stratos PICO | M18: =VLOOKUP(I18,'[1]Wilo Price List'!A:G,5,FALSE) -> £498 | N18: PG01
B19: 4215520 | C19: YONOS PICO 30/1-6-(ROW) | D19: 1 Pump | E19: Yonos PICO | F19: =VLOOKUP(B19,'Wilo Price List'!B:H,5,FALSE) -> £511 | G19: PG01 | I19: 4255431 | J19: Stratos PICO-Z 20/0.5-6 | K19: 1 Pump | L19: Stratos PICO | M19: =VLOOKUP(I19,'[1]Wilo Price List'!A:G,5,FALSE) -> £499 | N19: PG01
B20: 4215521 | C20: YONOS PICO 30/1-8-(ROW) | D20: 1 Pump | E20: Yonos PICO | F20: =VLOOKUP(B20,'Wilo Price List'!B:H,5,FALSE) -> £579 | G20: PG01 | I20: 4255432 | J20: Stratos PICO-Z 20/0.5-8 | K20: 1 Pump | L20: Stratos PICO | M20: =VLOOKUP(I20,'[1]Wilo Price List'!A:G,5,FALSE) -> £545 | N20: PG01
B21: 4224817 | C21: YONOS PICO 40/1-8 (ROW) | D21: 1 Pump | E21: Yonos PICO | F21: =VLOOKUP(B21,'Wilo Price List'!B:H,5,FALSE) -> £765 | G21: PG01
I22: 4255433 | J22: Stratos PICO-Z 25/0.5-4 | K22: 1 Pump | L22: Stratos PICO | M22: =VLOOKUP(I22,'[1]Wilo Price List'!A:G,5,FALSE) -> £503 | N22: PG01
B23: 4230948 | C23: Yonos PICO-D 30/1-6 | D23: 1 Pump | E23: Yonos PICO | F23: =VLOOKUP(B23,'Wilo Price List'!B:H,5,FALSE) -> £1,174 | G23: PG01 | I23: 4255434 | J23: Stratos PICO-Z 25/0.5-6 | K23: 1 Pump | L23: Stratos PICO | M23: =VLOOKUP(I23,'[1]Wilo Price List'!A:G,5,FALSE) -> £504 | N23: PG01
B24: 4230949 | C24: Yonos PICO-D 30/1-8 | D24: 1 Pump | E24: Yonos PICO | F24: =VLOOKUP(B24,'Wilo Price List'!B:H,5,FALSE) -> £1,376 | G24: PG01 | I24: 4255435 | J24: Stratos PICO-Z 25/0.5-8 | K24: 1 Pump | L24: Stratos PICO | M24: =VLOOKUP(I24,'[1]Wilo Price List'!A:G,5,FALSE) -> £550 | N24: PG01
B25: Stratos Pico
B26: 4244390 | C26: Stratos PICO 15/0,5-4 | D26: 1 Pump | E26: Stratos PICO | F26: =VLOOKUP(B26,'Wilo Price List'!B:H,5,FALSE) -> £403 | G26: PG01
B27: 4244391 | C27: Stratos PICO 15/0,5-6 | D27: 1 Pump | E27: Stratos PICO | F27: =VLOOKUP(B27,'Wilo Price List'!B:H,5,FALSE) -> £410 | G27: PG01
B28: 4244392 | C28: Stratos PICO 15/0,5-8 | D28: 1 Pump | E28: Stratos PICO | F28: =VLOOKUP(B28,'Wilo Price List'!B:H,5,FALSE) -> £430 | G28: PG01
B30: 4244393 | C30: Stratos PICO 25/0,5-4 | D30: 1 Pump | E30: Stratos PICO | F30: =VLOOKUP(B30,'Wilo Price List'!B:H,5,FALSE) -> £422 | G30: PG01
B31: 4244394 | C31: Stratos PICO 25/0,5-4-130 | D31: 1 Pump | E31: Stratos PICO | F31: =VLOOKUP(B31,'Wilo Price List'!B:H,5,FALSE) -> £280 | G31: PG01
B32: 4244395 | C32: Stratos PICO 25/0,5-6-180 | D32: 1 Pump | E32: Stratos PICO | F32: =VLOOKUP(B32,'Wilo Price List'!B:H,5,FALSE) -> £425 | G32: PG01
B33: 4244396 | C33: Stratos PICO 25/0,5-6-130 | D33: 1 Pump | E33: Stratos PICO | F33: =VLOOKUP(B33,'Wilo Price List'!B:H,5,FALSE) -> £295 | G33: PG01
B34: 4244397 | C34: Stratos PICO 25/0,5-8-180 | D34: 1 Pump | E34: Stratos PICO | F34: =VLOOKUP(B34,'Wilo Price List'!B:H,5,FALSE) -> £455 | G34: PG01
B35: 4244398 | C35: Stratos PICO 25/0,5-8-130 | D35: 1 Pump | E35: Stratos PICO | F35: =VLOOKUP(B35,'Wilo Price List'!B:H,5,FALSE) -> £325 | G35: PG01
B37: 4244399 | C37: Stratos PICO 30/0,5-4-180 | D37: 1 Pump | E37: Stratos PICO | F37: =VLOOKUP(B37,'Wilo Price List'!B:H,5,FALSE) -> £435 | G37: PG01
B38: 4244400 | C38: Stratos PICO 30/0,5-6-180 | D38: 1 Pump | E38: Stratos PICO | F38: =VLOOKUP(B38,'Wilo Price List'!B:H,5,FALSE) -> £440 | G38: PG01
B39: 4244401 | C39: Stratos PICO 30/0,5-8-180 | D39: 1 Pump | E39: Stratos PICO | F39: =VLOOKUP(B39,'Wilo Price List'!B:H,5,FALSE) -> £480 | G39: PG01
B41: 4244402 | C41: Stratos PICO 25/0,5-6-180-N | D41: 1 Pump | E41: Stratos PICO | F41: =VLOOKUP(B41,'Wilo Price List'!B:H,5,FALSE) -> £556 | G41: PG01
B42: 4244403 | C42: Stratos PICO 25/0,5-4-BT | D42: 1 Pump | E42: Stratos PICO | F42: =VLOOKUP(B42,'Wilo Price List'!B:H,5,FALSE) -> £627 | G42: PG01
B43: 4244404 | C43: Stratos PICO 25/0,5-6-BT | D43: 1 Pump | E43: Stratos PICO | F43: =VLOOKUP(B43,'Wilo Price List'!B:H,5,FALSE) -> £647 | G43: PG01
B45: 4239241 | C45: Smart Connect BT Module | D45: Accessory | E45: Stratos PICO | F45: =VLOOKUP(B45,'Wilo Price List'!B:H,5,FALSE) -> £165 | G45: PG14
B46: 4257834 | C46: Connect Module BMS | D46: Accessory | E46: Stratos PICO | F46: £245 | G46: PG14

Sheet Top Z
B2: Top Z | I2: Home
B5: Article No. (or variant) | C5: Article description | D5: Type (Pump / Accessory / Spare Part / Addon / Service) | E5: Product range | F5: List Price | G5: Price group
B6: Top Z PN6/10
B7: 2045520 | C7: TOP-Z20/4 DM PN6/10 | D7: 1 Pump | E7: TOP-Z | F7: =VLOOKUP(B7,'Wilo Price List'!B:H,5,FALSE) -> £742 | G7: PG02
B8: 2045519 | C8: TOP-Z20/4 EM PN6/10 | D8: 1 Pump | E8: TOP-Z | F8: =VLOOKUP(B8,'Wilo Price List'!B:H,5,FALSE) -> £679 | G8: PG02
B10: 2175509 | C10: TOP-Z25/10 DM PN6/10 | D10: 1 Pump | E10: TOP-Z | F10: =VLOOKUP(B10,'Wilo Price List'!B:H,5,FALSE) -> £1,099 | G10: PG02
B11: 2061964 | C11: TOP-Z25/10 EM PN6/10 | D11: 1 Pump | E11: TOP-Z | F11: =VLOOKUP(B11,'Wilo Price List'!B:H,5,FALSE) -> £1,012 | G11: PG02
B12: 2045522 | C12: TOP-Z25/6 DM PN6/10 | D12: 1 Pump | E12: TOP-Z | F12: =VLOOKUP(B12,'Wilo Price List'!B:H,5,FALSE) -> £805 | G12: PG02
B13: 2045521 | C13: TOP-Z25/6 EM PN6/10 | D13: 1 Pump | E13: TOP-Z | F13: =VLOOKUP(B13,'Wilo Price List'!B:H,5,FALSE) -> £720 | G13: PG02
B15: 2175512 | C15: TOP-Z30/10 DM PN6/10 RG | D15: 1 Pump | E15: TOP-Z | F15: =VLOOKUP(B15,'Wilo Price List'!B:H,5,FALSE) -> £1,147 | G15: PG02
B16: 2059857 | C16: TOP-Z30/10 EM PN6/10 RG | D16: 1 Pump | E16: TOP-Z | F16: =VLOOKUP(B16,'Wilo Price List'!B:H,5,FALSE) -> £1,292 | G16: PG02
B17: 2048341 | C17: TOP-Z30/7 DM PN6/10 RG | D17: 1 Pump | E17: TOP-Z | F17: =VLOOKUP(B17,'Wilo Price List'!B:H,5,FALSE) -> £1,106 | G17: PG02
B18: 2048340 | C18: TOP-Z30/7 EM PN6/10 RG | D18: 1 Pump | E18: TOP-Z | F18: =VLOOKUP(B18,'Wilo Price List'!B:H,5,FALSE) -> £1,182 | G18: PG02
B20: 2175515 | C20: TOP-Z40/7 DM PN6/10 GG | D20: 1 Pump | E20: TOP-Z | F20: =VLOOKUP(B20,'Wilo Price List'!B:H,5,FALSE) -> £2,441 | G20: PG02
B21: 2175516 | C21: TOP-Z40/7 DM PN6/10 RG | D21: 1 Pump | E21: TOP-Z | F21: =VLOOKUP(B21,'Wilo Price List'!B:H,5,FALSE) -> £2,058 | G21: PG02
B22: 2046637 | C22: TOP-Z40/7 EM PN6/10 RG | D22: 1 Pump | E22: TOP-Z | F22: =VLOOKUP(B22,'Wilo Price List'!B:H,5,FALSE) -> £2,183 | G22: PG02
B24: 2175521 | C24: TOP-Z50/7 DM PN6/10 GG | D24: 1 Pump | E24: TOP-Z | F24: =VLOOKUP(B24,'Wilo Price List'!B:H,5,FALSE) -> £3,202 | G24: PG02
B25: 2175522 | C25: TOP-Z50/7 DM PN6/10 RG | D25: 1 Pump | E25: TOP-Z | F25: =VLOOKUP(B25,'Wilo Price List'!B:H,5,FALSE) -> £3,618 | G25: PG02
B27: 2175527 | C27: TOP-Z65/10 DM PN6/10 GG | D27: 1 Pump | E27: TOP-Z | F27: =VLOOKUP(B27,'Wilo Price List'!B:H,5,FALSE) -> £5,485 | G27: PG02
B28: 2175528 | C28: TOP-Z65/10 DM PN6/10 RG | D28: 1 Pump | E28: TOP-Z | F28: =VLOOKUP(B28,'Wilo Price List'!B:H,5,FALSE) -> £4,247 | G28: PG02
B30: 2175533 | C30: TOP-Z80/10 DM PN10 GG | D30: 1 Pump | E30: TOP-Z | F30: =VLOOKUP(B30,'Wilo Price List'!B:H,5,FALSE) -> £6,978 | G30: PG02
B31: 2175534 | C31: TOP-Z80/10 DM PN10 RG | D31: 1 Pump | E31: TOP-Z | F31: =VLOOKUP(B31,'Wilo Price List'!B:H,5,FALSE) -> £5,937 | G31: PG02
B32: 2175531 | C32: TOP-Z80/10 DM PN6 GG | D32: 1 Pump | E32: TOP-Z | F32: =VLOOKUP(B32,'Wilo Price List'!B:H,5,FALSE) -> £6,647 | G32: PG02
B33: 2175532 | C33: TOP-Z80/10 DM PN6 RG | D33: 1 Pump | E33: TOP-Z | F33: =VLOOKUP(B33,'Wilo Price List'!B:H,5,FALSE) -> £5,400 | G33: PG02
B34: Top Z PN16
B35: 2175510 | C35: TOP-Z25/10 DM PN16 | D35: 1 Pump | E35: TOP-Z PN16 | F35: =VLOOKUP(B35,'Wilo Price List'!B:H,5,FALSE) -> £2,400 | G35: PG02
B36: 2086131 | C36: TOP-Z25/10 EM PN16 | D36: 1 Pump | E36: TOP-Z PN16 | F36: =VLOOKUP(B36,'Wilo Price List'!B:H,5,FALSE) -> £2,614 | G36: PG02
B38: 2175513 | C38: TOP-Z30/10 DM PN16 RG | D38: 1 Pump | E38: TOP-Z PN16 | F38: =VLOOKUP(B38,'Wilo Price List'!B:H,5,FALSE) -> £2,550 | G38: PG02
B39: 2115863 | C39: TOP-Z30/10 EM PN16 RG | D39: 1 Pump | E39: TOP-Z PN16 | F39: =VLOOKUP(B39,'Wilo Price List'!B:H,5,FALSE) -> £2,773 | G39: PG02
B41: 2175517 | C41: TOP-Z40/7 DM PN16 GG | D41: 1 Pump | E41: TOP-Z PN16 | F41: =VLOOKUP(B41,'Wilo Price List'!B:H,5,FALSE) -> £2,586 | G41: PG02
B42: 2175518 | C42: TOP-Z40/7 DM PN16 RG | D42: 1 Pump | E42: TOP-Z PN16 | F42: =VLOOKUP(B42,'Wilo Price List'!B:H,5,FALSE) -> £4,179 | G42: PG02
B43: 2071094 | C43: TOP-Z40/7 EM PN16 GG | D43: 1 Pump | E43: TOP-Z PN16 | F43: =VLOOKUP(B43,'Wilo Price List'!B:H,5,FALSE) -> £2,846 | G43: PG02
B44: 2070569 | C44: TOP-Z40/7 EM PN16 RG | D44: 1 Pump | E44: TOP-Z PN16 | F44: =VLOOKUP(B44,'Wilo Price List'!B:H,5,FALSE) -> £4,502 | G44: PG02
B46: 2175523 | C46: TOP-Z50/7 DM PN16 GG | D46: 1 Pump | E46: TOP-Z PN16 | F46: =VLOOKUP(B46,'Wilo Price List'!B:H,5,FALSE) -> £3,364 | G46: PG02
B47: 2175524 | C47: TOP-Z50/7 DM PN16 RG | D47: 1 Pump | E47: TOP-Z PN16 | F47: =VLOOKUP(B47,'Wilo Price List'!B:H,5,FALSE) -> £5,041 | G47: PG02
B49: 2175529 | C49: TOP-Z65/10 DM PN16 GG | D49: 1 Pump | E49: TOP-Z PN16 | F49: =VLOOKUP(B49,'Wilo Price List'!B:H,5,FALSE) -> £5,188 | G49: PG02
B50: 2175530 | C50: TOP-Z65/10 DM PN16 RG | D50: 1 Pump | E50: TOP-Z PN16 | F50: =VLOOKUP(B50,'Wilo Price List'!B:H,5,FALSE) -> £6,951 | G50: PG02
B52: 2175535 | C52: TOP-Z80/10 DM PN16 GG | D52: 1 Pump | E52: TOP-Z PN16 | F52: =VLOOKUP(B52,'Wilo Price List'!B:H,5,FALSE) -> £6,394 | G52: PG02
B53: 2175536 | C53: TOP-Z80/10 DM PN16 RG | D53: 1 Pump | E53: TOP-Z PN16 | F53: =VLOOKUP(B53,'Wilo Price List'!B:H,5,FALSE) -> £8,243 | G53: PG02

Sheet SB
B2: SB | I2: Home
B5: Article No. (or variant) | C5: Article description | D5: Type (Pump / Accessory / Spare Part / Addon / Service) | E5: Product range | F5: List Price | G5: Price group
B6: SB
B8: 4035479 | C8: SB30 230V 1PH | D8: 1 Pump | E8: SB | F8: =VLOOKUP(B8,'Wilo Price List'!B:H,5,FALSE) -> £520 | G8: PG02

Sheet Yonos Maxo
B2: Yonos Maxo | J2: Home
B5: Article No. (or variant) | C5: Article description | D5: Type (Pump / Accessory / Spare Part / Addon / Service) | E5: Product range | F5: List Price | G5: Price group | H5: Port to Port (MM)
B6: Yonos Maxo
B7: 2120640 | C7: Yonos MAXO 25/0,5-10 PN10 | D7: 1 Pump | E7: Yonos MAXO | F7: =VLOOKUP(B7,'Wilo Price List'!B:H,5,FALSE) -> £876 | G7: PG02 | H7: 180
B8: 2120641 | C8: Yonos MAXO 25/0,5-12 PN10 | D8: 1 Pump | E8: Yonos MAXO | F8: =VLOOKUP(B8,'Wilo Price List'!B:H,5,FALSE) -> £988 | G8: PG02 | H8: 180
B9: 2120639 | C9: Yonos MAXO 25/0,5-7 PN10 | D9: 1 Pump | E9: Yonos MAXO | F9: =VLOOKUP(B9,'Wilo Price List'!B:H,5,FALSE) -> £650 | G9: PG02 | H9: 180
B11: 2120643 | C11: Yonos MAXO 30/0,5-10 PN10 | D11: 1 Pump | E11: Yonos MAXO | F11: =VLOOKUP(B11,'Wilo Price List'!B:H,5,FALSE) -> £998 | G11: PG02 | H11: 180
B12: 2120644 | C12: Yonos MAXO 30/0,5-12 PN10 | D12: 1 Pump | E12: Yonos MAXO | F12: =VLOOKUP(B12,'Wilo Price List'!B:H,5,FALSE) -> £1,294 | G12: PG02 | H12: 180
B13: 2120642 | C13: Yonos MAXO 30/0,5-7 PN10 | D13: 1 Pump | E13: Yonos MAXO | F13: =VLOOKUP(B13,'Wilo Price List'!B:H,5,FALSE) -> £720 | G13: PG02 | H13: 180
B15: 2210113 | C15: Yonos MAXO 32/0,5-10 PN6/10 | D15: 1 Pump | E15: Yonos MAXO | F15: =VLOOKUP(B15,'Wilo Price List'!B:H,5,FALSE) -> £1,197 | G15: PG02 | H15: 220
B16: 2210114 | C16: Yonos MAXO 32/0,5-11 PN6/10 | D16: 1 Pump | E16: Yonos MAXO | F16: =VLOOKUP(B16,'Wilo Price List'!B:H,5,FALSE) -> £1,479 | G16: PG02 | H16: 220
B18: 2120645 | C18: Yonos MAXO 40/0,5-4 PN6/10 | D18: 1 Pump | E18: Yonos MAXO | F18: =VLOOKUP(B18,'Wilo Price List'!B:H,5,FALSE) -> £1,017 | G18: PG02 | H18: 220
B19: 2120646 | C19: Yonos MAXO 40/0,5-8 PN6/10 | D19: 1 Pump | E19: Yonos MAXO | F19: =VLOOKUP(B19,'Wilo Price List'!B:H,5,FALSE) -> £1,205 | G19: PG02 | H19: 220
B20: 2120647 | C20: Yonos MAXO 40/0,5-12 PN6/10 | D20: 1 Pump | E20: Yonos MAXO | F20: =VLOOKUP(B20,'Wilo Price List'!B:H,5,FALSE) -> £1,537 | G20: PG02 | H20: 250
B21: 2120648 | C21: Yonos MAXO 40/0,5-16 PN6/10 | D21: 1 Pump | E21: Yonos MAXO | F21: =VLOOKUP(B21,'Wilo Price List'!B:H,5,FALSE) -> £2,757 | G21: PG02 | H21: 250
B23: 2120649 | C23: Yonos MAXO 50/0,5-8 PN6/10 | D23: 1 Pump | E23: Yonos MAXO | F23: =VLOOKUP(B23,'Wilo Price List'!B:H,5,FALSE) -> £1,852 | G23: PG02 | H23: 240
B24: 2120650 | C24: Yonos MAXO 50/0,5-9 PN6/10 | D24: 1 Pump | E24: Yonos MAXO | F24: =VLOOKUP(B24,'Wilo Price List'!B:H,5,FALSE) -> £1,961 | G24: PG02 | H24: 280
B25: 2120651 | C25: Yonos MAXO 50/0,5-12 PN6/10 | D25: 1 Pump | E25: Yonos MAXO | F25: =VLOOKUP(B25,'Wilo Price List'!B:H,5,FALSE) -> £2,070 | G25: PG02 | H25: 280
B26: 2120652 | C26: Yonos MAXO 50/0,5-16 PN6/10 | D26: 1 Pump | E26: Yonos MAXO | F26: =VLOOKUP(B26,'Wilo Price List'!B:H,5,FALSE) -> £2,878 | G26: PG02 | H26: 340
B28: 2120654 | C28: Yonos MAXO 65/0,5-12 PN6/10 | D28: 1 Pump | E28: Yonos MAXO | F28: =VLOOKUP(B28,'Wilo Price List'!B:H,5,FALSE) -> £2,780 | G28: PG02 | H28: 340
B29: 2120655 | C29: Yonos MAXO 65/0,5-16 PN6/10 | D29: 1 Pump | E29: Yonos MAXO | F29: =VLOOKUP(B29,'Wilo Price List'!B:H,5,FALSE) -> £2,991 | G29: PG02 | H29: 340
B30: 2120653 | C30: Yonos MAXO 65/0,5-9 PN6/10 | D30: 1 Pump | E30: Yonos MAXO | F30: =VLOOKUP(B30,'Wilo Price List'!B:H,5,FALSE) -> £2,231 | G30: PG02 | H30: 280
B32: 2120657 | C32: Yonos MAXO 80/0,5-6 PN10 | D32: 1 Pump | E32: Yonos MAXO | F32: =VLOOKUP(B32,'Wilo Price List'!B:H,5,FALSE) -> £3,494 | G32: PG02 | H32: 360
B33: 2120656 | C33: Yonos MAXO 80/0,5-6 PN6 | D33: 1 Pump | E33: Yonos MAXO | F33: =VLOOKUP(B33,'Wilo Price List'!B:H,5,FALSE) -> £3,154 | G33: PG02 | H33: 360
B34: 2120659 | C34: Yonos MAXO 80/0,5-12 PN10 | D34: 1 Pump | E34: Yonos MAXO | F34: =VLOOKUP(B34,'Wilo Price List'!B:H,5,FALSE) -> £3,631 | G34: PG02 | H34: 360
B35: 2120658 | C35: Yonos MAXO 80/0,5-12 PN6 | D35: 1 Pump | E35: Yonos MAXO | F35: =VLOOKUP(B35,'Wilo Price List'!B:H,5,FALSE) -> £3,270 | G35: PG02 | H35: 360
B37: 2120661 | C37: Yonos MAXO 100/0,5-12 PN10 | D37: 1 Pump | E37: Yonos MAXO | F37: =VLOOKUP(B37,'Wilo Price List'!B:H,5,FALSE) -> £3,337 | G37: PG02 | H37: 360
B38: 2120660 | C38: Yonos MAXO 100/0,5-12 PN6 | D38: 1 Pump | E38: Yonos MAXO | F38: =VLOOKUP(B38,'Wilo Price List'!B:H,5,FALSE) -> £3,005 | G38: PG02 | H38: 360
B40: 2210108 | C40: Connect Modul Yonos MAXO | D40: Accessory | E40: Connect Modul Yonos Maxo | F40: =VLOOKUP(B40,'Wilo Price List'!B:H,5,FALSE) -> £278 | G40: PG14

Sheet Yonos Maxo D
B2: Yonos Maxo D | J2: Home
B5: Article No. (or variant) | C5: Article description | D5: Type (Pump / Accessory / Spare Part / Addon / Service) | E5: Product range | F5: List Price | G5: Price group | H5: Port to Port (MM)
B6: Yonos Maxo D
B7: 2225914 | C7: Yonos MAXO-D 30/0,5-7 PN6/10 | D7: 1 Pump | E7: Yonos MAXO-D | F7: =VLOOKUP(B7,'Wilo Price List'!B:H,5,FALSE) -> £1,883 | G7: PG02 | H7: 180
B8: 2225915 | C8: Yonos MAXO-D 30/0,5-10 PN6/10 | D8: 1 Pump | E8: Yonos MAXO-D | F8: =VLOOKUP(B8,'Wilo Price List'!B:H,5,FALSE) -> £2,033 | G8: PG02 | H8: 180
B10: 2160585 | C10: Yonos MAXO-D 32/0,5-7 PN6/10 | D10: 1 Pump | E10: Yonos MAXO-D | F10: =VLOOKUP(B10,'Wilo Price List'!B:H,5,FALSE) -> £1,887 | G10: PG02 | H10: 220
B11: 2120663 | C11: Yonos MAXO-D 32/0,5-11 PN6/10 | D11: 1 Pump | E11: Yonos MAXO-D | F11: =VLOOKUP(B11,'Wilo Price List'!B:H,5,FALSE) -> £2,265 | G11: PG02 | H11: 220
B13: 2120664 | C13: Yonos MAXO-D 40/0,5-8 PN6/10 | D13: 1 Pump | E13: Yonos MAXO-D | F13: =VLOOKUP(B13,'Wilo Price List'!B:H,5,FALSE) -> £2,364 | G13: PG02 | H13: 220
B14: 2120665 | C14: Yonos MAXO-D 40/0,5-12 PN6/10 | D14: 1 Pump | E14: Yonos MAXO-D | F14: =VLOOKUP(B14,'Wilo Price List'!B:H,5,FALSE) -> £3,199 | G14: PG02 | H14: 250
B15: 2120666 | C15: Yonos MAXO-D 40/0,5-16 PN6/10 | D15: 1 Pump | E15: Yonos MAXO-D | F15: =VLOOKUP(B15,'Wilo Price List'!B:H,5,FALSE) -> £5,456 | G15: PG02 | H15: 250
B17: 2120667 | C17: Yonos MAXO-D 50/0,5-9 PN6/10 | D17: 1 Pump | E17: Yonos MAXO-D | F17: =VLOOKUP(B17,'Wilo Price List'!B:H,5,FALSE) -> £3,625 | G17: PG02 | H17: 280
B18: 2120668 | C18: Yonos MAXO-D 50/0,5-12 PN6/10 | D18: 1 Pump | E18: Yonos MAXO-D | F18: =VLOOKUP(B18,'Wilo Price List'!B:H,5,FALSE) -> £4,322 | G18: PG02 | H18: 280
B19: 2120669 | C19: Yonos MAXO-D 50/0,5-16 PN6/10 | D19: 1 Pump | E19: Yonos MAXO-D | F19: =VLOOKUP(B19,'Wilo Price List'!B:H,5,FALSE) -> £5,754 | G19: PG02 | H19: 340
B21: 2120670 | C21: Yonos MAXO-D 65/0,5-12 PN6/10 | D21: 1 Pump | E21: Yonos MAXO-D | F21: =VLOOKUP(B21,'Wilo Price List'!B:H,5,FALSE) -> £5,529 | G21: PG02 | H21: 340
B22: 2120671 | C22: Yonos MAXO-D 65/0,5-16 PN6/10 | D22: 1 Pump | E22: Yonos MAXO-D | F22: =VLOOKUP(B22,'Wilo Price List'!B:H,5,FALSE) -> £5,982 | G22: PG02 | H22: 340
B24: 2163261 | C24: Yonos MAXO-D 80/0,5-6 PN10 | D24: 1 Pump | E24: Yonos MAXO-D | F24: =VLOOKUP(B24,'Wilo Price List'!B:H,5,FALSE) -> £6,633 | G24: PG02 | H24: 360
B25: 2163260 | C25: Yonos MAXO-D 80/0,5-6 PN6 | D25: 1 Pump | E25: Yonos MAXO-D | F25: =VLOOKUP(B25,'Wilo Price List'!B:H,5,FALSE) -> £5,972 | G25: PG02 | H25: 360
B26: 2120673 | C26: Yonos MAXO-D 80/0,5-12 PN10 | D26: 1 Pump | E26: Yonos MAXO-D | F26: =VLOOKUP(B26,'Wilo Price List'!B:H,5,FALSE) -> £6,862 | G26: PG02 | H26: 360
B27: 2120672 | C27: Yonos MAXO-D 80/0,5-12 PN6 | D27: 1 Pump | E27: Yonos MAXO-D | F27: =VLOOKUP(B27,'Wilo Price List'!B:H,5,FALSE) -> £6,176 | G27: PG02 | H27: 360
B29: 2210108 | C29: Connect Module Yonos MAXO | D29: Accessory | E29: Connect Modul Yonos Maxo | F29: =VLOOKUP(B29,'Wilo Price List'!B:H,5,FALSE) -> £278 | G29: PG14

Sheet Yonos Maxo Z
B2: Yonos Maxo Z | J2: Home
B5: Article No. (or variant) | C5: Article description | D5: Type (Pump / Accessory / Spare Part / Addon / Service) | E5: Product range | F5: List Price | G5: Price group | H5: Port to Port (MM)
B6: Yonos Maxo Z
B7: 2175539 | C7: Yonos MAXO-Z 25/0,5-10 PN10 | D7: 1 Pump | E7: Yonos MAXO-Z | F7: =VLOOKUP(B7,'Wilo Price List'!B:H,5,FALSE) -> £1,610 | G7: PG02 | H7: 180
B8: 2175538 | C8: Yonos MAXO-Z 25/0,5-7 PN10 | D8: 1 Pump | E8: Yonos MAXO-Z | F8: =VLOOKUP(B8,'Wilo Price List'!B:H,5,FALSE) -> £1,209 | G8: PG02 | H8: 180
B10: 2175541 | C10: Yonos MAXO-Z 30/0,5-12 PN10 | D10: 1 Pump | E10: Yonos MAXO-Z | F10: =VLOOKUP(B10,'Wilo Price List'!B:H,5,FALSE) -> £1,940 | G10: PG02 | H10: 180
B11: 2175540 | C11: Yonos MAXO-Z 30/0,5-7 PN10 | D11: 1 Pump | E11: Yonos MAXO-Z | F11: =VLOOKUP(B11,'Wilo Price List'!B:H,5,FALSE) -> £1,362 | G11: PG02 | H11: 180
B13: 2175543 | C13: Yonos MAXO-Z 40/0,5-12 PN6/10 | D13: 1 Pump | E13: Yonos MAXO-Z | F13: =VLOOKUP(B13,'Wilo Price List'!B:H,5,FALSE) -> £2,765 | G13: PG02 | H13: 250
B14: 2175542 | C14: Yonos MAXO-Z 40/0,5-8 PN6/10 | D14: 1 Pump | E14: Yonos MAXO-Z | F14: =VLOOKUP(B14,'Wilo Price List'!B:H,5,FALSE) -> £2,600 | G14: PG02 | H14: 220
B16: 2175544 | C16: Yonos MAXO-Z 50/0,5-9 PN6/10 | D16: 1 Pump | E16: Yonos MAXO-Z | F16: =VLOOKUP(B16,'Wilo Price List'!B:H,5,FALSE) -> £3,383 | G16: PG02 | H16: 280
B18: 2175545 | C18: Yonos MAXO-Z 65/0,5-12 PN6/10 | D18: 1 Pump | E18: Yonos MAXO-Z | F18: =VLOOKUP(B18,'Wilo Price List'!B:H,5,FALSE) -> £6,977 | G18: PG02 | H18: 340
B20: 2210108 | C20: Connect Modul Yonos MAXO | D20: Accessory | E20: Connect Modul Yonos Maxo | F20: =VLOOKUP(B20,'Wilo Price List'!B:H,5,FALSE) -> £278 | G20: PG14

Sheet Stratos Maxo
B2: Stratos Maxo | G2: Home
B5: R7 Alternative | C5: Article description | D5: List Price | E5: Price group
B6: Stratos Maxo R7
B7: 2217895 | C7: Stratos MAXO 25/0,5-10 PN10-R7 | D7: =VLOOKUP(B7,'Wilo Price List'!B:G,5,FALSE) -> £1,053 | E7: PG17
B8: 2217896 | C8: Stratos MAXO 25/0,5-12 PN10-R7 | D8: =VLOOKUP(B8,'Wilo Price List'!B:G,5,FALSE) -> £1,183 | E8: PG17
B9: 2217892 | C9: Stratos MAXO 25/0,5-4 PN10-R7 | D9: =VLOOKUP(B9,'Wilo Price List'!B:G,5,FALSE) -> £701 | E9: PG17
B10: 2217893 | C10: Stratos MAXO 25/0,5-6 PN10-R7 | D10: =VLOOKUP(B10,'Wilo Price List'!B:G,5,FALSE) -> £833 | E10: PG17
B11: 2217894 | C11: Stratos MAXO 25/0,5-8 PN10-R7 | D11: =VLOOKUP(B11,'Wilo Price List'!B:G,5,FALSE) -> £948 | E11: PG17
B13: 2217900 | C13: Stratos MAXO 30/0,5-10 PN10-R7 | D13: =VLOOKUP(B13,'Wilo Price List'!B:G,5,FALSE) -> £1,345 | E13: PG17
B14: 2217901 | C14: Stratos MAXO 30/0,5-12 PN10-R7 | D14: =VLOOKUP(B14,'Wilo Price List'!B:G,5,FALSE) -> £2,102 | E14: PG17
B15: 2217902 | C15: Stratos MAXO 30/0,5-14 PN10-R7 | D15: =VLOOKUP(B15,'Wilo Price List'!B:G,5,FALSE) -> £2,537 | E15: PG17
B16: 2217897 | C16: Stratos MAXO 30/0,5-4 PN10-R7 | D16: =VLOOKUP(B16,'Wilo Price List'!B:G,5,FALSE) -> £861 | E16: PG17
B17: 2217898 | C17: Stratos MAXO 30/0,5-6 PN10-R7 | D17: =VLOOKUP(B17,'Wilo Price List'!B:G,5,FALSE) -> £1,009 | E17: PG17
B18: 2217899 | C18: Stratos MAXO 30/0,5-8 PN10-R7 | D18: =VLOOKUP(B18,'Wilo Price List'!B:G,5,FALSE) -> £1,168 | E18: PG17
B20: 2217946 | C20: Stratos MAXO 32/0,5-10 PN6/10-R7 | D20: =VLOOKUP(B20,'Wilo Price List'!B:G,5,FALSE) -> £1,345 | E20: PG17
B21: 2217947 | C21: Stratos MAXO 32/0,5-12 PN6/10-R7 | D21: =VLOOKUP(B21,'Wilo Price List'!B:G,5,FALSE) -> £2,102 | E21: PG17
B22: 2217948 | C22: Stratos MAXO 32/0,5-16 PN6/10-R7 | D22: =VLOOKUP(B22,'Wilo Price List'!B:G,5,FALSE) -> £2,967 | E22: PG17
B23: 2217945 | C23: Stratos MAXO 32/0,5-8 PN6/10-R7 | D23: =VLOOKUP(B23,'Wilo Price List'!B:G,5,FALSE) -> £1,168 | E23: PG17
B25: 2217951 | C25: Stratos MAXO 40/0,5-12 PN6/10-R7 | D25: =VLOOKUP(B25,'Wilo Price List'!B:G,5,FALSE) -> £2,192 | E25: PG17
B26: 2217952 | C26: Stratos MAXO 40/0,5-16 PN6/10-R7 | D26: =VLOOKUP(B26,'Wilo Price List'!B:G,5,FALSE) -> £2,599 | E26: PG17
B27: 2217949 | C27: Stratos MAXO 40/0,5-4 PN6/10-R7 | D27: =VLOOKUP(B27,'Wilo Price List'!B:G,5,FALSE) -> £1,183 | E27: PG17
B28: 2217950 | C28: Stratos MAXO 40/0,5-8 PN6/10-R7 | D28: =VLOOKUP(B28,'Wilo Price List'!B:G,5,FALSE) -> £1,739 | E28: PG17
B29: 2222240 | C29: Stratos MAXO 40/0,5-10 PN6/10-R7 | D29: =VLOOKUP(B29,'Wilo Price List'!B:G,5,FALSE) -> £1,783 | E29: PG17
B31: 2217956 | C31: Stratos MAXO 50/0,5-12 PN6/10-R7 | D31: =VLOOKUP(B31,'Wilo Price List'!B:G,5,FALSE) -> £3,360 | E31: PG17
B32: 2217957 | C32: Stratos MAXO 50/0,5-14 PN6/10-R7 | D32: =VLOOKUP(B32,'Wilo Price List'!B:G,5,FALSE) -> £3,870 | E32: PG17
B33: 2217958 | C33: Stratos MAXO 50/0,5-16 PN6/10-R7 | D33: =VLOOKUP(B33,'Wilo Price List'!B:G,5,FALSE) -> £4,540 | E33: PG17
B34: 2217953 | C34: Stratos MAXO 50/0,5-6 PN6/10-R7 | D34: =VLOOKUP(B34,'Wilo Price List'!B:G,5,FALSE) -> £2,731 | E34: PG17
B35: 2217954 | C35: Stratos MAXO 50/0,5-8 PN6/10-R7 | D35: =VLOOKUP(B35,'Wilo Price List'!B:G,5,FALSE) -> £3,075 | E35: PG17
B36: 2217955 | C36: Stratos MAXO 50/0,5-9 PN6/10-R7 | D36: =VLOOKUP(B36,'Wilo Price List'!B:G,5,FALSE) -> £3,183 | E36: PG17
B37: 2222245 | C37: Stratos MAXO 50/0,5-10 PN6/10-R7 | D37: =VLOOKUP(B37,'Wilo Price List'!B:G,5,FALSE) -> £2,341 | E37: PG17
B39: 2217961 | C39: Stratos MAXO 65/0,5-12 PN6/10-R7 | D39: =VLOOKUP(B39,'Wilo Price List'!B:G,5,FALSE) -> £4,088 | E39: PG17
B40: 2217962 | C40: Stratos MAXO 65/0,5-16 PN6/10-R7 | D40: =VLOOKUP(B40,'Wilo Price List'!B:G,5,FALSE) -> £4,296 | E40: PG17
B41: 2217959 | C41: Stratos MAXO 65/0,5-6 PN6/10-R7 | D41: =VLOOKUP(B41,'Wilo Price List'!B:G,5,FALSE) -> £3,615 | E41: PG17
B42: 2217960 | C42: Stratos MAXO 65/0,5-9 PN6/10-R7 | D42: =VLOOKUP(B42,'Wilo Price List'!B:G,5,FALSE) -> £3,812 | E42: PG17
B44: 2217966 | C44: Stratos MAXO 80/0,5-12 PN10-R7 | D44: =VLOOKUP(B44,'Wilo Price List'!B:G,5,FALSE) -> £5,248 | E44: PG17
B45: 2217965 | C45: Stratos MAXO 80/0,5-12 PN6-R7 | D45: =VLOOKUP(B45,'Wilo Price List'!B:G,5,FALSE) -> £4,621 | E45: PG17
B46: 2217968 | C46: Stratos MAXO 80/0,5-16 PN10-R7 | D46: =VLOOKUP(B46,'Wilo Price List'!B:G,5,FALSE) -> £7,648 | E46: PG17
B47: 2217967 | C47: Stratos MAXO 80/0,5-16 PN6-R7 | D47: =VLOOKUP(B47,'Wilo Price List'!B:G,5,FALSE) -> £7,336 | E47: PG17
B48: 2217964 | C48: Stratos MAXO 80/0,5-6 PN10-R7 | D48: =VLOOKUP(B48,'Wilo Price List'!B:G,5,FALSE) -> £4,352 | E48: PG17
B49: 2217963 | C49: Stratos MAXO 80/0,5-6 PN6-R7 | D49: =VLOOKUP(B49,'Wilo Price List'!B:G,5,FALSE) -> £3,830 | E49: PG17
B51: 2217972 | C51: Stratos MAXO 100/0,5-12 PN10-R7 | D51: =VLOOKUP(B51,'Wilo Price List'!B:G,5,FALSE) -> £6,206 | E51: PG17
B52: 2217971 | C52: Stratos MAXO 100/0,5-12 PN6-R7 | D52: =VLOOKUP(B52,'Wilo Price List'!B:G,5,FALSE) -> £5,464 | E52: PG17
B53: 2217970 | C53: Stratos MAXO 100/0,5-6 PN10-R7 | D53: =VLOOKUP(B53,'Wilo Price List'!B:G,5,FALSE) -> £4,642 | E53: PG17
B54: 2217969 | C54: Stratos MAXO 100/0,5-6 PN6-R7 | D54: =VLOOKUP(B54,'Wilo Price List'!B:G,5,FALSE) -> £4,088 | E54: PG17
B55: Stratos Maxo PN16
B56: 2186258 | C56: Stratos MAXO 25/0,5-10 PN16 | D56: =VLOOKUP(B56,'Wilo Price List'!B:H,5,FALSE) -> £1,545 | E56: PG17
B57: 2186259 | C57: Stratos MAXO 25/0,5-12 PN16 | D57: =VLOOKUP(B57,'Wilo Price List'!B:H,5,FALSE) -> £1,739 | E57: PG17
B58: 2186255 | C58: Stratos MAXO 25/0,5-4 PN16 | D58: =VLOOKUP(B58,'Wilo Price List'!B:H,5,FALSE) -> £1,031 | E58: PG17
B59: 2186256 | C59: Stratos MAXO 25/0,5-6 PN16 | D59: =VLOOKUP(B59,'Wilo Price List'!B:H,5,FALSE) -> £1,224 | E59: PG17
B60: 2186257 | C60: Stratos MAXO 25/0,5-8 PN16 | D60: =VLOOKUP(B60,'Wilo Price List'!B:H,5,FALSE) -> £1,394 | E60: PG17
B62: 2186263 | C62: Stratos MAXO 30/0,5-10 PN16 | D62: =VLOOKUP(B62,'Wilo Price List'!B:H,5,FALSE) -> £1,974 | E62: PG17
B63: 2186264 | C63: Stratos MAXO 30/0,5-12 PN16 | D63: =VLOOKUP(B63,'Wilo Price List'!B:H,5,FALSE) -> £3,091 | E63: PG17
B64: 2186265 | C64: Stratos MAXO 30/0,5-14 PN16 | D64: =VLOOKUP(B64,'Wilo Price List'!B:H,5,FALSE) -> £3,731 | E64: PG17
B65: 2186260 | C65: Stratos MAXO 30/0,5-4 PN16 | D65: =VLOOKUP(B65,'Wilo Price List'!B:H,5,FALSE) -> £977 | E65: PG17
B66: 2186261 | C66: Stratos MAXO 30/0,5-6 PN16 | D66: =VLOOKUP(B66,'Wilo Price List'!B:H,5,FALSE) -> £1,480 | E66: PG17
B67: 2186262 | C67: Stratos MAXO 30/0,5-8 PN16 | D67: =VLOOKUP(B67,'Wilo Price List'!B:H,5,FALSE) -> £1,717 | E67: PG17
B69: 2186267 | C69: Stratos MAXO 32/0,5-10 PN16 | D69: =VLOOKUP(B69,'Wilo Price List'!B:H,5,FALSE) -> £1,974 | E69: PG17
B70: 2186268 | C70: Stratos MAXO 32/0,5-12 PN16 | D70: =VLOOKUP(B70,'Wilo Price List'!B:H,5,FALSE) -> £3,091 | E70: PG17
B71: 2186269 | C71: Stratos MAXO 32/0,5-16 PN16 | D71: =VLOOKUP(B71,'Wilo Price List'!B:H,5,FALSE) -> £3,657 | E71: PG17
B72: 2186266 | C72: Stratos MAXO 32/0,5-8 PN16 | D72: =VLOOKUP(B72,'Wilo Price List'!B:H,5,FALSE) -> £1,717 | E72: PG17
B74: 2186272 | C74: Stratos MAXO 40/0,5-12 PN16 | D74: =VLOOKUP(B74,'Wilo Price List'!B:H,5,FALSE) -> £2,489 | E74: PG17
B75: 2186273 | C75: Stratos MAXO 40/0,5-16 PN16 | D75: =VLOOKUP(B75,'Wilo Price List'!B:H,5,FALSE) -> £3,822 | E75: PG17
B76: 2186270 | C76: Stratos MAXO 40/0,5-4 PN16 | D76: =VLOOKUP(B76,'Wilo Price List'!B:H,5,FALSE) -> £1,739 | E76: PG17
B77: 2186271 | C77: Stratos MAXO 40/0,5-8 PN16 | D77: =VLOOKUP(B77,'Wilo Price List'!B:H,5,FALSE) -> £2,558 | E77: PG17
B79: 2186277 | C79: Stratos MAXO 50/0,5-12 PN16 | D79: =VLOOKUP(B79,'Wilo Price List'!B:H,5,FALSE) -> £4,786 | E79: PG17
B80: 2186278 | C80: Stratos MAXO 50/0,5-14 PN16 | D80: =VLOOKUP(B80,'Wilo Price List'!B:H,5,FALSE) -> £5,680 | E80: PG17
B81: 2186279 | C81: Stratos MAXO 50/0,5-16 PN16 | D81: =VLOOKUP(B81,'Wilo Price List'!B:H,5,FALSE) -> £6,229 | E81: PG17
B82: 2186274 | C82: Stratos MAXO 50/0,5-6 PN16 | D82: =VLOOKUP(B82,'Wilo Price List'!B:H,5,FALSE) -> £3,664 | E82: PG17
B83: 2186275 | C83: Stratos MAXO 50/0,5-8 PN16 | D83: =VLOOKUP(B83,'Wilo Price List'!B:H,5,FALSE) -> £4,099 | E83: PG17
B84: 2186276 | C84: Stratos MAXO 50/0,5-9 PN16 | D84: =VLOOKUP(B84,'Wilo Price List'!B:H,5,FALSE) -> £4,533 | E84: PG17
B86: 2186282 | C86: Stratos MAXO 65/0,5-12 PN16 | D86: =VLOOKUP(B86,'Wilo Price List'!B:H,5,FALSE) -> £5,431 | E86: PG17
B87: 2186283 | C87: Stratos MAXO 65/0,5-16 PN16 | D87: =VLOOKUP(B87,'Wilo Price List'!B:H,5,FALSE) -> £6,422 | E87: PG17
B88: 2186280 | C88: Stratos MAXO 65/0,5-6 PN16 | D88: =VLOOKUP(B88,'Wilo Price List'!B:H,5,FALSE) -> £4,376 | E88: PG17
B89: 2186281 | C89: Stratos MAXO 65/0,5-9 PN16 | D89: =VLOOKUP(B89,'Wilo Price List'!B:H,5,FALSE) -> £4,919 | E89: PG17
B91: 2186285 | C91: Stratos MAXO 80/0,5-12 PN16 | D91: =VLOOKUP(B91,'Wilo Price List'!B:H,5,FALSE) -> £7,247 | E91: PG17
B92: 2186286 | C92: Stratos MAXO 80/0,5-16 PN16 | D92: =VLOOKUP(B92,'Wilo Price List'!B:H,5,FALSE) -> £8,471 | E92: PG17
B93: 2186284 | C93: Stratos MAXO 80/0,5-6 PN16 | D93: =VLOOKUP(B93,'Wilo Price List'!B:H,5,FALSE) -> £5,633 | E93: PG17
B95: 2186288 | C95: Stratos MAXO 100/0,5-12 PN16 | D95: =VLOOKUP(B95,'Wilo Price List'!B:H,5,FALSE) -> £8,589 | E95: PG17
B96: 2186287 | C96: Stratos MAXO 100/0,5-6 PN16 | D96: =VLOOKUP(B96,'Wilo Price List'!B:H,5,FALSE) -> £6,746 | E96: PG17

Sheet Stratos Maxo D
B2: Stratos Maxo D | G2: Home
B5: Article No. (or variant) | C5: Article description | D5: List Price | E5: Price group
B6: Stratos Maxo D R7
B7: 2217904 | C7: Stratos MAXO-D 30/0,5-10 PN10-R7 | D7: =VLOOKUP(B7,'Wilo Price List'!B:H,5,FALSE) -> £2,578 | E7: PG17
B8: 2217903 | C8: Stratos MAXO-D 30/0,5-6 PN10-R7 | D8: =VLOOKUP(B8,'Wilo Price List'!B:H,5,FALSE) -> £2,343 | E8: PG17
B9: 2217974 | C9: Stratos MAXO-D 32/0,5-12 PN6/10-R7 | D9: £4,182 | E9: PG17
B10: 2217973 | C10: Stratos MAXO-D 32/0,5-8 PN6/10 | D10: =VLOOKUP(B10,'Wilo Price List'!B:H,5,FALSE) -> £2,578 | E10: PG17
B12: 2217975 | C12: Stratos MAXO-D 40/0,5-8 PN6/10-R7 | D12: =VLOOKUP(B12,'Wilo Price List'!B:H,5,FALSE) -> £3,690 | E12: PG17
B13: 2217976 | C13: Stratos MAXO-D 40/0,5-12 PN6/10-R7 | D13: =VLOOKUP(B13,'Wilo Price List'!B:H,5,FALSE) -> £4,909 | E13: PG17
B14: 2217977 | C14: Stratos MAXO-D 40/0,5-16 PN6/10-R7 | D14: =VLOOKUP(B14,'Wilo Price List'!B:H,5,FALSE) -> £5,538 | E14: PG17
B16: 2217978 | C16: Stratos MAXO-D 50/0,5-6 PN6/10-R7 | D16: =VLOOKUP(B16,'Wilo Price List'!B:H,5,FALSE) -> £5,380 | E16: PG17
B17: 2217979 | C17: Stratos MAXO-D 50/0,5-8 PN6/10-R7 | D17: =VLOOKUP(B17,'Wilo Price List'!B:H,5,FALSE) -> £5,923 | E17: PG17
B18: 2217980 | C18: Stratos MAXO-D 50/0,5-9 PN6/10-R7 | D18: =VLOOKUP(B18,'Wilo Price List'!B:H,5,FALSE) -> £6,270 | E18: PG17
B19: 2217981 | C19: Stratos MAXO-D 50/0,5-12 PN6/10-R7 | D19: =VLOOKUP(B19,'Wilo Price List'!B:H,5,FALSE) -> £6,620 | E19: PG17
B20: 2217982 | C20: Stratos MAXO-D 50/0,5-16 PN6/10-R7 | D20: =VLOOKUP(B20,'Wilo Price List'!B:H,5,FALSE) -> £8,400 | E20: PG17
B22: 2217983 | C22: Stratos MAXO-D 65/0,5-6 PN6/10-R7 | D22: =VLOOKUP(B22,'Wilo Price List'!B:H,5,FALSE) -> £6,541 | E22: PG17
B23: 2217984 | C23: Stratos MAXO-D 65/0,5-12 PN6/10-R7 | D23: =VLOOKUP(B23,'Wilo Price List'!B:H,5,FALSE) -> £7,564 | E23: PG17
B24: 2217985 | C24: Stratos MAXO-D 65/0,5-16 PN6/10-R7 | D24: =VLOOKUP(B24,'Wilo Price List'!B:H,5,FALSE) -> £8,104 | E24: PG17
B26: 2217987 | C26: Stratos MAXO-D 80/0,5-6 PN10-R7 | D26: =VLOOKUP(B26,'Wilo Price List'!B:H,5,FALSE) -> £7,083 | E26: PG17
B27: 2217986 | C27: Stratos MAXO-D 80/0,5-6 PN6-R7 | D27: =VLOOKUP(B27,'Wilo Price List'!B:H,5,FALSE) -> £6,234 | E27: PG17
B28: 2217989 | C28: Stratos MAXO-D 80/0,5-12 PN10-R7 | D28: =VLOOKUP(B28,'Wilo Price List'!B:H,5,FALSE) -> £9,859 | E28: PG17
B29: 2217988 | C29: Stratos MAXO-D 80/0,5-12 PN6-R7 | D29: =VLOOKUP(B29,'Wilo Price List'!B:H,5,FALSE) -> £8,677 | E29: PG17
B30: 2217990 | C30: Stratos MAXO-D 80/0,5-16 PN6-R7 | D30: =VLOOKUP(B30,'Wilo Price List'!B:H,5,FALSE) -> £13,574 | E30: PG17
B31: 2217991 | C31: Stratos MAXO-D 80/0,5-16 PN10-R7 | D31: =VLOOKUP(B31,'Wilo Price List'!B:H,5,FALSE) -> £15,424 | E31: PG17
B32: Stratos Maxo PN16
B33: 2186289 | C33: Stratos MAXO-D 30/0,5-6 PN16 | D33: =VLOOKUP(B33,'Wilo Price List'!B:H,5,FALSE) -> £3,223 | E33: PG17
B34: 2186290 | C34: Stratos MAXO-D 30/0,5-10 PN16 | D34: =VLOOKUP(B34,'Wilo Price List'!B:H,5,FALSE) -> £3,780 | E34: PG17
B36: 2186291 | C36: Stratos MAXO D 32/0,5-8 PN16 | D36: =VLOOKUP(B36,'Wilo Price List'!B:H,5,FALSE) -> £3,651 | E36: PG17
B37: 2186292 | C37: Stratos MAXO-D 32/0,5-12 PN16 | D37: =VLOOKUP(B37,'Wilo Price List'!B:H,5,FALSE) -> £5,265 | E37: PG17
B39: 2186293 | C39: Stratos MAXO-D 40/0,5-8 PN16 | D39: =VLOOKUP(B39,'Wilo Price List'!B:H,5,FALSE) -> £5,538 | E39: PG17
B40: 2186294 | C40: Stratos MAXO-D 40/0,5-12 PN16 | D40: =VLOOKUP(B40,'Wilo Price List'!B:H,5,FALSE) -> £6,416 | E40: PG17
B41: 2186295 | C41: Stratos MAXO-D 40/0,5-16 PN16 | D41: =VLOOKUP(B41,'Wilo Price List'!B:H,5,FALSE) -> £8,532 | E41: PG17
B43: 2186296 | C43: Stratos MAXO-D 50/0,5-6 PN16 | D43: =VLOOKUP(B43,'Wilo Price List'!B:H,5,FALSE) -> £6,139 | E43: PG17
B44: 2186297 | C44: Stratos MAXO-D 50/0,5-8 PN16 | D44: =VLOOKUP(B44,'Wilo Price List'!B:H,5,FALSE) -> £6,947 | E44: PG17
B45: 2186298 | C45: Stratos MAXO-D 50/0,5-9 PN16 | D45: =VLOOKUP(B45,'Wilo Price List'!B:H,5,FALSE) -> £7,749 | E45: PG17
B46: 2186299 | C46: Stratos MAXO-D 50/0,5-12 PN16 | D46: =VLOOKUP(B46,'Wilo Price List'!B:H,5,FALSE) -> £8,218 | E46: PG17
B47: 2186300 | C47: Stratos MAXO-D 50/0,5-16 PN16 | D47: =VLOOKUP(B47,'Wilo Price List'!B:H,5,FALSE) -> £10,884 | E47: PG17
B49: 2186301 | C49: Stratos MAXO-D 65/0,5-6 PN16 | D49: =VLOOKUP(B49,'Wilo Price List'!B:H,5,FALSE) -> £7,392 | E49: PG17
B50: 2186302 | C50: Stratos MAXO-D 65/0,5-12 PN16 | D50: =VLOOKUP(B50,'Wilo Price List'!B:H,5,FALSE) -> £9,346 | E50: PG17
B51: 2186303 | C51: Stratos MAXO-D 65/0,5-16 PN16 | D51: =VLOOKUP(B51,'Wilo Price List'!B:H,5,FALSE) -> £11,182 | E51: PG17
B53: 2186304 | C53: Stratos MAXO-D 80/0,5-6 PN16 | D53: =VLOOKUP(B53,'Wilo Price List'!B:H,5,FALSE) -> £10,266 | E53: PG17
B54: 2186305 | C54: Stratos MAXO-D 80/0,5-12 PN16 | D54: =VLOOKUP(B54,'Wilo Price List'!B:H,5,FALSE) -> £12,709 | E54: PG17
B55: 2186306 | C55: Stratos MAXO D 80/0,5-16 PN16 | D55: =VLOOKUP(B55,'Wilo Price List'!B:H,5,FALSE) -> £14,970 | E55: PG17

Sheet Stratos Maxo Z
B2: Stratos Maxo Z | I2: Home
B5: Article No. (or variant) | C5: Article description | D5: Type (Pump / Accessory / Spare Part / Addon / Service) | E5: Product range | F5: List Price | G5: Price group
B6: Stratos Maxo Z
B7: 2164668 | C7: Stratos MAXO-Z 25/0,5-12 PN10 | D7: 1 Pump | E7: Stratos MAXO-Z | F7: =VLOOKUP(B7,'Wilo Price List'!B:H,5,FALSE) -> £1,833 | G7: PG17
B8: 2164666 | C8: Stratos MAXO-Z 25/0,5-6 PN10 | D8: 1 Pump | E8: Stratos MAXO-Z | F8: =VLOOKUP(B8,'Wilo Price List'!B:H,5,FALSE) -> £1,290 | G8: PG17
B9: 2164667 | C9: Stratos MAXO-Z 25/0,5-8 PN10 | D9: 1 Pump | E9: Stratos MAXO-Z | F9: =VLOOKUP(B9,'Wilo Price List'!B:H,5,FALSE) -> £1,470 | G9: PG17
B11: 2164671 | C11: Stratos MAXO-Z 30/0,5-12 PN10 | D11: 1 Pump | E11: Stratos MAXO-Z | F11: =VLOOKUP(B11,'Wilo Price List'!B:H,5,FALSE) -> £3,289 | G11: PG17
B12: 2164669 | C12: Stratos MAXO-Z 30/0,5-6 PN10 | D12: 1 Pump | E12: Stratos MAXO-Z | F12: =VLOOKUP(B12,'Wilo Price List'!B:H,5,FALSE) -> £1,562 | G12: PG17
B13: 2164670 | C13: Stratos MAXO-Z 30/0,5-8 PN10 | D13: 1 Pump | E13: Stratos MAXO-Z | F13: =VLOOKUP(B13,'Wilo Price List'!B:H,5,FALSE) -> £1,628 | G13: PG17
B15: 2164673 | C15: Stratos MAXO-Z 32/0,5-12 PN6/10 | D15: 1 Pump | E15: Stratos MAXO-Z | F15: =VLOOKUP(B15,'Wilo Price List'!B:H,5,FALSE) -> £3,289 | G15: PG17
B16: 2164672 | C16: Stratos MAXO-Z 32/0,5-8 PN6/10 | D16: 1 Pump | E16: Stratos MAXO-Z | F16: =VLOOKUP(B16,'Wilo Price List'!B:H,5,FALSE) -> £1,812 | G16: PG17
B18: 2164675 | C18: Stratos MAXO-Z 40/0,5-12 PN6/10 | D18: 1 Pump | E18: Stratos MAXO-Z | F18: =VLOOKUP(B18,'Wilo Price List'!B:H,5,FALSE) -> £3,960 | G18: PG17
B19: 2164674 | C19: Stratos MAXO-Z 40/0,5-8 PN6/10 | D19: 1 Pump | E19: Stratos MAXO-Z | F19: =VLOOKUP(B19,'Wilo Price List'!B:H,5,FALSE) -> £2,694 | G19: PG17
B21: 2164676 | C21: Stratos MAXO-Z 50/0,5-9 PN6/10 | D21: 1 Pump | E21: Stratos MAXO-Z | F21: =VLOOKUP(B21,'Wilo Price List'!B:H,5,FALSE) -> £4,934 | G21: PG17
B23: 2164677 | C23: Stratos MAXO-Z 65/0,5-12 PN6/10 | D23: 1 Pump | E23: Stratos MAXO-Z | F23: =VLOOKUP(B23,'Wilo Price List'!B:H,5,FALSE) -> £5,465 | G23: PG17
B24: Stratos Maxo Z PN16
B25: 2186309 | C25: Stratos MAXO-Z 25/0,5-12 PN16 | D25: 1 Pump | E25: Stratos MAXO-Z PN16 | F25: =VLOOKUP(B25,'Wilo Price List'!B:H,5,FALSE) -> £3,594 | G25: PG17
B26: 2186307 | C26: Stratos MAXO-Z 25/0,5-6 PN16 | D26: 1 Pump | E26: Stratos MAXO-Z PN16 | F26: =VLOOKUP(B26,'Wilo Price List'!B:H,5,FALSE) -> £2,565 | G26: PG17
B27: 2186308 | C27: Stratos MAXO-Z 25/0,5-8 PN16 | D27: 1 Pump | E27: Stratos MAXO-Z PN16 | F27: =VLOOKUP(B27,'Wilo Price List'!B:H,5,FALSE) -> £2,806 | G27: PG17
B29: 2186312 | C29: Stratos MAXO-Z 30/0,5-12 PN16 | D29: 1 Pump | E29: Stratos MAXO-Z PN16 | F29: =VLOOKUP(B29,'Wilo Price List'!B:H,5,FALSE) -> £4,160 | G29: PG17
B30: 2186310 | C30: Stratos MAXO-Z 30/0,5-6 PN16 | D30: 1 Pump | E30: Stratos MAXO-Z PN16 | F30: =VLOOKUP(B30,'Wilo Price List'!B:H,5,FALSE) -> £2,871 | G30: PG17
B31: 2186311 | C31: Stratos MAXO-Z 30/0,5-8 PN16 | D31: 1 Pump | E31: Stratos MAXO-Z PN16 | F31: =VLOOKUP(B31,'Wilo Price List'!B:H,5,FALSE) -> £3,127 | G31: PG17
B33: 2186314 | C33: Stratos MAXO-Z 32/0,5-12 PN16 | D33: 1 Pump | E33: Stratos MAXO-Z PN16 | F33: =VLOOKUP(B33,'Wilo Price List'!B:H,5,FALSE) -> £4,648 | G33: PG17
B34: 2186313 | C34: Stratos MAXO-Z 32/0,5-8 PN16 | D34: 1 Pump | E34: Stratos MAXO-Z PN16 | F34: =VLOOKUP(B34,'Wilo Price List'!B:H,5,FALSE) -> £3,250 | G34: PG17
B36: 2186316 | C36: Stratos MAXO-Z 40/0,5-12 PN16 | D36: 1 Pump | E36: Stratos MAXO-Z PN16 | F36: =VLOOKUP(B36,'Wilo Price List'!B:H,5,FALSE) -> £5,652 | G36: PG17
B37: 2186315 | C37: Stratos MAXO-Z 40/0,5-8 PN16 | D37: 1 Pump | E37: Stratos MAXO-Z PN16 | F37: =VLOOKUP(B37,'Wilo Price List'!B:H,5,FALSE) -> £4,891 | G37: PG17
B39: 2186317 | C39: Stratos MAXO-Z 50/0,5-9 PN16 | D39: 1 Pump | E39: Stratos MAXO-Z PN16 | F39: =VLOOKUP(B39,'Wilo Price List'!B:H,5,FALSE) -> £6,803 | G39: PG17
B41: 2186318 | C41: Stratos MAXO-Z 65/0,5-12 PN16 | D41: 1 Pump | E41: Stratos MAXO-Z PN16 | F41: =VLOOKUP(B41,'Wilo Price List'!B:H,5,FALSE) -> £8,196 | G41: PG17

Sheet IL
B2: IL | J2: Home
B5: Article No. (or variant) | C5: Article description | D5: Type (Pump / Accessory / Spare Part / Addon / Service) | E5: Product range | F5: List Price | G5: Price group | H5: Port to Port (MM)
B6: 2063574 | C6: IL32/140-0,25/4 | D6: 1 Pump | E6: CronoLine-IL | F6: =VLOOKUP(B6,'Wilo Price List'!B:H,5,FALSE) -> £2,131 | G6: PG03 | H6: 320
B7: 2120862 | C7: IL32/140-1,5/2-IE3 | D7: 1 Pump | E7: CronoLine-IL | F7: =VLOOKUP(B7,'Wilo Price List'!B:H,5,FALSE) -> £2,310 | G7: PG03 | H7: 320
B8: 2088307 | C8: IL32/150-0,37/4 | D8: 1 Pump | E8: CronoLine-IL | F8: =VLOOKUP(B8,'Wilo Price List'!B:H,5,FALSE) -> £2,148 | G8: PG03 | H8: 320
B9: 2120863 | C9: IL32/150-2,2/2-IE3 | D9: 1 Pump | E9: CronoLine-IL | F9: =VLOOKUP(B9,'Wilo Price List'!B:H,5,FALSE) -> £2,368 | G9: PG03 | H9: 320
B10: 2120864 | C10: IL32/160-2,2/2-IE3 | D10: 1 Pump | E10: CronoLine-IL | F10: =VLOOKUP(B10,'Wilo Price List'!B:H,5,FALSE) -> £2,366 | G10: PG03 | H10: 320
B11: 2120865 | C11: IL32/160-3/2-IE3 | D11: 1 Pump | E11: CronoLine-IL | F11: =VLOOKUP(B11,'Wilo Price List'!B:H,5,FALSE) -> £2,531 | G11: PG03 | H11: 320
B12: 2088306 | C12: IL32/170-0,55/4 | D12: 1 Pump | E12: CronoLine-IL | F12: =VLOOKUP(B12,'Wilo Price List'!B:H,5,FALSE) -> £2,396 | G12: PG03 | H12: 320
B13: 2120866 | C13: IL32/170-3/2-IE3 | D13: 1 Pump | E13: CronoLine-IL | F13: =VLOOKUP(B13,'Wilo Price List'!B:H,5,FALSE) -> £2,528 | G13: PG03 | H13: 320
B14: 2120867 | C14: IL32/170-4/2-IE3 | D14: 1 Pump | E14: CronoLine-IL | F14: =VLOOKUP(B14,'Wilo Price List'!B:H,5,FALSE) -> £2,695 | G14: PG03 | H14: 320
B16: 2088320 | C16: IL40/140-0,25/4 | D16: 1 Pump | E16: CronoLine-IL | F16: =VLOOKUP(B16,'Wilo Price List'!B:H,5,FALSE) -> £2,124 | G16: PG03 | H16: 340
B17: 2120868 | C17: IL40/140-2,2/2-IE3 | D17: 1 Pump | E17: CronoLine-IL | F17: =VLOOKUP(B17,'Wilo Price List'!B:H,5,FALSE) -> £2,359 | G17: PG03 | H17: 340
B18: 2088318 | C18: IL40/150-0,37/4 | D18: 1 Pump | E18: CronoLine-IL | F18: =VLOOKUP(B18,'Wilo Price List'!B:H,5,FALSE) -> £2,150 | G18: PG03 | H18: 340
B19: 2120869 | C19: IL40/150-3/2-IE3 | D19: 1 Pump | E19: CronoLine-IL | F19: =VLOOKUP(B19,'Wilo Price List'!B:H,5,FALSE) -> £2,532 | G19: PG03 | H19: 340
B20: 2088316 | C20: IL40/160-0,55/4 | D20: 1 Pump | E20: CronoLine-IL | F20: =VLOOKUP(B20,'Wilo Price List'!B:H,5,FALSE) -> £2,405 | G20: PG03 | H20: 340
B21: 2120870 | C21: IL40/160-4/2-IE3 | D21: 1 Pump | E21: CronoLine-IL | F21: =VLOOKUP(B21,'Wilo Price List'!B:H,5,FALSE) -> £2,705 | G21: PG03 | H21: 340
B22: 2120750 | C22: IL40/170-0,75/4-IE3 | D22: 1 Pump | E22: CronoLine-IL | F22: =VLOOKUP(B22,'Wilo Price List'!B:H,5,FALSE) -> £2,697 | G22: PG03 | H22: 340
B23: 2120871 | C23: IL40/170-5,5/2-IE3 | D23: 1 Pump | E23: CronoLine-IL | F23: =VLOOKUP(B23,'Wilo Price List'!B:H,5,FALSE) -> £3,420 | G23: PG03 | H23: 340
B24: 2120872 | C24: IL40/200-7,5/2-IE3 | D24: 1 Pump | E24: CronoLine-IL | F24: =VLOOKUP(B24,'Wilo Price List'!B:H,5,FALSE) -> £3,660 | G24: PG03 | H24: 440
B25: 2120751 | C25: IL40/210-1,1/4-IE3 | D25: 1 Pump | E25: CronoLine-IL | F25: =VLOOKUP(B25,'Wilo Price List'!B:H,5,FALSE) -> £2,613 | G25: PG03 | H25: 440
B26: 2120752 | C26: IL40/220-1,5/4-IE3 | D26: 1 Pump | E26: CronoLine-IL | F26: =VLOOKUP(B26,'Wilo Price List'!B:H,5,FALSE) -> £2,657 | G26: PG03 | H26: 440
B27: 2120873 | C27: IL40/220-11/2-IE3 | D27: 1 Pump | E27: CronoLine-IL | F27: =VLOOKUP(B27,'Wilo Price List'!B:H,5,FALSE) -> £4,636 | G27: PG03 | H27: 440
B29: 2120874 | C29: IL50/110-1,5/2-IE3 | D29: 1 Pump | E29: CronoLine-IL | F29: =VLOOKUP(B29,'Wilo Price List'!B:H,5,FALSE) -> £2,299 | G29: PG03 | H29: 340
B30: 2120875 | C30: IL50/120-2,2/2-IE3 | D30: 1 Pump | E30: CronoLine-IL | F30: =VLOOKUP(B30,'Wilo Price List'!B:H,5,FALSE) -> £2,379 | G30: PG03 | H30: 340
B31: 2120876 | C31: IL50/130-3/2-IE3 | D31: 1 Pump | E31: CronoLine-IL | F31: =VLOOKUP(B31,'Wilo Price List'!B:H,5,FALSE) -> £2,618 | G31: PG03 | H31: 340
B32: 2120877 | C32: IL50/140-3/2-IE3 | D32: 1 Pump | E32: CronoLine-IL | F32: =VLOOKUP(B32,'Wilo Price List'!B:H,5,FALSE) -> £2,587 | G32: PG03 | H32: 340
B33: 2120878 | C33: IL50/140-4/2-IE3 | D33: 1 Pump | E33: CronoLine-IL | F33: =VLOOKUP(B33,'Wilo Price List'!B:H,5,FALSE) -> £2,760 | G33: PG03 | H33: 340
B34: 2120753 | C34: IL50/160-0,75/4-IE3 | D34: 1 Pump | E34: CronoLine-IL | F34: =VLOOKUP(B34,'Wilo Price List'!B:H,5,FALSE) -> £2,675 | G34: PG03 | H34: 340
B35: 2120879 | C35: IL50/160-5,5/2-IE3 | D35: 1 Pump | E35: CronoLine-IL | F35: =VLOOKUP(B35,'Wilo Price List'!B:H,5,FALSE) -> £3,496 | G35: PG03 | H35: 340
B36: 2120754 | C36: IL50/170-1,1/4-IE3 | D36: 1 Pump | E36: CronoLine-IL | F36: =VLOOKUP(B36,'Wilo Price List'!B:H,5,FALSE) -> £2,291 | G36: PG03 | H36: 340
B37: 2120880 | C37: IL50/170-5,5/2-IE3 | D37: 1 Pump | E37: CronoLine-IL | F37: =VLOOKUP(B37,'Wilo Price List'!B:H,5,FALSE) -> £3,424 | G37: PG03 | H37: 340
B38: 2120881 | C38: IL50/170-7,5/2-IE3 | D38: 1 Pump | E38: CronoLine-IL | F38: =VLOOKUP(B38,'Wilo Price List'!B:H,5,FALSE) -> £3,576 | G38: PG03 | H38: 340
B39: 2120882 | C39: IL50/180-7,5/2-IE3 | D39: 1 Pump | E39: CronoLine-IL | F39: =VLOOKUP(B39,'Wilo Price List'!B:H,5,FALSE) -> £3,801 | G39: PG03 | H39: 440
B40: 2120755 | C40: IL50/200-1,5/4-IE3 | D40: 1 Pump | E40: CronoLine-IL | F40: =VLOOKUP(B40,'Wilo Price List'!B:H,5,FALSE) -> £2,777 | G40: PG03 | H40: 440
B41: 2120883 | C41: IL50/210-11/2-IE3 | D41: 1 Pump | E41: CronoLine-IL | F41: =VLOOKUP(B41,'Wilo Price List'!B:H,5,FALSE) -> £4,741 | G41: PG03 | H41: 440
B42: 2120884 | C42: IL50/220-11/2-IE3 | D42: 1 Pump | E42: CronoLine-IL | F42: =VLOOKUP(B42,'Wilo Price List'!B:H,5,FALSE) -> £4,750 | G42: PG03 | H42: 440
B43: 2120885 | C43: IL50/220-15/2-IE3 | D43: 1 Pump | E43: CronoLine-IL | F43: =VLOOKUP(B43,'Wilo Price List'!B:H,5,FALSE) -> £4,932 | G43: PG03 | H43: 440
B44: 2120756 | C44: IL50/220-2,2/4-IE3 | D44: 1 Pump | E44: CronoLine-IL | F44: =VLOOKUP(B44,'Wilo Price List'!B:H,5,FALSE) -> £3,078 | G44: PG03 | H44: 440
B45: 2120886 | C45: IL50/250-18,5/2-IE3 | D45: 1 Pump | E45: CronoLine-IL | F45: =VLOOKUP(B45,'Wilo Price List'!B:H,5,FALSE) -> £5,926 | G45: PG03 | H45: 440
B46: 2120887 | C46: IL50/250-22/2-IE3 | D46: 1 Pump | E46: CronoLine-IL | F46: =VLOOKUP(B46,'Wilo Price List'!B:H,5,FALSE) -> £6,838 | G46: PG03 | H46: 440
B47: 2120757 | C47: IL50/260-3/4-IE3 | D47: 1 Pump | E47: CronoLine-IL | F47: =VLOOKUP(B47,'Wilo Price List'!B:H,5,FALSE) -> £3,390 | G47: PG03 | H47: 440
B48: 2120888 | C48: IL50/270-22/2-IE3 | D48: 1 Pump | E48: CronoLine-IL | F48: =VLOOKUP(B48,'Wilo Price List'!B:H,5,FALSE) -> £6,838 | G48: PG03 | H48: 440
B49: 2120758 | C49: IL50/270-3/4-IE3 | D49: 1 Pump | E49: CronoLine-IL | F49: =VLOOKUP(B49,'Wilo Price List'!B:H,5,FALSE) -> £3,388 | G49: PG03 | H49: 440
B50: 2120889 | C50: IL50/270-30/2-IE3 | D50: 1 Pump | E50: CronoLine-IL | F50: =VLOOKUP(B50,'Wilo Price List'!B:H,5,FALSE) -> £7,300 | G50: PG03 | H50: 440
B51: 2120759 | C51: IL50/270-4/4-IE3 | D51: 1 Pump | E51: CronoLine-IL | F51: =VLOOKUP(B51,'Wilo Price List'!B:H,5,FALSE) -> £3,494 | G51: PG03 | H51: 440
B53: 2120890 | C53: IL65/110-3/2-IE3 | D53: 1 Pump | E53: CronoLine-IL | F53: =VLOOKUP(B53,'Wilo Price List'!B:H,5,FALSE) -> £2,707 | G53: PG03 | H53: 340
B54: 2139459 | C54: IL65/120-0,55/4 | D54: 1 Pump | E54: CronoLine-IL | F54: =VLOOKUP(B54,'Wilo Price List'!B:H,5,FALSE) -> £2,423 | G54: PG03 | H54: 340
B55: 2120891 | C55: IL65/120-3/2-IE3 | D55: 1 Pump | E55: CronoLine-IL | F55: =VLOOKUP(B55,'Wilo Price List'!B:H,5,FALSE) -> £2,695 | G55: PG03 | H55: 340
B56: 2120892 | C56: IL65/120-4/2-IE3 | D56: 1 Pump | E56: CronoLine-IL | F56: =VLOOKUP(B56,'Wilo Price List'!B:H,5,FALSE) -> £2,860 | G56: PG03 | H56: 340
B57: 2142041 | C57: IL65/130-0,75/4-IE3 | D57: 1 Pump | E57: CronoLine-IL | F57: =VLOOKUP(B57,'Wilo Price List'!B:H,5,FALSE) -> £2,716 | G57: PG03 | H57: 340
B58: 2120893 | C58: IL65/130-4/2-IE3 | D58: 1 Pump | E58: CronoLine-IL | F58: =VLOOKUP(B58,'Wilo Price List'!B:H,5,FALSE) -> £2,844 | G58: PG03 | H58: 340
B59: 2120894 | C59: IL65/130-5,5/2-IE3 | D59: 1 Pump | E59: CronoLine-IL | F59: =VLOOKUP(B59,'Wilo Price List'!B:H,5,FALSE) -> £3,311 | G59: PG03 | H59: 340
B60: 2142042 | C60: IL65/140-1,1/4-IE3 | D60: 1 Pump | E60: CronoLine-IL | F60: =VLOOKUP(B60,'Wilo Price List'!B:H,5,FALSE) -> £2,360 | G60: PG03 | H60: 340
B61: 2120895 | C61: IL65/140-5,5/2-IE3 | D61: 1 Pump | E61: CronoLine-IL | F61: =VLOOKUP(B61,'Wilo Price List'!B:H,5,FALSE) -> £3,286 | G61: PG03 | H61: 340
B62: 2120896 | C62: IL65/140-7,5/2-IE3 | D62: 1 Pump | E62: CronoLine-IL | F62: =VLOOKUP(B62,'Wilo Price List'!B:H,5,FALSE) -> £3,439 | G62: PG03 | H62: 340
B63: 2120760 | C63: IL65/150-0,75/4-IE3 | D63: 1 Pump | E63: CronoLine-IL | F63: =VLOOKUP(B63,'Wilo Price List'!B:H,5,FALSE) -> £3,113 | G63: PG03 | H63: 430
B64: 2120897 | C64: IL65/150-5,5/2-IE3 | D64: 1 Pump | E64: CronoLine-IL | F64: =VLOOKUP(B64,'Wilo Price List'!B:H,5,FALSE) -> £3,865 | G64: PG03 | H64: 430
B65: 2120761 | C65: IL65/160-1,1/4-IE3 | D65: 1 Pump | E65: CronoLine-IL | F65: =VLOOKUP(B65,'Wilo Price List'!B:H,5,FALSE) -> £2,771 | G65: PG03 | H65: 430
B66: 2120898 | C66: IL65/160-5,5/2-IE3 | D66: 1 Pump | E66: CronoLine-IL | F66: =VLOOKUP(B66,'Wilo Price List'!B:H,5,FALSE) -> £3,866 | G66: PG03 | H66: 430
B67: 2120899 | C67: IL65/160-7,5/2-IE3 | D67: 1 Pump | E67: CronoLine-IL | F67: =VLOOKUP(B67,'Wilo Price List'!B:H,5,FALSE) -> £4,020 | G67: PG03 | H67: 430
B68: 2120762 | C68: IL65/170-1,1/4-IE3 | D68: 1 Pump | E68: CronoLine-IL | F68: =VLOOKUP(B68,'Wilo Price List'!B:H,5,FALSE) -> £2,790 | G68: PG03 | H68: 430
B69: 2120763 | C69: IL65/170-1,5/4-IE3 | D69: 1 Pump | E69: CronoLine-IL | F69: =VLOOKUP(B69,'Wilo Price List'!B:H,5,FALSE) -> £2,812 | G69: PG03 | H69: 430
B70: 2120900 | C70: IL65/170-11/2-IE3 | D70: 1 Pump | E70: CronoLine-IL | F70: =VLOOKUP(B70,'Wilo Price List'!B:H,5,FALSE) -> £4,921 | G70: PG03 | H70: 430
B71: 2120901 | C71: IL65/200-11/2-IE3 | D71: 1 Pump | E71: CronoLine-IL | F71: =VLOOKUP(B71,'Wilo Price List'!B:H,5,FALSE) -> £4,841 | G71: PG03 | H71: 475
B72: 2120902 | C72: IL65/200-15/2-IE3 | D72: 1 Pump | E72: CronoLine-IL | F72: =VLOOKUP(B72,'Wilo Price List'!B:H,5,FALSE) -> £5,173 | G72: PG03 | H72: 475
B73: 2120903 | C73: IL65/210-15/2-IE3 | D73: 1 Pump | E73: CronoLine-IL | F73: =VLOOKUP(B73,'Wilo Price List'!B:H,5,FALSE) -> £5,173 | G73: PG03 | H73: 475
B74: 2120904 | C74: IL65/210-18,5/2-IE3 | D74: 1 Pump | E74: CronoLine-IL | F74: =VLOOKUP(B74,'Wilo Price List'!B:H,5,FALSE) -> £6,159 | G74: PG03 | H74: 475
B75: 2120764 | C75: IL65/210-2,2/4-IE3 | D75: 1 Pump | E75: CronoLine-IL | F75: =VLOOKUP(B75,'Wilo Price List'!B:H,5,FALSE) -> £3,060 | G75: PG03 | H75: 475
B76: 2120905 | C76: IL65/220-18,5/2-IE3 | D76: 1 Pump | E76: CronoLine-IL | F76: =VLOOKUP(B76,'Wilo Price List'!B:H,5,FALSE) -> £6,159 | G76: PG03 | H76: 475
B77: 2120765 | C77: IL65/220-2,2/4-IE3 | D77: 1 Pump | E77: CronoLine-IL | F77: =VLOOKUP(B77,'Wilo Price List'!B:H,5,FALSE) -> £3,047 | G77: PG03 | H77: 475
B78: 2120906 | C78: IL65/220-22/2-IE3 | D78: 1 Pump | E78: CronoLine-IL | F78: =VLOOKUP(B78,'Wilo Price List'!B:H,5,FALSE) -> £6,938 | G78: PG03 | H78: 475
B79: 2120766 | C79: IL65/220-3/4-IE3 | D79: 1 Pump | E79: CronoLine-IL | F79: =VLOOKUP(B79,'Wilo Price List'!B:H,5,FALSE) -> £3,145 | G79: PG03 | H79: 475
B80: 2120907 | C80: IL65/240-30/2-IE3 | D80: 1 Pump | E80: CronoLine-IL | F80: =VLOOKUP(B80,'Wilo Price List'!B:H,5,FALSE) -> £8,146 | G80: PG03 | H80: 475
B81: 2120767 | C81: IL65/250-3/4-IE3 | D81: 1 Pump | E81: CronoLine-IL | F81: =VLOOKUP(B81,'Wilo Price List'!B:H,5,FALSE) -> £3,409 | G81: PG03 | H81: 475
B82: 2120768 | C82: IL65/250-4/4-IE3 | D82: 1 Pump | E82: CronoLine-IL | F82: =VLOOKUP(B82,'Wilo Price List'!B:H,5,FALSE) -> £3,544 | G82: PG03 | H82: 475
B83: 2120908 | C83: IL65/260-30/2-IE3 | D83: 1 Pump | E83: CronoLine-IL | F83: =VLOOKUP(B83,'Wilo Price List'!B:H,5,FALSE) -> £8,146 | G83: PG03 | H83: 475
B84: 2120909 | C84: IL65/260-37/2-IE3 | D84: 1 Pump | E84: CronoLine-IL | F84: =VLOOKUP(B84,'Wilo Price List'!B:H,5,FALSE) -> £9,657 | G84: PG03 | H84: 475
B85: 2120769 | C85: IL65/270-4/4-IE3 | D85: 1 Pump | E85: CronoLine-IL | F85: =VLOOKUP(B85,'Wilo Price List'!B:H,5,FALSE) -> £3,539 | G85: PG03 | H85: 475
B86: 2120770 | C86: IL65/270-5,5/4-IE3 | D86: 1 Pump | E86: CronoLine-IL | F86: =VLOOKUP(B86,'Wilo Price List'!B:H,5,FALSE) -> £4,101 | G86: PG03 | H86: 475
B88: 2120910 | C88: IL80/110-3/2-IE3 | D88: 1 Pump | E88: CronoLine-IL | F88: =VLOOKUP(B88,'Wilo Price List'!B:H,5,FALSE) -> £2,711 | G88: PG03 | H88: 400
B89: 2120911 | C89: IL80/120-4/2-IE3 | D89: 1 Pump | E89: CronoLine-IL | F89: =VLOOKUP(B89,'Wilo Price List'!B:H,5,FALSE) -> £2,870 | G89: PG03 | H89: 400
B90: 2120912 | C90: IL80/130-5,5/2-IE3 | D90: 1 Pump | E90: CronoLine-IL | F90: =VLOOKUP(B90,'Wilo Price List'!B:H,5,FALSE) -> £3,345 | G90: PG03 | H90: 400
B91: 2120913 | C91: IL80/140-7,5/2-IE3 | D91: 1 Pump | E91: CronoLine-IL | F91: =VLOOKUP(B91,'Wilo Price List'!B:H,5,FALSE) -> £3,501 | G91: PG03 | H91: 400
B92: 2120771 | C92: IL80/145-1,1/4-IE3 | D92: 1 Pump | E92: CronoLine-IL | F92: =VLOOKUP(B92,'Wilo Price List'!B:H,5,FALSE) -> £2,881 | G92: PG03 | H92: 440
B93: 2120772 | C93: IL80/150-1,1/4-IE3 | D93: 1 Pump | E93: CronoLine-IL | F93: =VLOOKUP(B93,'Wilo Price List'!B:H,5,FALSE) -> £2,882 | G93: PG03 | H93: 440
B94: 2120914 | C94: IL80/150-7,5/2-IE3 | D94: 1 Pump | E94: CronoLine-IL | F94: =VLOOKUP(B94,'Wilo Price List'!B:H,5,FALSE) -> £4,154 | G94: PG03 | H94: 440
B95: 2120773 | C95: IL80/160-1,5/4-IE3 | D95: 1 Pump | E95: CronoLine-IL | F95: =VLOOKUP(B95,'Wilo Price List'!B:H,5,FALSE) -> £2,912 | G95: PG03 | H95: 440
B96: 2120915 | C96: IL80/160-11/2-IE3 | D96: 1 Pump | E96: CronoLine-IL | F96: =VLOOKUP(B96,'Wilo Price List'!B:H,5,FALSE) -> £5,054 | G96: PG03 | H96: 440
B97: 2120916 | C97: IL80/170-11/2-IE3 | D97: 1 Pump | E97: CronoLine-IL | F97: =VLOOKUP(B97,'Wilo Price List'!B:H,5,FALSE) -> £5,055 | G97: PG03 | H97: 440
B98: 2120917 | C98: IL80/170-15/2-IE3 | D98: 1 Pump | E98: CronoLine-IL | F98: =VLOOKUP(B98,'Wilo Price List'!B:H,5,FALSE) -> £5,238 | G98: PG03 | H98: 440
B99: 2120774 | C99: IL80/170-2,2/4-IE3 | D99: 1 Pump | E99: CronoLine-IL | F99: =VLOOKUP(B99,'Wilo Price List'!B:H,5,FALSE) -> £3,097 | G99: PG03 | H99: 440
B100: 2120918 | C100: IL80/190-15/2-IE3 | D100: 1 Pump | E100: CronoLine-IL | F100: =VLOOKUP(B100,'Wilo Price List'!B:H,5,FALSE) -> £5,202 | G100: PG03 | H100: 500
B101: 2120919 | C101: IL80/190-18,5/2-IE3 | D101: 1 Pump | E101: CronoLine-IL | F101: =VLOOKUP(B101,'Wilo Price List'!B:H,5,FALSE) -> £6,314 | G101: PG03 | H101: 500
B102: 2120920 | C102: IL80/200-18,5/2-IE3 | D102: 1 Pump | E102: CronoLine-IL | F102: =VLOOKUP(B102,'Wilo Price List'!B:H,5,FALSE) -> £6,314 | G102: PG03 | H102: 500
B103: 2120921 | C103: IL80/200-22/2-IE3 | D103: 1 Pump | E103: CronoLine-IL | F103: =VLOOKUP(B103,'Wilo Price List'!B:H,5,FALSE) -> £7,052 | G103: PG03 | H103: 500
B104: 2120775 | C104: IL80/210-3/4-IE3 | D104: 1 Pump | E104: CronoLine-IL | F104: =VLOOKUP(B104,'Wilo Price List'!B:H,5,FALSE) -> £3,171 | G104: PG03 | H104: 500
B105: 2120922 | C105: IL80/210-30/2-IE3 | D105: 1 Pump | E105: CronoLine-IL | F105: =VLOOKUP(B105,'Wilo Price List'!B:H,5,FALSE) -> £8,318 | G105: PG03 | H105: 500
B106: 2120923 | C106: IL80/220-22/2-IE3 | D106: 1 Pump | E106: CronoLine-IL | F106: =VLOOKUP(B106,'Wilo Price List'!B:H,5,FALSE) -> £7,052 | G106: PG03 | H106: 500
B107: 2120924 | C107: IL80/220-30/2-IE3 | D107: 1 Pump | E107: CronoLine-IL | F107: =VLOOKUP(B107,'Wilo Price List'!B:H,5,FALSE) -> £8,318 | G107: PG03 | H107: 500
B108: 2120776 | C108: IL80/220-4/4-IE3 | D108: 1 Pump | E108: CronoLine-IL | F108: =VLOOKUP(B108,'Wilo Price List'!B:H,5,FALSE) -> £3,550 | G108: PG03 | H108: 500
B109: 2120777 | C109: IL80/270-5,5/4-IE3 | D109: 1 Pump | E109: CronoLine-IL | F109: =VLOOKUP(B109,'Wilo Price List'!B:H,5,FALSE) -> £4,112 | G109: PG03 | H109: 500
B110: 2157053 | C110: IL80/285-5,5/4 | D110: 1 Pump | E110: CronoLine-IL | F110: =VLOOKUP(B110,'Wilo Price List'!B:H,5,FALSE) -> £3,890 | G110: PG03
B111: 2157052 | C111: IL80/295-5,5/4 | D111: 1 Pump | E111: CronoLine-IL | F111: =VLOOKUP(B111,'Wilo Price List'!B:H,5,FALSE) -> £3,890 | G111: PG03
B112: 2169789 | C112: IL80/295-7,5/4 | D112: 1 Pump | E112: CronoLine-IL | F112: =VLOOKUP(B112,'Wilo Price List'!B:H,5,FALSE) -> £4,484 | G112: PG03
B113: 2157049 | C113: IL80/305-11/4 | D113: 1 Pump | E113: CronoLine-IL | F113: =VLOOKUP(B113,'Wilo Price List'!B:H,5,FALSE) -> £5,662 | G113: PG03
B114: 2157051 | C114: IL80/305-7,5/4 | D114: 1 Pump | E114: CronoLine-IL | F114: =VLOOKUP(B114,'Wilo Price List'!B:H,5,FALSE) -> £4,484 | G114: PG03
B115: 2157050 | C115: IL80/315-11/4 | D115: 1 Pump | E115: CronoLine-IL | F115: =VLOOKUP(B115,'Wilo Price List'!B:H,5,FALSE) -> £5,662 | G115: PG03
B116: 2157048 | C116: IL80/315-15/4 | D116: 1 Pump | E116: CronoLine-IL | F116: =VLOOKUP(B116,'Wilo Price List'!B:H,5,FALSE) -> £7,037 | G116: PG03
B118: 2120778 | C118: IL100/145-1,1/4-IE3 | D118: 1 Pump | E118: CronoLine-IL | F118: =VLOOKUP(B118,'Wilo Price List'!B:H,5,FALSE) -> £2,855 | G118: PG03 | H118: 500
B119: 2120925 | C119: IL100/145-11/2-IE3 | D119: 1 Pump | E119: CronoLine-IL | F119: =VLOOKUP(B119,'Wilo Price List'!B:H,5,FALSE) -> £5,054 | G119: PG03 | H119: 500
B120: 2120779 | C120: IL100/150-1,5/4-IE3 | D120: 1 Pump | E120: CronoLine-IL | F120: =VLOOKUP(B120,'Wilo Price List'!B:H,5,FALSE) -> £3,589 | G120: PG03 | H120: 500
B121: 2120926 | C121: IL100/150-15/2-IE3 | D121: 1 Pump | E121: CronoLine-IL | F121: =VLOOKUP(B121,'Wilo Price List'!B:H,5,FALSE) -> £5,689 | G121: PG03 | H121: 500
B122: 2120927 | C122: IL100/160-15/2-IE3 | D122: 1 Pump | E122: CronoLine-IL | F122: =VLOOKUP(B122,'Wilo Price List'!B:H,5,FALSE) -> £5,689 | G122: PG03 | H122: 500
B123: 2120928 | C123: IL100/160-18,5/2-IE3 | D123: 1 Pump | E123: CronoLine-IL | F123: =VLOOKUP(B123,'Wilo Price List'!B:H,5,FALSE) -> £6,639 | G123: PG03 | H123: 500
B124: 2120780 | C124: IL100/160-2,2/4-IE3 | D124: 1 Pump | E124: CronoLine-IL | F124: =VLOOKUP(B124,'Wilo Price List'!B:H,5,FALSE) -> £3,833 | G124: PG03 | H124: 500
B125: 2120929 | C125: IL100/165-22/2-IE3 | D125: 1 Pump | E125: CronoLine-IL | F125: =VLOOKUP(B125,'Wilo Price List'!B:H,5,FALSE) -> £7,479 | G125: PG03 | H125: 500
B126: 2120781 | C126: IL100/170-2,2/4-IE3 | D126: 1 Pump | E126: CronoLine-IL | F126: =VLOOKUP(B126,'Wilo Price List'!B:H,5,FALSE) -> £3,833 | G126: PG03 | H126: 500
B127: 2120930 | C127: IL100/170-22/2-IE3 | D127: 1 Pump | E127: CronoLine-IL | F127: =VLOOKUP(B127,'Wilo Price List'!B:H,5,FALSE) -> £7,479 | G127: PG03 | H127: 500
B128: 2120782 | C128: IL100/170-3/4-IE3 | D128: 1 Pump | E128: CronoLine-IL | F128: =VLOOKUP(B128,'Wilo Price List'!B:H,5,FALSE) -> £3,878 | G128: PG03 | H128: 500
B129: 2120931 | C129: IL100/170-30/2-IE3 | D129: 1 Pump | E129: CronoLine-IL | F129: =VLOOKUP(B129,'Wilo Price List'!B:H,5,FALSE) -> £9,137 | G129: PG03 | H129: 500
B130: 2120932 | C130: IL100/190-30/2-IE3 | D130: 1 Pump | E130: CronoLine-IL | F130: =VLOOKUP(B130,'Wilo Price List'!B:H,5,FALSE) -> £9,137 | G130: PG03 | H130: 550
B131: 2120783 | C131: IL100/200-3/4-IE3 | D131: 1 Pump | E131: CronoLine-IL | F131: =VLOOKUP(B131,'Wilo Price List'!B:H,5,FALSE) -> £3,878 | G131: PG03 | H131: 550
B132: 2120784 | C132: IL100/200-4/4-IE3 | D132: 1 Pump | E132: CronoLine-IL | F132: =VLOOKUP(B132,'Wilo Price List'!B:H,5,FALSE) -> £4,624 | G132: PG03 | H132: 550
B133: 2120933 | C133: IL100/210-30/2-IE3 | D133: 1 Pump | E133: CronoLine-IL | F133: =VLOOKUP(B133,'Wilo Price List'!B:H,5,FALSE) -> £9,137 | G133: PG03 | H133: 550
B134: 2120934 | C134: IL100/210-37/2-IE3 | D134: 1 Pump | E134: CronoLine-IL | F134: =VLOOKUP(B134,'Wilo Price List'!B:H,5,FALSE) -> £11,635 | G134: PG03 | H134: 550
B135: 2120785 | C135: IL100/220-4/4-IE3 | D135: 1 Pump | E135: CronoLine-IL | F135: =VLOOKUP(B135,'Wilo Price List'!B:H,5,FALSE) -> £4,624 | G135: PG03 | H135: 550
B136: 2120786 | C136: IL100/220-5,5/4-IE3 | D136: 1 Pump | E136: CronoLine-IL | F136: =VLOOKUP(B136,'Wilo Price List'!B:H,5,FALSE) -> £5,316 | G136: PG03 | H136: 550
B137: 2120787 | C137: IL100/250-5,5/4-IE3 | D137: 1 Pump | E137: CronoLine-IL | F137: =VLOOKUP(B137,'Wilo Price List'!B:H,5,FALSE) -> £5,316 | G137: PG03 | H137: 550
B138: 2120788 | C138: IL100/250-7,5/4-IE3 | D138: 1 Pump | E138: CronoLine-IL | F138: =VLOOKUP(B138,'Wilo Price List'!B:H,5,FALSE) -> £5,977 | G138: PG03 | H138: 550
B139: 2120790 | C139: IL100/260-11/4-IE3 | D139: 1 Pump | E139: CronoLine-IL | F139: =VLOOKUP(B139,'Wilo Price List'!B:H,5,FALSE) -> £7,158 | G139: PG03 | H139: 550
B140: 2120789 | C140: IL100/260-7,5/4-IE3 | D140: 1 Pump | E140: CronoLine-IL | F140: =VLOOKUP(B140,'Wilo Price List'!B:H,5,FALSE) -> £5,977 | G140: PG03 | H140: 550
B141: 2160652 | C141: IL100/265-5,5/4 | D141: 1 Pump | E141: CronoLine-IL | F141: =VLOOKUP(B141,'Wilo Price List'!B:H,5,FALSE) -> £5,316 | G141: PG03
B142: 2120791 | C142: IL100/270-11/4-IE3 | D142: 1 Pump | E142: CronoLine-IL | F142: =VLOOKUP(B142,'Wilo Price List'!B:H,5,FALSE) -> £7,158 | G142: PG03 | H142: 550
B143: 2160651 | C143: IL100/275-7,5/4 | D143: 1 Pump | E143: CronoLine-IL | F143: =VLOOKUP(B143,'Wilo Price List'!B:H,5,FALSE) -> £5,977 | G143: PG03
B144: 2160650 | C144: IL100/285-11/4 | D144: 1 Pump | E144: CronoLine-IL | F144: =VLOOKUP(B144,'Wilo Price List'!B:H,5,FALSE) -> £7,339 | G144: PG03
B145: 2169793 | C145: IL100/295-11/4 | D145: 1 Pump | E145: CronoLine-IL | F145: =VLOOKUP(B145,'Wilo Price List'!B:H,5,FALSE) -> £7,339 | G145: PG03
B146: 2160649 | C146: IL100/295-15/4 | D146: 1 Pump | E146: CronoLine-IL | F146: =VLOOKUP(B146,'Wilo Price List'!B:H,5,FALSE) -> £8,259 | G146: PG03
B147: 2169792 | C147: IL100/305-15/4 | D147: 1 Pump | E147: CronoLine-IL | F147: =VLOOKUP(B147,'Wilo Price List'!B:H,5,FALSE) -> £8,259 | G147: PG03
B148: 2160648 | C148: IL100/305-18,5/4 | D148: 1 Pump | E148: CronoLine-IL | F148: =VLOOKUP(B148,'Wilo Price List'!B:H,5,FALSE) -> £8,738 | G148: PG03
B149: 2169791 | C149: IL100/315-18,5/4 | D149: 1 Pump | E149: CronoLine-IL | F149: =VLOOKUP(B149,'Wilo Price List'!B:H,5,FALSE) -> £8,738 | G149: PG03
B150: 2160647 | C150: IL100/315-22/4 | D150: 1 Pump | E150: CronoLine-IL | F150: =VLOOKUP(B150,'Wilo Price List'!B:H,5,FALSE) -> £9,116 | G150: PG03
B151: 2160880 | C151: IL100/350-11/4 | D151: 1 Pump | E151: CronoLine-IL | F151: =VLOOKUP(B151,'Wilo Price List'!B:H,5,FALSE) -> £13,637 | G151: PG03 | H151: 760
B152: 2151501 | C152: IL100/350-15/4 | D152: 1 Pump | E152: CronoLine-IL | F152: =VLOOKUP(B152,'Wilo Price List'!B:H,5,FALSE) -> £13,802 | G152: PG03 | H152: 760
B153: 2160879 | C153: IL100/360-15/4 | D153: 1 Pump | E153: CronoLine-IL | F153: =VLOOKUP(B153,'Wilo Price List'!B:H,5,FALSE) -> £13,578 | G153: PG03 | H153: 760
B154: 2151500 | C154: IL100/360-18,5/4 | D154: 1 Pump | E154: CronoLine-IL | F154: =VLOOKUP(B154,'Wilo Price List'!B:H,5,FALSE) -> £14,184 | G154: PG03 | H154: 760
B155: 2160878 | C155: IL100/370-18,5/4 | D155: 1 Pump | E155: CronoLine-IL | F155: =VLOOKUP(B155,'Wilo Price List'!B:H,5,FALSE) -> £14,184 | G155: PG03 | H155: 760
B156: 2151499 | C156: IL100/370-22/4 | D156: 1 Pump | E156: CronoLine-IL | F156: =VLOOKUP(B156,'Wilo Price List'!B:H,5,FALSE) -> £14,318 | G156: PG03 | H156: 760
B157: 2160877 | C157: IL100/380-22/4 | D157: 1 Pump | E157: CronoLine-IL | F157: =VLOOKUP(B157,'Wilo Price List'!B:H,5,FALSE) -> £12,010 | G157: PG03 | H157: 760
B158: 2151498 | C158: IL100/380-30/4 | D158: 1 Pump | E158: CronoLine-IL | F158: =VLOOKUP(B158,'Wilo Price List'!B:H,5,FALSE) -> £14,376 | G158: PG03 | H158: 760
B159: 2160876 | C159: IL100/390-30/4 | D159: 1 Pump | E159: CronoLine-IL | F159: =VLOOKUP(B159,'Wilo Price List'!B:H,5,FALSE) -> £12,371 | G159: PG03 | H159: 760
B160: 2151497 | C160: IL100/390-37/4 | D160: 1 Pump | E160: CronoLine-IL | F160: =VLOOKUP(B160,'Wilo Price List'!B:H,5,FALSE) -> £19,864 | G160: PG03 | H160: 760
B161: 2160875 | C161: IL100/400-37/4 | D161: 1 Pump | E161: CronoLine-IL | F161: =VLOOKUP(B161,'Wilo Price List'!B:H,5,FALSE) -> £20,270 | G161: PG03 | H161: 760
B162: 2151496 | C162: IL100/400-45/4 | D162: 1 Pump | E162: CronoLine-IL | F162: =VLOOKUP(B162,'Wilo Price List'!B:H,5,FALSE) -> £20,795 | G162: PG03 | H162: 760
B164: 2120792 | C164: IL125/145-1,5/4-IE3 | D164: 1 Pump | E164: CronoLine-IL | F164: =VLOOKUP(B164,'Wilo Price List'!B:H,5,FALSE) -> £4,176 | G164: PG03 | H164: 620
B165: 2120935 | C165: IL125/145-15/2-IE3 | D165: 1 Pump | E165: CronoLine-IL | F165: =VLOOKUP(B165,'Wilo Price List'!B:H,5,FALSE) -> £7,805 | G165: PG03 | H165: 620
B166: 2120936 | C166: IL125/150-18,5/2-IE3 | D166: 1 Pump | E166: CronoLine-IL | F166: =VLOOKUP(B166,'Wilo Price List'!B:H,5,FALSE) -> £8,527 | G166: PG03 | H166: 620
B167: 2120793 | C167: IL125/150-2,2/4-IE3 | D167: 1 Pump | E167: CronoLine-IL | F167: =VLOOKUP(B167,'Wilo Price List'!B:H,5,FALSE) -> £4,379 | G167: PG03 | H167: 620
B168: 2120937 | C168: IL125/160-22/2-IE3 | D168: 1 Pump | E168: CronoLine-IL | F168: =VLOOKUP(B168,'Wilo Price List'!B:H,5,FALSE) -> £9,462 | G168: PG03 | H168: 620
B169: 2120794 | C169: IL125/160-3/4-IE3 | D169: 1 Pump | E169: CronoLine-IL | F169: =VLOOKUP(B169,'Wilo Price List'!B:H,5,FALSE) -> £4,461 | G169: PG03 | H169: 620
B170: 2120938 | C170: IL125/165-30/2-IE3 | D170: 1 Pump | E170: CronoLine-IL | F170: =VLOOKUP(B170,'Wilo Price List'!B:H,5,FALSE) -> £11,409 | G170: PG03 | H170: 620
B171: 2120939 | C171: IL125/170-37/2-IE3 | D171: 1 Pump | E171: CronoLine-IL | F171: =VLOOKUP(B171,'Wilo Price List'!B:H,5,FALSE) -> £12,144 | G171: PG03 | H171: 620
B172: 2120795 | C172: IL125/170-4/4-IE3 | D172: 1 Pump | E172: CronoLine-IL | F172: =VLOOKUP(B172,'Wilo Price List'!B:H,5,FALSE) -> £4,733 | G172: PG03 | H172: 620
B173: 2120796 | C173: IL125/190-4/4-IE3 | D173: 1 Pump | E173: CronoLine-IL | F173: =VLOOKUP(B173,'Wilo Price List'!B:H,5,FALSE) -> £4,733 | G173: PG03 | H173: 620
B174: 2120797 | C174: IL125/210-5,5/4-IE3 | D174: 1 Pump | E174: CronoLine-IL | F174: =VLOOKUP(B174,'Wilo Price List'!B:H,5,FALSE) -> £5,429 | G174: PG03 | H174: 620
B175: 2120798 | C175: IL125/220-5,5/4-IE3 | D175: 1 Pump | E175: CronoLine-IL | F175: =VLOOKUP(B175,'Wilo Price List'!B:H,5,FALSE) -> £5,429 | G175: PG03 | H175: 620
B176: 2120799 | C176: IL125/220-7,5/4-IE3 | D176: 1 Pump | E176: CronoLine-IL | F176: =VLOOKUP(B176,'Wilo Price List'!B:H,5,FALSE) -> £6,405 | G176: PG03 | H176: 620
B177: 2120800 | C177: IL125/250-11/4-IE3 | D177: 1 Pump | E177: CronoLine-IL | F177: =VLOOKUP(B177,'Wilo Price List'!B:H,5,FALSE) -> £7,323 | G177: PG03 | H177: 620
B178: 2120801 | C178: IL125/270-11/4-IE3 | D178: 1 Pump | E178: CronoLine-IL | F178: =VLOOKUP(B178,'Wilo Price List'!B:H,5,FALSE) -> £7,323 | G178: PG03 | H178: 620
B179: 2120802 | C179: IL125/270-15/4-IE3 | D179: 1 Pump | E179: CronoLine-IL | F179: =VLOOKUP(B179,'Wilo Price List'!B:H,5,FALSE) -> £8,545 | G179: PG03 | H179: 620
B180: 2120803 | C180: IL125/300-15/4-IE3 | D180: 1 Pump | E180: CronoLine-IL | F180: =VLOOKUP(B180,'Wilo Price List'!B:H,5,FALSE) -> £8,545 | G180: PG03 | H180: 700
B181: 2120804 | C181: IL125/300-18,5/4-IE3 | D181: 1 Pump | E181: CronoLine-IL | F181: =VLOOKUP(B181,'Wilo Price List'!B:H,5,FALSE) -> £9,108 | G181: PG03 | H181: 700
B182: 2120805 | C182: IL125/320-18,5/4-IE3 | D182: 1 Pump | E182: CronoLine-IL | F182: =VLOOKUP(B182,'Wilo Price List'!B:H,5,FALSE) -> £9,108 | G182: PG03 | H182: 700
B183: 2120806 | C183: IL125/320-22/4-IE3 | D183: 1 Pump | E183: CronoLine-IL | F183: =VLOOKUP(B183,'Wilo Price List'!B:H,5,FALSE) -> £9,823 | G183: PG03 | H183: 700
B184: 2120807 | C184: IL125/340-22/4-IE3 | D184: 1 Pump | E184: CronoLine-IL | F184: =VLOOKUP(B184,'Wilo Price List'!B:H,5,FALSE) -> £9,823 | G184: PG03 | H184: 700
B185: 2120808 | C185: IL125/340-30/4-IE3 | D185: 1 Pump | E185: CronoLine-IL | F185: =VLOOKUP(B185,'Wilo Price List'!B:H,5,FALSE) -> £10,461 | G185: PG03 | H185: 700
B186: 2169767 | C186: IL125/380-30/4 | D186: 1 Pump | E186: CronoLine-IL | F186: =VLOOKUP(B186,'Wilo Price List'!B:H,5,FALSE) -> £13,139 | G186: PG03 | H186: 860
B187: 2160655 | C187: IL125/380-37/4 | D187: 1 Pump | E187: CronoLine-IL | F187: =VLOOKUP(B187,'Wilo Price List'!B:H,5,FALSE) -> £19,250 | G187: PG03 | H187: 860
B188: 2169766 | C188: IL125/390-37/4 | D188: 1 Pump | E188: CronoLine-IL | F188: =VLOOKUP(B188,'Wilo Price List'!B:H,5,FALSE) -> £19,250 | G188: PG03 | H188: 860
B189: 2160654 | C189: IL125/390-45/4 | D189: 1 Pump | E189: CronoLine-IL | F189: =VLOOKUP(B189,'Wilo Price List'!B:H,5,FALSE) -> £19,772 | G189: PG03 | H189: 860
B190: 2169765 | C190: IL125/400-45/4 | D190: 1 Pump | E190: CronoLine-IL | F190: =VLOOKUP(B190,'Wilo Price List'!B:H,5,FALSE) -> £19,772 | G190: PG03 | H190: 860
B191: 2160653 | C191: IL125/400-55/4 | D191: 1 Pump | E191: CronoLine-IL | F191: =VLOOKUP(B191,'Wilo Price List'!B:H,5,FALSE) -> £21,044 | G191: PG03 | H191: 860
B193: 2120809 | C193: IL150/190-5,5/4-IE3 | D193: 1 Pump | E193: CronoLine-IL | F193: =VLOOKUP(B193,'Wilo Price List'!B:H,5,FALSE) -> £5,494 | G193: PG03 | H193: 700
B194: 2120810 | C194: IL150/200-7,5/4-IE3 | D194: 1 Pump | E194: CronoLine-IL | F194: =VLOOKUP(B194,'Wilo Price List'!B:H,5,FALSE) -> £7,192 | G194: PG03 | H194: 700
B195: 2120811 | C195: IL150/220-11/4-IE3 | D195: 1 Pump | E195: CronoLine-IL | F195: =VLOOKUP(B195,'Wilo Price List'!B:H,5,FALSE) -> £7,552 | G195: PG03 | H195: 700
B196: 2120812 | C196: IL150/250-15/4-IE3 | D196: 1 Pump | E196: CronoLine-IL | F196: =VLOOKUP(B196,'Wilo Price List'!B:H,5,FALSE) -> £8,599 | G196: PG03 | H196: 700
B197: 2120813 | C197: IL150/260-15/4-IE3 | D197: 1 Pump | E197: CronoLine-IL | F197: =VLOOKUP(B197,'Wilo Price List'!B:H,5,FALSE) -> £8,599 | G197: PG03 | H197: 700
B198: 2120814 | C198: IL150/260-18,5/4-IE3 | D198: 1 Pump | E198: CronoLine-IL | F198: =VLOOKUP(B198,'Wilo Price List'!B:H,5,FALSE) -> £9,930 | G198: PG03 | H198: 700
B199: 2120815 | C199: IL150/270-18,5/4-IE3 | D199: 1 Pump | E199: CronoLine-IL | F199: =VLOOKUP(B199,'Wilo Price List'!B:H,5,FALSE) -> £9,930 | G199: PG03 | H199: 700
B200: 2120816 | C200: IL150/270-22/4-IE3 | D200: 1 Pump | E200: CronoLine-IL | F200: =VLOOKUP(B200,'Wilo Price List'!B:H,5,FALSE) -> £10,779 | G200: PG03 | H200: 700
B201: 2142043 | C201: IL150/305-30/4-IE3 | D201: 1 Pump | E201: CronoLine-IL | F201: =VLOOKUP(B201,'Wilo Price List'!B:H,5,FALSE) -> £13,900 | G201: PG03 | H201: 770
B202: 2142044 | C202: IL150/325-30/4-IE3 | D202: 1 Pump | E202: CronoLine-IL | F202: =VLOOKUP(B202,'Wilo Price List'!B:H,5,FALSE) -> £13,900 | G202: PG03 | H202: 770
B203: 2142045 | C203: IL150/325-37/4-IE3 | D203: 1 Pump | E203: CronoLine-IL | F203: =VLOOKUP(B203,'Wilo Price List'!B:H,5,FALSE) -> £14,681 | G203: PG03 | H203: 770
B204: 2142046 | C204: IL150/335-37/4-IE3 | D204: 1 Pump | E204: CronoLine-IL | F204: =VLOOKUP(B204,'Wilo Price List'!B:H,5,FALSE) -> £14,681 | G204: PG03 | H204: 770
B205: 2142047 | C205: IL150/335-45/4-IE3 | D205: 1 Pump | E205: CronoLine-IL | F205: =VLOOKUP(B205,'Wilo Price List'!B:H,5,FALSE) -> £17,243 | G205: PG03 | H205: 770
B206: 2169772 | C206: IL150/360-30/4 | D206: 1 Pump | E206: CronoLine-IL | F206: =VLOOKUP(B206,'Wilo Price List'!B:H,5,FALSE) -> £13,900 | G206: PG03 | H206: 940
B207: 2160663 | C207: IL150/360-37/4 | D207: 1 Pump | E207: CronoLine-IL | F207: =VLOOKUP(B207,'Wilo Price List'!B:H,5,FALSE) -> £18,655 | G207: PG03 | H207: 940
B208: 2169771 | C208: IL150/370-37/4 | D208: 1 Pump | E208: CronoLine-IL | F208: =VLOOKUP(B208,'Wilo Price List'!B:H,5,FALSE) -> £18,655 | G208: PG03 | H208: 940
B209: 2160662 | C209: IL150/370-45/4 | D209: 1 Pump | E209: CronoLine-IL | F209: =VLOOKUP(B209,'Wilo Price List'!B:H,5,FALSE) -> £19,177 | G209: PG03 | H209: 940
B210: 2169770 | C210: IL150/380-45/4 | D210: 1 Pump | E210: CronoLine-IL | F210: =VLOOKUP(B210,'Wilo Price List'!B:H,5,FALSE) -> £19,177 | G210: PG03 | H210: 940
... 56 more rows

Sheet IPL
B2: IPL | J2: Home
B5: Article No. (or variant) | C5: Article description | D5: Type (Pump / Accessory / Spare Part / Addon / Service) | E5: Product range | F5: List Price | G5: Price group | H5: Port to Port (MM)
B6: 2089569 | C6: IPL25/70-0,12/2 | D6: 1 Pump | E6: VeroLine-IPL | F6: =VLOOKUP(B6,'Wilo Price List'!B:H,5,FALSE) -> £997 | G6: PG03 | H6: 180
B7: 2089570 | C7: IPL25/80-0,12/2 | D7: 1 Pump | E7: VeroLine-IPL | F7: =VLOOKUP(B7,'Wilo Price List'!B:H,5,FALSE) -> £993 | G7: PG03 | H7: 180
B8: 2089571 | C8: IPL25/85-0,18/2 | D8: 1 Pump | E8: VeroLine-IPL | F8: =VLOOKUP(B8,'Wilo Price List'!B:H,5,FALSE) -> £1,039 | G8: PG03 | H8: 180
B9: 2089572 | C9: IPL25/90-0,25/2 | D9: 1 Pump | E9: VeroLine-IPL | F9: =VLOOKUP(B9,'Wilo Price List'!B:H,5,FALSE) -> £1,049 | G9: PG03 | H9: 180
B11: 2089573 | C11: IPL30/70-0,12/2 | D11: 1 Pump | E11: VeroLine-IPL | F11: =VLOOKUP(B11,'Wilo Price List'!B:H,5,FALSE) -> £999 | G11: PG03 | H11: 180
B12: 2089574 | C12: IPL30/80-0,12/2 | D12: 1 Pump | E12: VeroLine-IPL | F12: =VLOOKUP(B12,'Wilo Price List'!B:H,5,FALSE) -> £996 | G12: PG03 | H12: 180
B13: 2089575 | C13: IPL30/85-0,18/2 | D13: 1 Pump | E13: VeroLine-IPL | F13: =VLOOKUP(B13,'Wilo Price List'!B:H,5,FALSE) -> £1,038 | G13: PG03 | H13: 180
B14: 2089576 | C14: IPL30/90-0,25/2 | D14: 1 Pump | E14: VeroLine-IPL | F14: =VLOOKUP(B14,'Wilo Price List'!B:H,5,FALSE) -> £1,048 | G14: PG03 | H14: 180
B16: 2150342 | C16: IPL32/105-0,12/4 | D16: 1 Pump | E16: VeroLine-IPL | F16: =VLOOKUP(B16,'Wilo Price List'!B:H,5,FALSE) -> £1,239 | G16: PG03 | H16: 260
B17: 2152928 | C17: IPL32/105-0,75/2-IE3 | D17: 1 Pump | E17: VeroLine-IPL | F17: =VLOOKUP(B17,'Wilo Price List'!B:H,5,FALSE) -> £1,172 | G17: PG03 | H17: 260
B18: 2152929 | C18: IPL32/125-1,1/2-IE3 | D18: 1 Pump | E18: VeroLine-IPL | F18: =VLOOKUP(B18,'Wilo Price List'!B:H,5,FALSE) -> £1,319 | G18: PG03 | H18: 260
B19: 2150343 | C19: IPL32/135-0,25/4 | D19: 1 Pump | E19: VeroLine-IPL | F19: =VLOOKUP(B19,'Wilo Price List'!B:H,5,FALSE) -> £1,083 | G19: PG03 | H19: 260
B20: 2152930 | C20: IPL32/135-1,1/2-IE3 | D20: 1 Pump | E20: VeroLine-IPL | F20: =VLOOKUP(B20,'Wilo Price List'!B:H,5,FALSE) -> £1,341 | G20: PG03 | H20: 260
B21: 2152931 | C21: IPL32/135-1,5/2-IE3 | D21: 1 Pump | E21: VeroLine-IPL | F21: =VLOOKUP(B21,'Wilo Price List'!B:H,5,FALSE) -> £1,420 | G21: PG03 | H21: 260
B22: 2121199 | C22: IPL32/165-3/2-IE3 | D22: 1 Pump | E22: VeroLine-IPL | F22: =VLOOKUP(B22,'Wilo Price List'!B:H,5,FALSE) -> £1,978 | G22: PG03 | H22: 320
B23: 2121200 | C23: IPL32/175-4/2-IE3 | D23: 1 Pump | E23: VeroLine-IPL | F23: =VLOOKUP(B23,'Wilo Price List'!B:H,5,FALSE) -> £2,257 | G23: PG03 | H23: 320
B24: 2150335 | C24: IPL32/85-0,37/2 | D24: 1 Pump | E24: VeroLine-IPL | F24: =VLOOKUP(B24,'Wilo Price List'!B:H,5,FALSE) -> £990 | G24: PG03 | H24: 260
B26: 2089553 | C26: IPL40/110-0,12/4 | D26: 1 Pump | E26: VeroLine-IPL | F26: =VLOOKUP(B26,'Wilo Price List'!B:H,5,FALSE) -> £1,174 | G26: PG03 | H26: 250
B27: 2089585 | C27: IPL40/115-0,55/2 | D27: 1 Pump | E27: VeroLine-IPL | F27: =VLOOKUP(B27,'Wilo Price List'!B:H,5,FALSE) -> £1,265 | G27: PG03 | H27: 250
B28: 2121201 | C28: IPL40/120-1,5/2-IE3 | D28: 1 Pump | E28: VeroLine-IPL | F28: =VLOOKUP(B28,'Wilo Price List'!B:H,5,FALSE) -> £1,361 | G28: PG03 | H28: 320
B29: 2089554 | C29: IPL40/130-0,25/4 | D29: 1 Pump | E29: VeroLine-IPL | F29: =VLOOKUP(B29,'Wilo Price List'!B:H,5,FALSE) -> £1,078 | G29: PG03 | H29: 320
B30: 2121202 | C30: IPL40/130-2,2/2-IE3 | D30: 1 Pump | E30: VeroLine-IPL | F30: =VLOOKUP(B30,'Wilo Price List'!B:H,5,FALSE) -> £1,521 | G30: PG03 | H30: 320
B31: 2121203 | C31: IPL40/150-3/2-IE3 | D31: 1 Pump | E31: VeroLine-IPL | F31: =VLOOKUP(B31,'Wilo Price List'!B:H,5,FALSE) -> £1,820 | G31: PG03 | H31: 320
B32: 2089555 | C32: IPL40/160-0,37/4 | D32: 1 Pump | E32: VeroLine-IPL | F32: =VLOOKUP(B32,'Wilo Price List'!B:H,5,FALSE) -> £1,289 | G32: PG03 | H32: 320
B33: 2121204 | C33: IPL40/160-4/2-IE3 | D33: 1 Pump | E33: VeroLine-IPL | F33: =VLOOKUP(B33,'Wilo Price List'!B:H,5,FALSE) -> £1,941 | G33: PG03 | H33: 320
B34: 2121205 | C34: IPL40/165-4/2-IE3 | D34: 1 Pump | E34: VeroLine-IPL | F34: =VLOOKUP(B34,'Wilo Price List'!B:H,5,FALSE) -> £2,213 | G34: PG03 | H34: 340
B35: 2121206 | C35: IPL40/175-5,5/2-IE3 | D35: 1 Pump | E35: VeroLine-IPL | F35: =VLOOKUP(B35,'Wilo Price List'!B:H,5,FALSE) -> £2,814 | G35: PG03 | H35: 340
B36: 2121207 | C36: IPL40/195-7,5/2-IE3 | D36: 1 Pump | E36: VeroLine-IPL | F36: =VLOOKUP(B36,'Wilo Price List'!B:H,5,FALSE) -> £2,970 | G36: PG03 | H36: 440
B37: 2155494 | C37: IPL40/75-0,12/2 | D37: 1 Pump | E37: VeroLine-IPL | F37: =VLOOKUP(B37,'Wilo Price List'!B:H,5,FALSE) -> £1,228 | G37: PG03 | H37: 250
B38: 2089695 | C38: IPL40/80-0,09/4 | D38: 1 Pump | E38: VeroLine-IPL | F38: =VLOOKUP(B38,'Wilo Price List'!B:H,5,FALSE) -> £1,511 | G38: PG03 | H38: 250
B39: 2089584 | C39: IPL40/90-0,37/2 | D39: 1 Pump | E39: VeroLine-IPL | F39: =VLOOKUP(B39,'Wilo Price List'!B:H,5,FALSE) -> £1,141 | G39: PG03 | H39: 250
B41: 2150344 | C41: IPL50/105-0,12/4 | D41: 1 Pump | E41: VeroLine-IPL | F41: =VLOOKUP(B41,'Wilo Price List'!B:H,5,FALSE) -> £1,062 | G41: PG03 | H41: 280
B42: 2152934 | C42: IPL50/105-0,75/2-IE3 | D42: 1 Pump | E42: VeroLine-IPL | F42: =VLOOKUP(B42,'Wilo Price List'!B:H,5,FALSE) -> £1,507 | G42: PG03 | H42: 280
B43: 2112395 | C43: IPL50/120-0,25/4 | D43: 1 Pump | E43: VeroLine-IPL | F43: =VLOOKUP(B43,'Wilo Price List'!B:H,5,FALSE) -> £1,204 | G43: PG03 | H43: 340
B44: 2121209 | C44: IPL50/120-1,5/2-IE3 | D44: 1 Pump | E44: VeroLine-IPL | F44: =VLOOKUP(B44,'Wilo Price List'!B:H,5,FALSE) -> £1,550 | G44: PG03 | H44: 340
B45: 2089557 | C45: IPL50/130-0,37/4 | D45: 1 Pump | E45: VeroLine-IPL | F45: =VLOOKUP(B45,'Wilo Price List'!B:H,5,FALSE) -> £1,322 | G45: PG03 | H45: 340
B46: 2121210 | C46: IPL50/130-2,2/2-IE3 | D46: 1 Pump | E46: VeroLine-IPL | F46: =VLOOKUP(B46,'Wilo Price List'!B:H,5,FALSE) -> £1,646 | G46: PG03 | H46: 340
B47: 2121211 | C47: IPL50/140-3/2-IE3 | D47: 1 Pump | E47: VeroLine-IPL | F47: =VLOOKUP(B47,'Wilo Price List'!B:H,5,FALSE) -> £1,845 | G47: PG03 | H47: 340
B48: 2121212 | C48: IPL50/150-4/2-IE3 | D48: 1 Pump | E48: VeroLine-IPL | F48: =VLOOKUP(B48,'Wilo Price List'!B:H,5,FALSE) -> £1,962 | G48: PG03 | H48: 340
B49: 2121213 | C49: IPL50/155-4/2-IE3 | D49: 1 Pump | E49: VeroLine-IPL | F49: =VLOOKUP(B49,'Wilo Price List'!B:H,5,FALSE) -> £2,251 | G49: PG03 | H49: 340
B50: 2089558 | C50: IPL50/160-0,55/4 | D50: 1 Pump | E50: VeroLine-IPL | F50: =VLOOKUP(B50,'Wilo Price List'!B:H,5,FALSE) -> £1,482 | G50: PG03 | H50: 340
B51: 2121214 | C51: IPL50/165-5,5/2-IE3 | D51: 1 Pump | E51: VeroLine-IPL | F51: =VLOOKUP(B51,'Wilo Price List'!B:H,5,FALSE) -> £2,760 | G51: PG03 | H51: 340
B52: 2121215 | C52: IPL50/175-5,5/2-IE3 | D52: 1 Pump | E52: VeroLine-IPL | F52: =VLOOKUP(B52,'Wilo Price List'!B:H,5,FALSE) -> £2,760 | G52: PG03 | H52: 340
B53: 2121216 | C53: IPL50/175-7,5/2-IE3 | D53: 1 Pump | E53: VeroLine-IPL | F53: =VLOOKUP(B53,'Wilo Price List'!B:H,5,FALSE) -> £2,888 | G53: PG03 | H53: 340
B54: 2121217 | C54: IPL50/185-7,5/2-IE3 | D54: 1 Pump | E54: VeroLine-IPL | F54: =VLOOKUP(B54,'Wilo Price List'!B:H,5,FALSE) -> £3,075 | G54: PG03 | H54: 440
B55: 2152442 | C55: IPL50/95-0,55/2 | D55: 1 Pump | E55: VeroLine-IPL | F55: =VLOOKUP(B55,'Wilo Price List'!B:H,5,FALSE) -> £1,419 | G55: PG03 | H55: 280
B57: 2129203 | C57: IPL65/110-0,25/4 | D57: 1 Pump | E57: VeroLine-IPL | F57: =VLOOKUP(B57,'Wilo Price List'!B:H,5,FALSE) -> £1,413 | G57: PG03 | H57: 340
B58: 2121219 | C58: IPL65/110-2,2/2-IE3 | D58: 1 Pump | E58: VeroLine-IPL | F58: =VLOOKUP(B58,'Wilo Price List'!B:H,5,FALSE) -> £1,915 | G58: PG03 | H58: 340
B59: 2121218 | C59: IPL65/115-1,5/2-IE3 | D59: 1 Pump | E59: VeroLine-IPL | F59: =VLOOKUP(B59,'Wilo Price List'!B:H,5,FALSE) -> £1,841 | G59: PG03 | H59: 340
B60: 2129204 | C60: IPL65/120-0,37/4 | D60: 1 Pump | E60: VeroLine-IPL | F60: =VLOOKUP(B60,'Wilo Price List'!B:H,5,FALSE) -> £1,482 | G60: PG03 | H60: 340
B61: 2121220 | C61: IPL65/120-3/2-IE3 | D61: 1 Pump | E61: VeroLine-IPL | F61: =VLOOKUP(B61,'Wilo Price List'!B:H,5,FALSE) -> £2,081 | G61: PG03 | H61: 340
B62: 2129205 | C62: IPL65/130-0,55/4 | D62: 1 Pump | E62: VeroLine-IPL | F62: =VLOOKUP(B62,'Wilo Price List'!B:H,5,FALSE) -> £1,516 | G62: PG03 | H62: 340
B63: 2121221 | C63: IPL65/130-4/2-IE3 | D63: 1 Pump | E63: VeroLine-IPL | F63: =VLOOKUP(B63,'Wilo Price List'!B:H,5,FALSE) -> £2,192 | G63: PG03 | H63: 340
B64: 2121222 | C64: IPL65/145-5,5/2-IE3 | D64: 1 Pump | E64: VeroLine-IPL | F64: =VLOOKUP(B64,'Wilo Price List'!B:H,5,FALSE) -> £2,643 | G64: PG03 | H64: 340
B65: 2121223 | C65: IPL65/155-5,5/2-IE3 | D65: 1 Pump | E65: VeroLine-IPL | F65: =VLOOKUP(B65,'Wilo Price List'!B:H,5,FALSE) -> £2,616 | G65: PG03 | H65: 340
B66: 2121224 | C66: IPL65/155-7,5/2-IE3 | D66: 1 Pump | E66: VeroLine-IPL | F66: =VLOOKUP(B66,'Wilo Price List'!B:H,5,FALSE) -> £2,798 | G66: PG03 | H66: 340
B67: 2121225 | C67: IPL65/165-5,5/2-IE3 | D67: 1 Pump | E67: VeroLine-IPL | F67: =VLOOKUP(B67,'Wilo Price List'!B:H,5,FALSE) -> £2,977 | G67: PG03 | H67: 430
B68: 2121226 | C68: IPL65/175-5,5/2-IE3 | D68: 1 Pump | E68: VeroLine-IPL | F68: =VLOOKUP(B68,'Wilo Price List'!B:H,5,FALSE) -> £2,978 | G68: PG03 | H68: 430
B69: 2121227 | C69: IPL65/175-7,5/2-IE3 | D69: 1 Pump | E69: VeroLine-IPL | F69: =VLOOKUP(B69,'Wilo Price List'!B:H,5,FALSE) -> £3,196 | G69: PG03 | H69: 430
B71: 2121229 | C71: IPL80/105-3/2-IE3 | D71: 1 Pump | E71: VeroLine-IPL | F71: =VLOOKUP(B71,'Wilo Price List'!B:H,5,FALSE) -> £2,185 | G71: PG03 | H71: 360
B72: 2121189 | C72: IPL80/110-4/2-IE3 | D72: 1 Pump | E72: VeroLine-IPL | F72: =VLOOKUP(B72,'Wilo Price List'!B:H,5,FALSE) -> £2,293 | G72: PG03 | H72: 360
B73: 2121228 | C73: IPL80/115-2,2/2-IE3 | D73: 1 Pump | E73: VeroLine-IPL | F73: =VLOOKUP(B73,'Wilo Price List'!B:H,5,FALSE) -> £2,132 | G73: PG03 | H73: 360
B74: 2129206 | C74: IPL80/120-0,55/4 | D74: 1 Pump | E74: VeroLine-IPL | F74: =VLOOKUP(B74,'Wilo Price List'!B:H,5,FALSE) -> £1,663 | G74: PG03 | H74: 360
B75: 2121230 | C75: IPL80/120-4/2-IE3 | D75: 1 Pump | E75: VeroLine-IPL | F75: =VLOOKUP(B75,'Wilo Price List'!B:H,5,FALSE) -> £2,293 | G75: PG03 | H75: 360
B76: 2121190 | C76: IPL80/125-0,75/4-IE3 | D76: 1 Pump | E76: VeroLine-IPL | F76: =VLOOKUP(B76,'Wilo Price List'!B:H,5,FALSE) -> £1,859 | G76: PG03 | H76: 360
B77: 2121191 | C77: IPL80/140-1,1/4-IE3 | D77: 1 Pump | E77: VeroLine-IPL | F77: =VLOOKUP(B77,'Wilo Price List'!B:H,5,FALSE) -> £2,074 | G77: PG03 | H77: 360
B78: 2121231 | C78: IPL80/145-5,5/2-IE3 | D78: 1 Pump | E78: VeroLine-IPL | F78: =VLOOKUP(B78,'Wilo Price List'!B:H,5,FALSE) -> £2,920 | G78: PG03 | H78: 400
B79: 2121232 | C79: IPL80/155-7,5/2-IE3 | D79: 1 Pump | E79: VeroLine-IPL | F79: =VLOOKUP(B79,'Wilo Price List'!B:H,5,FALSE) -> £2,986 | G79: PG03 | H79: 440
B81: 2121192 | C81: IPL100/135-1,1/4-IE3 | D81: 1 Pump | E81: VeroLine-IPL | F81: =VLOOKUP(B81,'Wilo Price List'!B:H,5,FALSE) -> £3,132 | G81: PG03 | H81: 500
B82: 2121193 | C82: IPL100/145-1,5/4-IE3 | D82: 1 Pump | E82: VeroLine-IPL | F82: =VLOOKUP(B82,'Wilo Price List'!B:H,5,FALSE) -> £3,250 | G82: PG03 | H82: 500
B83: 2121194 | C83: IPL100/165-2,2/4-IE3 | D83: 1 Pump | E83: VeroLine-IPL | F83: =VLOOKUP(B83,'Wilo Price List'!B:H,5,FALSE) -> £3,475 | G83: PG03 | H83: 500
B84: 2121195 | C84: IPL100/175-3/4-IE3 | D84: 1 Pump | E84: VeroLine-IPL | F84: =VLOOKUP(B84,'Wilo Price List'!B:H,5,FALSE) -> £3,753 | G84: PG03 | H84: 500

Sheet DL
B2: DL | J2: Home
B5: Article No. (or variant) | C5: Article description | D5: Type (Pump / Accessory / Spare Part / Addon / Service) | E5: Product range | F5: List Price | G5: Price group | H5: Port to Port (MM)
B6: 2089227 | C6: DL32/140-0,25/4 | D6: 1 Pump | E6: CronoTwin-DL | F6: =VLOOKUP(B6,'Wilo Price List'!B:H,5,FALSE) -> £4,497 | G6: PG03 | H6: 320
B7: 2121010 | C7: DL32/140-1,5/2-IE3 | D7: 1 Pump | E7: CronoTwin-DL | F7: =VLOOKUP(B7,'Wilo Price List'!B:H,5,FALSE) -> £4,719 | G7: PG03 | H7: 320
B8: 2089226 | C8: DL32/150-0,37/4 | D8: 1 Pump | E8: CronoTwin-DL | F8: =VLOOKUP(B8,'Wilo Price List'!B:H,5,FALSE) -> £4,529 | G8: PG03 | H8: 320
B9: 2121011 | C9: DL32/150-2,2/2-IE3 | D9: 1 Pump | E9: CronoTwin-DL | F9: =VLOOKUP(B9,'Wilo Price List'!B:H,5,FALSE) -> £4,825 | G9: PG03 | H9: 320
B10: 2121012 | C10: DL32/160-2,2/2-IE3 | D10: 1 Pump | E10: CronoTwin-DL | F10: =VLOOKUP(B10,'Wilo Price List'!B:H,5,FALSE) -> £4,819 | G10: PG03 | H10: 320
B11: 2121013 | C11: DL32/160-3/2-IE3 | D11: 1 Pump | E11: CronoTwin-DL | F11: =VLOOKUP(B11,'Wilo Price List'!B:H,5,FALSE) -> £5,142 | G11: PG03 | H11: 320
B12: 2063734 | C12: DL32/170-0,55/4 | D12: 1 Pump | E12: CronoTwin-DL | F12: =VLOOKUP(B12,'Wilo Price List'!B:H,5,FALSE) -> £4,941 | G12: PG03 | H12: 320
B13: 2121014 | C13: DL32/170-3/2-IE3 | D13: 1 Pump | E13: CronoTwin-DL | F13: =VLOOKUP(B13,'Wilo Price List'!B:H,5,FALSE) -> £5,134 | G13: PG03 | H13: 320
B14: 2121015 | C14: DL32/170-4/2-IE3 | D14: 1 Pump | E14: CronoTwin-DL | F14: =VLOOKUP(B14,'Wilo Price List'!B:H,5,FALSE) -> £5,467 | G14: PG03 | H14: 320
B16: 2089239 | C16: DL40/140-0,25/4 | D16: 1 Pump | E16: CronoTwin-DL | F16: =VLOOKUP(B16,'Wilo Price List'!B:H,5,FALSE) -> £4,490 | G16: PG03 | H16: 340
B17: 2121016 | C17: DL40/140-2,2/2-IE3 | D17: 1 Pump | E17: CronoTwin-DL | F17: =VLOOKUP(B17,'Wilo Price List'!B:H,5,FALSE) -> £4,822 | G17: PG03 | H17: 340
B18: 2089238 | C18: DL40/150-0,37/4 | D18: 1 Pump | E18: CronoTwin-DL | F18: =VLOOKUP(B18,'Wilo Price List'!B:H,5,FALSE) -> £4,541 | G18: PG03 | H18: 340
B19: 2121017 | C19: DL40/150-3/2-IE3 | D19: 1 Pump | E19: CronoTwin-DL | F19: =VLOOKUP(B19,'Wilo Price List'!B:H,5,FALSE) -> £5,156 | G19: PG03 | H19: 340
B20: 2089237 | C20: DL40/160-0,55/4 | D20: 1 Pump | E20: CronoTwin-DL | F20: =VLOOKUP(B20,'Wilo Price List'!B:H,5,FALSE) -> £4,922 | G20: PG03 | H20: 340
B21: 2121018 | C21: DL40/160-4/2-IE3 | D21: 1 Pump | E21: CronoTwin-DL | F21: =VLOOKUP(B21,'Wilo Price List'!B:H,5,FALSE) -> £5,497 | G21: PG03 | H21: 340
B22: 2120943 | C22: DL40/170-0,75/4-IE3 | D22: 1 Pump | E22: CronoTwin-DL | F22: =VLOOKUP(B22,'Wilo Price List'!B:H,5,FALSE) -> £5,510 | G22: PG03 | H22: 340
B23: 2121019 | C23: DL40/170-5,5/2-IE3 | D23: 1 Pump | E23: CronoTwin-DL | F23: =VLOOKUP(B23,'Wilo Price List'!B:H,5,FALSE) -> £7,012 | G23: PG03 | H23: 340
B24: 2121020 | C24: DL40/200-7,5/2-IE3 | D24: 1 Pump | E24: CronoTwin-DL | F24: =VLOOKUP(B24,'Wilo Price List'!B:H,5,FALSE) -> £6,850 | G24: PG03 | H24: 440
B25: 2120944 | C25: DL40/210-1,1/4-IE3 | D25: 1 Pump | E25: CronoTwin-DL | F25: =VLOOKUP(B25,'Wilo Price List'!B:H,5,FALSE) -> £4,619 | G25: PG03 | H25: 440
B26: 2120945 | C26: DL40/220-1,5/4-IE3 | D26: 1 Pump | E26: CronoTwin-DL | F26: =VLOOKUP(B26,'Wilo Price List'!B:H,5,FALSE) -> £4,708 | G26: PG03 | H26: 440
B27: 2121021 | C27: DL40/220-11/2-IE3 | D27: 1 Pump | E27: CronoTwin-DL | F27: =VLOOKUP(B27,'Wilo Price List'!B:H,5,FALSE) -> £8,781 | G27: PG03 | H27: 440
B29: 2121022 | C29: DL50/110-1,5/2-IE3 | D29: 1 Pump | E29: CronoTwin-DL | F29: =VLOOKUP(B29,'Wilo Price List'!B:H,5,FALSE) -> £4,606 | G29: PG03 | H29: 340
B30: 2121023 | C30: DL50/120-2,2/2-IE3 | D30: 1 Pump | E30: CronoTwin-DL | F30: =VLOOKUP(B30,'Wilo Price List'!B:H,5,FALSE) -> £4,751 | G30: PG03 | H30: 340
B31: 2121024 | C31: DL50/130-3/2-IE3 | D31: 1 Pump | E31: CronoTwin-DL | F31: =VLOOKUP(B31,'Wilo Price List'!B:H,5,FALSE) -> £5,219 | G31: PG03 | H31: 340
B32: 2121025 | C32: DL50/140-3/2-IE3 | D32: 1 Pump | E32: CronoTwin-DL | F32: =VLOOKUP(B32,'Wilo Price List'!B:H,5,FALSE) -> £5,156 | G32: PG03 | H32: 340
B33: 2121026 | C33: DL50/140-4/2-IE3 | D33: 1 Pump | E33: CronoTwin-DL | F33: =VLOOKUP(B33,'Wilo Price List'!B:H,5,FALSE) -> £5,497 | G33: PG03 | H33: 340
B34: 2089253 | C34: DL50/150-0,55/4 | D34: 1 Pump | E34: CronoTwin-DL | F34: =VLOOKUP(B34,'Wilo Price List'!B:H,5,FALSE) -> £4,701 | G34: PG03 | H34: 340
B35: 2120946 | C35: DL50/160-0,75/4-IE3 | D35: 1 Pump | E35: CronoTwin-DL | F35: =VLOOKUP(B35,'Wilo Price List'!B:H,5,FALSE) -> £5,278 | G35: PG03 | H35: 340
B36: 2121027 | C36: DL50/160-5,5/2-IE3 | D36: 1 Pump | E36: CronoTwin-DL | F36: =VLOOKUP(B36,'Wilo Price List'!B:H,5,FALSE) -> £6,976 | G36: PG03 | H36: 340
B37: 2120947 | C37: DL50/170-1,1/4-IE3 | D37: 1 Pump | E37: CronoTwin-DL | F37: =VLOOKUP(B37,'Wilo Price List'!B:H,5,FALSE) -> £4,512 | G37: PG03 | H37: 340
B38: 2121028 | C38: DL50/170-5,5/2-IE3 | D38: 1 Pump | E38: CronoTwin-DL | F38: =VLOOKUP(B38,'Wilo Price List'!B:H,5,FALSE) -> £7,085 | G38: PG03 | H38: 340
B39: 2121029 | C39: DL50/170-7,5/2-IE3 | D39: 1 Pump | E39: CronoTwin-DL | F39: =VLOOKUP(B39,'Wilo Price List'!B:H,5,FALSE) -> £7,134 | G39: PG03 | H39: 340
B40: 2121030 | C40: DL50/180-7,5/2-IE3 | D40: 1 Pump | E40: CronoTwin-DL | F40: =VLOOKUP(B40,'Wilo Price List'!B:H,5,FALSE) -> £7,556 | G40: PG03 | H40: 440
B41: 2120948 | C41: DL50/200-1,5/4-IE3 | D41: 1 Pump | E41: CronoTwin-DL | F41: =VLOOKUP(B41,'Wilo Price List'!B:H,5,FALSE) -> £5,260 | G41: PG03 | H41: 440
B42: 2121031 | C42: DL50/210-11/2-IE3 | D42: 1 Pump | E42: CronoTwin-DL | F42: =VLOOKUP(B42,'Wilo Price List'!B:H,5,FALSE) -> £9,311 | G42: PG03 | H42: 440
B43: 2121032 | C43: DL50/220-11/2-IE3 | D43: 1 Pump | E43: CronoTwin-DL | F43: =VLOOKUP(B43,'Wilo Price List'!B:H,5,FALSE) -> £9,579 | G43: PG03 | H43: 440
B44: 2121033 | C44: DL50/220-15/2-IE3 | D44: 1 Pump | E44: CronoTwin-DL | F44: =VLOOKUP(B44,'Wilo Price List'!B:H,5,FALSE) -> £9,698 | G44: PG03 | H44: 440
B45: 2120949 | C45: DL50/220-2,2/4-IE3 | D45: 1 Pump | E45: CronoTwin-DL | F45: =VLOOKUP(B45,'Wilo Price List'!B:H,5,FALSE) -> £5,795 | G45: PG03 | H45: 440
B46: 2120950 | C46: DL50/260-3/4-IE3 | D46: 1 Pump | E46: CronoTwin-DL | F46: =VLOOKUP(B46,'Wilo Price List'!B:H,5,FALSE) -> £6,403 | G46: PG03 | H46: 440
B47: 2120951 | C47: DL50/270-3/4-IE3 | D47: 1 Pump | E47: CronoTwin-DL | F47: =VLOOKUP(B47,'Wilo Price List'!B:H,5,FALSE) -> £6,401 | G47: PG03 | H47: 440
B48: 2120952 | C48: DL50/270-4/4-IE3 | D48: 1 Pump | E48: CronoTwin-DL | F48: =VLOOKUP(B48,'Wilo Price List'!B:H,5,FALSE) -> £6,672 | G48: PG03 | H48: 440
B50: 2121034 | C50: DL65/110-3/2-IE3 | D50: 1 Pump | E50: CronoTwin-DL | F50: =VLOOKUP(B50,'Wilo Price List'!B:H,5,FALSE) -> £5,500 | G50: PG03 | H50: 340
B51: 2139468 | C51: DL65/120-0,55/4 | D51: 1 Pump | E51: CronoTwin-DL | F51: =VLOOKUP(B51,'Wilo Price List'!B:H,5,FALSE) -> £4,954 | G51: PG03 | H51: 340
B52: 2121035 | C52: DL65/120-3/2-IE3 | D52: 1 Pump | E52: CronoTwin-DL | F52: =VLOOKUP(B52,'Wilo Price List'!B:H,5,FALSE) -> £5,475 | G52: PG03 | H52: 340
B53: 2121036 | C53: DL65/120-4/2-IE3 | D53: 1 Pump | E53: CronoTwin-DL | F53: =VLOOKUP(B53,'Wilo Price List'!B:H,5,FALSE) -> £5,801 | G53: PG03 | H53: 340
B54: 2142054 | C54: DL65/130-0,75/4-IE3 | D54: 1 Pump | E54: CronoTwin-DL | F54: =VLOOKUP(B54,'Wilo Price List'!B:H,5,FALSE) -> £5,538 | G54: PG03 | H54: 340
B55: 2121037 | C55: DL65/130-5,5/2-IE3 | D55: 1 Pump | E55: CronoTwin-DL | F55: =VLOOKUP(B55,'Wilo Price List'!B:H,5,FALSE) -> £6,785 | G55: PG03 | H55: 340
B56: 2142055 | C56: DL65/140-1,1/4-IE3 | D56: 1 Pump | E56: CronoTwin-DL | F56: =VLOOKUP(B56,'Wilo Price List'!B:H,5,FALSE) -> £4,827 | G56: PG03 | H56: 340
B57: 2121038 | C57: DL65/140-5,5/2-IE3 | D57: 1 Pump | E57: CronoTwin-DL | F57: =VLOOKUP(B57,'Wilo Price List'!B:H,5,FALSE) -> £6,736 | G57: PG03 | H57: 340
B58: 2121039 | C58: DL65/140-7,5/2-IE3 | D58: 1 Pump | E58: CronoTwin-DL | F58: =VLOOKUP(B58,'Wilo Price List'!B:H,5,FALSE) -> £7,236 | G58: PG03 | H58: 340
B59: 2120953 | C59: DL65/150-0,75/4-IE3 | D59: 1 Pump | E59: CronoTwin-DL | F59: =VLOOKUP(B59,'Wilo Price List'!B:H,5,FALSE) -> £5,406 | G59: PG03 | H59: 430
B60: 2121040 | C60: DL65/150-5,5/2-IE3 | D60: 1 Pump | E60: CronoTwin-DL | F60: =VLOOKUP(B60,'Wilo Price List'!B:H,5,FALSE) -> £6,981 | G60: PG03 | H60: 430
B61: 2120954 | C61: DL65/160-1,1/4-IE3 | D61: 1 Pump | E61: CronoTwin-DL | F61: =VLOOKUP(B61,'Wilo Price List'!B:H,5,FALSE) -> £4,719 | G61: PG03 | H61: 430
B62: 2121041 | C62: DL65/160-5,5/2-IE3 | D62: 1 Pump | E62: CronoTwin-DL | F62: =VLOOKUP(B62,'Wilo Price List'!B:H,5,FALSE) -> £6,984 | G62: PG03 | H62: 430
B63: 2121042 | C63: DL65/160-7,5/2-IE3 | D63: 1 Pump | E63: CronoTwin-DL | F63: =VLOOKUP(B63,'Wilo Price List'!B:H,5,FALSE) -> £7,484 | G63: PG03 | H63: 430
B64: 2120955 | C64: DL65/170-1,1/4-IE3 | D64: 1 Pump | E64: CronoTwin-DL | F64: =VLOOKUP(B64,'Wilo Price List'!B:H,5,FALSE) -> £4,705 | G64: PG03 | H64: 430
B65: 2120956 | C65: DL65/170-1,5/4-IE3 | D65: 1 Pump | E65: CronoTwin-DL | F65: =VLOOKUP(B65,'Wilo Price List'!B:H,5,FALSE) -> £4,802 | G65: PG03 | H65: 430
B66: 2121043 | C66: DL65/170-11/2-IE3 | D66: 1 Pump | E66: CronoTwin-DL | F66: =VLOOKUP(B66,'Wilo Price List'!B:H,5,FALSE) -> £9,151 | G66: PG03 | H66: 430
B67: 2121044 | C67: DL65/200-11/2-IE3 | D67: 1 Pump | E67: CronoTwin-DL | F67: =VLOOKUP(B67,'Wilo Price List'!B:H,5,FALSE) -> £9,535 | G67: PG03 | H67: 475
B68: 2121045 | C68: DL65/200-15/2-IE3 | D68: 1 Pump | E68: CronoTwin-DL | F68: =VLOOKUP(B68,'Wilo Price List'!B:H,5,FALSE) -> £10,300 | G68: PG03 | H68: 475
B69: 2121046 | C69: DL65/210-15/2-IE3 | D69: 1 Pump | E69: CronoTwin-DL | F69: =VLOOKUP(B69,'Wilo Price List'!B:H,5,FALSE) -> £10,300 | G69: PG03 | H69: 475
B70: 2121047 | C70: DL65/210-18,5/2-IE3 | D70: 1 Pump | E70: CronoTwin-DL | F70: =VLOOKUP(B70,'Wilo Price List'!B:H,5,FALSE) -> £12,288 | G70: PG03 | H70: 475
B71: 2120957 | C71: DL65/210-2,2/4-IE3 | D71: 1 Pump | E71: CronoTwin-DL | F71: =VLOOKUP(B71,'Wilo Price List'!B:H,5,FALSE) -> £5,984 | G71: PG03 | H71: 475
B72: 2121048 | C72: DL65/220-18,5/2-IE3 | D72: 1 Pump | E72: CronoTwin-DL | F72: =VLOOKUP(B72,'Wilo Price List'!B:H,5,FALSE) -> £12,288 | G72: PG03 | H72: 475
B73: 2120958 | C73: DL65/220-2,2/4-IE3 | D73: 1 Pump | E73: CronoTwin-DL | F73: =VLOOKUP(B73,'Wilo Price List'!B:H,5,FALSE) -> £5,958 | G73: PG03 | H73: 475
B74: 2121049 | C74: DL65/220-22/2-IE3 | D74: 1 Pump | E74: CronoTwin-DL | F74: =VLOOKUP(B74,'Wilo Price List'!B:H,5,FALSE) -> £13,781 | G74: PG03 | H74: 475
B75: 2120959 | C75: DL65/220-3/4-IE3 | D75: 1 Pump | E75: CronoTwin-DL | F75: =VLOOKUP(B75,'Wilo Price List'!B:H,5,FALSE) -> £6,148 | G75: PG03 | H75: 475
B76: 2120960 | C76: DL65/250-3/4-IE3 | D76: 1 Pump | E76: CronoTwin-DL | F76: =VLOOKUP(B76,'Wilo Price List'!B:H,5,FALSE) -> £6,850 | G76: PG03 | H76: 475
B77: 2120961 | C77: DL65/250-4/4-IE3 | D77: 1 Pump | E77: CronoTwin-DL | F77: =VLOOKUP(B77,'Wilo Price List'!B:H,5,FALSE) -> £6,819 | G77: PG03 | H77: 475
B78: 2120962 | C78: DL65/270-5,5/4-IE3 | D78: 1 Pump | E78: CronoTwin-DL | F78: =VLOOKUP(B78,'Wilo Price List'!B:H,5,FALSE) -> £7,931 | G78: PG03 | H78: 475
B80: 2121050 | C80: DL80/120-4/2-IE3 | D80: 1 Pump | E80: CronoTwin-DL | F80: =VLOOKUP(B80,'Wilo Price List'!B:H,5,FALSE) -> £5,643 | G80: PG03 | H80: 400
B81: 2121051 | C81: DL80/130-5,5/2-IE3 | D81: 1 Pump | E81: CronoTwin-DL | F81: =VLOOKUP(B81,'Wilo Price List'!B:H,5,FALSE) -> £6,678 | G81: PG03 | H81: 400
B82: 2121052 | C82: DL80/140-7,5/2-IE3 | D82: 1 Pump | E82: CronoTwin-DL | F82: =VLOOKUP(B82,'Wilo Price List'!B:H,5,FALSE) -> £7,182 | G82: PG03 | H82: 400
B83: 2120963 | C83: DL80/150-1,1/4-IE3 | D83: 1 Pump | E83: CronoTwin-DL | F83: =VLOOKUP(B83,'Wilo Price List'!B:H,5,FALSE) -> £5,024 | G83: PG03 | H83: 440
B84: 2121053 | C84: DL80/150-7,5/2-IE3 | D84: 1 Pump | E84: CronoTwin-DL | F84: =VLOOKUP(B84,'Wilo Price List'!B:H,5,FALSE) -> £7,830 | G84: PG03 | H84: 440
B85: 2120964 | C85: DL80/160-1,5/4-IE3 | D85: 1 Pump | E85: CronoTwin-DL | F85: =VLOOKUP(B85,'Wilo Price List'!B:H,5,FALSE) -> £5,082 | G85: PG03 | H85: 440
B86: 2121054 | C86: DL80/160-11/2-IE3 | D86: 1 Pump | E86: CronoTwin-DL | F86: =VLOOKUP(B86,'Wilo Price List'!B:H,5,FALSE) -> £9,499 | G86: PG03 | H86: 440
B87: 2121055 | C87: DL80/170-11/2-IE3 | D87: 1 Pump | E87: CronoTwin-DL | F87: =VLOOKUP(B87,'Wilo Price List'!B:H,5,FALSE) -> £9,503 | G87: PG03 | H87: 440
B88: 2121056 | C88: DL80/170-15/2-IE3 | D88: 1 Pump | E88: CronoTwin-DL | F88: =VLOOKUP(B88,'Wilo Price List'!B:H,5,FALSE) -> £9,876 | G88: PG03 | H88: 440
B89: 2120965 | C89: DL80/170-2,2/4-IE3 | D89: 1 Pump | E89: CronoTwin-DL | F89: =VLOOKUP(B89,'Wilo Price List'!B:H,5,FALSE) -> £5,527 | G89: PG03 | H89: 440
B90: 2121057 | C90: DL80/190-15/2-IE3 | D90: 1 Pump | E90: CronoTwin-DL | F90: =VLOOKUP(B90,'Wilo Price List'!B:H,5,FALSE) -> £10,394 | G90: PG03 | H90: 500
B91: 2121058 | C91: DL80/190-18,5/2-IE3 | D91: 1 Pump | E91: CronoTwin-DL | F91: =VLOOKUP(B91,'Wilo Price List'!B:H,5,FALSE) -> £11,392 | G91: PG03 | H91: 500
B92: 2121059 | C92: DL80/200-18,5/2-IE3 | D92: 1 Pump | E92: CronoTwin-DL | F92: =VLOOKUP(B92,'Wilo Price List'!B:H,5,FALSE) -> £11,392 | G92: PG03 | H92: 500
B93: 2121060 | C93: DL80/200-22/2-IE3 | D93: 1 Pump | E93: CronoTwin-DL | F93: =VLOOKUP(B93,'Wilo Price List'!B:H,5,FALSE) -> £13,170 | G93: PG03 | H93: 500
B94: 2120966 | C94: DL80/210-3/4-IE3 | D94: 1 Pump | E94: CronoTwin-DL | F94: =VLOOKUP(B94,'Wilo Price List'!B:H,5,FALSE) -> £6,784 | G94: PG03 | H94: 500
B95: 2121061 | C95: DL80/220-30/2-IE3 | D95: 1 Pump | E95: CronoTwin-DL | F95: =VLOOKUP(B95,'Wilo Price List'!B:H,5,FALSE) -> £15,680 | G95: PG03 | H95: 500
B96: 2120967 | C96: DL80/220-4/4-IE3 | D96: 1 Pump | E96: CronoTwin-DL | F96: =VLOOKUP(B96,'Wilo Price List'!B:H,5,FALSE) -> £7,381 | G96: PG03 | H96: 500
B97: 2120968 | C97: DL80/270-5,5/4-IE3 | D97: 1 Pump | E97: CronoTwin-DL | F97: =VLOOKUP(B97,'Wilo Price List'!B:H,5,FALSE) -> £8,316 | G97: PG03 | H97: 500
B99: 2120969 | C99: DL100/145-1,1/4-IE3 | D99: 1 Pump | E99: CronoTwin-DL | F99: =VLOOKUP(B99,'Wilo Price List'!B:H,5,FALSE) -> £6,018 | G99: PG03 | H99: 500
B100: 2121062 | C100: DL100/145-11/2-IE3 | D100: 1 Pump | E100: CronoTwin-DL | F100: =VLOOKUP(B100,'Wilo Price List'!B:H,5,FALSE) -> £10,265 | G100: PG03 | H100: 500
B101: 2120970 | C101: DL100/150-1,5/4-IE3 | D101: 1 Pump | E101: CronoTwin-DL | F101: =VLOOKUP(B101,'Wilo Price List'!B:H,5,FALSE) -> £7,228 | G101: PG03 | H101: 500
B102: 2121063 | C102: DL100/150-15/2-IE3 | D102: 1 Pump | E102: CronoTwin-DL | F102: =VLOOKUP(B102,'Wilo Price List'!B:H,5,FALSE) -> £10,578 | G102: PG03 | H102: 500
B103: 2121064 | C103: DL100/160-15/2-IE3 | D103: 1 Pump | E103: CronoTwin-DL | F103: =VLOOKUP(B103,'Wilo Price List'!B:H,5,FALSE) -> £10,578 | G103: PG03 | H103: 500
B104: 2121065 | C104: DL100/160-18,5/2-IE3 | D104: 1 Pump | E104: CronoTwin-DL | F104: =VLOOKUP(B104,'Wilo Price List'!B:H,5,FALSE) -> £11,089 | G104: PG03 | H104: 500
B105: 2120971 | C105: DL100/160-2,2/4-IE3 | D105: 1 Pump | E105: CronoTwin-DL | F105: =VLOOKUP(B105,'Wilo Price List'!B:H,5,FALSE) -> £7,724 | G105: PG03 | H105: 500
B106: 2121066 | C106: DL100/165-22/2-IE3 | D106: 1 Pump | E106: CronoTwin-DL | F106: =VLOOKUP(B106,'Wilo Price List'!B:H,5,FALSE) -> £14,879 | G106: PG03 | H106: 500
B107: 2120972 | C107: DL100/170-3/4-IE3 | D107: 1 Pump | E107: CronoTwin-DL | F107: =VLOOKUP(B107,'Wilo Price List'!B:H,5,FALSE) -> £7,807 | G107: PG03 | H107: 500
B108: 2121067 | C108: DL100/170-30/2-IE3 | D108: 1 Pump | E108: CronoTwin-DL | F108: =VLOOKUP(B108,'Wilo Price List'!B:H,5,FALSE) -> £17,534 | G108: PG03 | H108: 500
B109: 2121068 | C109: DL100/190-30/2-IE3 | D109: 1 Pump | E109: CronoTwin-DL | F109: =VLOOKUP(B109,'Wilo Price List'!B:H,5,FALSE) -> £18,206 | G109: PG03 | H109: 550
B110: 2120973 | C110: DL100/200-3/4-IE3 | D110: 1 Pump | E110: CronoTwin-DL | F110: =VLOOKUP(B110,'Wilo Price List'!B:H,5,FALSE) -> £8,321 | G110: PG03 | H110: 550
B111: 2120974 | C111: DL100/200-4/4-IE3 | D111: 1 Pump | E111: CronoTwin-DL | F111: =VLOOKUP(B111,'Wilo Price List'!B:H,5,FALSE) -> £8,545 | G111: PG03 | H111: 550
B112: 2121069 | C112: DL100/210-30/2-IE3 | D112: 1 Pump | E112: CronoTwin-DL | F112: =VLOOKUP(B112,'Wilo Price List'!B:H,5,FALSE) -> £18,206 | G112: PG03 | H112: 550
B113: 2121070 | C113: DL100/210-37/2-IE3 | D113: 1 Pump | E113: CronoTwin-DL | F113: =VLOOKUP(B113,'Wilo Price List'!B:H,5,FALSE) -> £23,241 | G113: PG03 | H113: 550
B114: 2120975 | C114: DL100/220-5,5/4-IE3 | D114: 1 Pump | E114: CronoTwin-DL | F114: =VLOOKUP(B114,'Wilo Price List'!B:H,5,FALSE) -> £9,628 | G114: PG03 | H114: 550
B115: 2120976 | C115: DL100/250-5,5/4-IE3 | D115: 1 Pump | E115: CronoTwin-DL | F115: =VLOOKUP(B115,'Wilo Price List'!B:H,5,FALSE) -> £10,829 | G115: PG03 | H115: 550
B116: 2120977 | C116: DL100/250-7,5/4-IE3 | D116: 1 Pump | E116: CronoTwin-DL | F116: =VLOOKUP(B116,'Wilo Price List'!B:H,5,FALSE) -> £11,990 | G116: PG03 | H116: 550
B117: 2120978 | C117: DL100/260-11/4-IE3 | D117: 1 Pump | E117: CronoTwin-DL | F117: =VLOOKUP(B117,'Wilo Price List'!B:H,5,FALSE) -> £12,346 | G117: PG03 | H117: 550
B118: 2120979 | C118: DL100/270-11/4-IE3 | D118: 1 Pump | E118: CronoTwin-DL | F118: =VLOOKUP(B118,'Wilo Price List'!B:H,5,FALSE) -> £14,307 | G118: PG03 | H118: 550
B120: 2120980 | C120: DL125/190-4/4-IE3 | D120: 1 Pump | E120: CronoTwin-DL | F120: =VLOOKUP(B120,'Wilo Price List'!B:H,5,FALSE) -> £9,521 | G120: PG03 | H120: 620
B121: 2120981 | C121: DL125/210-5,5/4-IE3 | D121: 1 Pump | E121: CronoTwin-DL | F121: =VLOOKUP(B121,'Wilo Price List'!B:H,5,FALSE) -> £11,083 | G121: PG03 | H121: 620
B122: 2120982 | C122: DL125/220-5,5/4-IE3 | D122: 1 Pump | E122: CronoTwin-DL | F122: =VLOOKUP(B122,'Wilo Price List'!B:H,5,FALSE) -> £11,571 | G122: PG03 | H122: 620
B123: 2120983 | C123: DL125/220-7,5/4-IE3 | D123: 1 Pump | E123: CronoTwin-DL | F123: =VLOOKUP(B123,'Wilo Price List'!B:H,5,FALSE) -> £12,843 | G123: PG03 | H123: 620
B124: 2120984 | C124: DL125/250-11/4-IE3 | D124: 1 Pump | E124: CronoTwin-DL | F124: =VLOOKUP(B124,'Wilo Price List'!B:H,5,FALSE) -> £14,911 | G124: PG03 | H124: 620
B125: 2120985 | C125: DL125/270-11/4-IE3 | D125: 1 Pump | E125: CronoTwin-DL | F125: =VLOOKUP(B125,'Wilo Price List'!B:H,5,FALSE) -> £15,332 | G125: PG03 | H125: 620
B126: 2120986 | C126: DL125/270-15/4-IE3 | D126: 1 Pump | E126: CronoTwin-DL | F126: =VLOOKUP(B126,'Wilo Price List'!B:H,5,FALSE) -> £18,054 | G126: PG03 | H126: 620
B127: 2120987 | C127: DL125/300-18,5/4-IE3 | D127: 1 Pump | E127: CronoTwin-DL | F127: =VLOOKUP(B127,'Wilo Price List'!B:H,5,FALSE) -> £18,231 | G127: PG03 | H127: 700
B128: 2120988 | C128: DL125/320-18,5/4-IE3 | D128: 1 Pump | E128: CronoTwin-DL | F128: =VLOOKUP(B128,'Wilo Price List'!B:H,5,FALSE) -> £18,231 | G128: PG03 | H128: 700
B129: 2120989 | C129: DL125/320-22/4-IE3 | D129: 1 Pump | E129: CronoTwin-DL | F129: =VLOOKUP(B129,'Wilo Price List'!B:H,5,FALSE) -> £19,587 | G129: PG03 | H129: 700
B130: 2120990 | C130: DL125/340-30/4-IE3 | D130: 1 Pump | E130: CronoTwin-DL | F130: =VLOOKUP(B130,'Wilo Price List'!B:H,5,FALSE) -> £20,874 | G130: PG03 | H130: 700
B132: 2120991 | C132: DL150/190-5,5/4-IE3 | D132: 1 Pump | E132: CronoTwin-DL | F132: =VLOOKUP(B132,'Wilo Price List'!B:H,5,FALSE) -> £12,825 | G132: PG03 | H132: 700
B133: 2120992 | C133: DL150/200-7,5/4-IE3 | D133: 1 Pump | E133: CronoTwin-DL | F133: =VLOOKUP(B133,'Wilo Price List'!B:H,5,FALSE) -> £14,422 | G133: PG03 | H133: 700
B134: 2120993 | C134: DL150/220-11/4-IE3 | D134: 1 Pump | E134: CronoTwin-DL | F134: =VLOOKUP(B134,'Wilo Price List'!B:H,5,FALSE) -> £15,108 | G134: PG03 | H134: 700
B135: 2120994 | C135: DL150/250-15/4-IE3 | D135: 1 Pump | E135: CronoTwin-DL | F135: =VLOOKUP(B135,'Wilo Price List'!B:H,5,FALSE) -> £17,535 | G135: PG03 | H135: 700
B136: 2120995 | C136: DL150/260-15/4-IE3 | D136: 1 Pump | E136: CronoTwin-DL | F136: =VLOOKUP(B136,'Wilo Price List'!B:H,5,FALSE) -> £18,581 | G136: PG03 | H136: 700
B137: 2120996 | C137: DL150/260-18,5/4-IE3 | D137: 1 Pump | E137: CronoTwin-DL | F137: =VLOOKUP(B137,'Wilo Price List'!B:H,5,FALSE) -> £20,260 | G137: PG03 | H137: 700
B138: 2120997 | C138: DL150/270-18,5/4-IE3 | D138: 1 Pump | E138: CronoTwin-DL | F138: =VLOOKUP(B138,'Wilo Price List'!B:H,5,FALSE) -> £20,260 | G138: PG03 | H138: 700
B139: 2120998 | C139: DL150/270-22/4-IE3 | D139: 1 Pump | E139: CronoTwin-DL | F139: =VLOOKUP(B139,'Wilo Price List'!B:H,5,FALSE) -> £21,511 | G139: PG03 | H139: 700
B140: 2151765 | C140: DL150/305-30/4-IE3 | D140: 1 Pump | E140: CronoTwin-DL | F140: =VLOOKUP(B140,'Wilo Price List'!B:H,5,FALSE) -> £27,800 | G140: PG03 | H140: 770
B141: 2151764 | C141: DL150/325-30/4-IE3 | D141: 1 Pump | E141: CronoTwin-DL | F141: =VLOOKUP(B141,'Wilo Price List'!B:H,5,FALSE) -> £27,800 | G141: PG03 | H141: 770
B142: 2151763 | C142: DL150/325-37/4-IE3 | D142: 1 Pump | E142: CronoTwin-DL | F142: =VLOOKUP(B142,'Wilo Price List'!B:H,5,FALSE) -> £29,371 | G142: PG03 | H142: 770
B143: 2151762 | C143: DL150/335-37/4-IE3 | D143: 1 Pump | E143: CronoTwin-DL | F143: =VLOOKUP(B143,'Wilo Price List'!B:H,5,FALSE) -> £29,371 | G143: PG03 | H143: 770
B144: 2151761 | C144: DL150/335-45/4-IE3 | D144: 1 Pump | E144: CronoTwin-DL | F144: =VLOOKUP(B144,'Wilo Price List'!B:H,5,FALSE) -> £34,510 | G144: PG03 | H144: 770
B146: 2121003 | C146: DL200/240-15/4-IE3 | D146: 1 Pump | E146: CronoTwin-DL | F146: =VLOOKUP(B146,'Wilo Price List'!B:H,5,FALSE) -> £24,502 | G146: PG03 | H146: 800
B147: 2121004 | C147: DL200/250-18,5/4-IE3 | D147: 1 Pump | E147: CronoTwin-DL | F147: =VLOOKUP(B147,'Wilo Price List'!B:H,5,FALSE) -> £25,697 | G147: PG03 | H147: 800
B148: 2121005 | C148: DL200/260-22/4-IE3 | D148: 1 Pump | E148: CronoTwin-DL | F148: =VLOOKUP(B148,'Wilo Price List'!B:H,5,FALSE) -> £27,699 | G148: PG03 | H148: 800
B149: 2121006 | C149: DL200/270-30/4-IE3 | D149: 1 Pump | E149: CronoTwin-DL | F149: =VLOOKUP(B149,'Wilo Price List'!B:H,5,FALSE) -> £29,706 | G149: PG03 | H149: 800
B150: 2142056 | C150: DL200/300-37/4-IE3 | D150: 1 Pump | E150: CronoTwin-DL | F150: =VLOOKUP(B150,'Wilo Price List'!B:H,5,FALSE) -> £31,736 | G150: PG03 | H150: 820
B151: 2142057 | C151: DL200/315-37/4-IE3 | D151: 1 Pump | E151: CronoTwin-DL | F151: =VLOOKUP(B151,'Wilo Price List'!B:H,5,FALSE) -> £31,736 | G151: PG03 | H151: 820
B152: 2142058 | C152: DL200/335-37/4-IE3 | D152: 1 Pump | E152: CronoTwin-DL | F152: =VLOOKUP(B152,'Wilo Price List'!B:H,5,FALSE) -> £31,736 | G152: PG03 | H152: 820
B153: 2142059 | C153: DL200/335-45/4-IE3 | D153: 1 Pump | E153: CronoTwin-DL | F153: =VLOOKUP(B153,'Wilo Price List'!B:H,5,FALSE) -> £35,336 | G153: PG03 | H153: 820
B154: 2142060 | C154: DL200/345-45/4-IE3 | D154: 1 Pump | E154: CronoTwin-DL | F154: =VLOOKUP(B154,'Wilo Price List'!B:H,5,FALSE) -> £35,336 | G154: PG03 | H154: 820
B155: 2142061 | C155: DL200/345-55/4-IE3 | D155: 1 Pump | E155: CronoTwin-DL | F155: =VLOOKUP(B155,'Wilo Price List'!B:H,5,FALSE) -> £40,819 | G155: PG03 | H155: 820

Sheet DPL
B2: DPL | J2: Home
B5: Article No. (or variant) | C5: Article description | D5: Type (Pump / Accessory / Spare Part / Addon / Service) | E5: Product range | F5: List Price | G5: Price group | H5: Port to Port (MM)
B6: 2150372 | C6: DPL32/105-0,12/4 | D6: 1 Pump | E6: VeroTwin-DPL | F6: =VLOOKUP(B6,'Wilo Price List'!B:H,5,FALSE) -> £2,132 | G6: PG03 | H6: 260
B7: 2121239 | C7: DPL32/105-0,75/2-IE3 | D7: 1 Pump | E7: VeroTwin-DPL | F7: =VLOOKUP(B7,'Wilo Price List'!B:H,5,FALSE) -> £2,216 | G7: PG03 | H7: 260
B8: 2121240 | C8: DPL32/125-1,1/2-IE3 | D8: 1 Pump | E8: VeroTwin-DPL | F8: =VLOOKUP(B8,'Wilo Price List'!B:H,5,FALSE) -> £2,497 | G8: PG03 | H8: 260
B9: 2150373 | C9: DPL32/135-0,25/4 | D9: 1 Pump | E9: VeroTwin-DPL | F9: =VLOOKUP(B9,'Wilo Price List'!B:H,5,FALSE) -> £2,102 | G9: PG03 | H9: 260
B10: 2121241 | C10: DPL32/135-1,1/2-IE3 | D10: 1 Pump | E10: VeroTwin-DPL | F10: =VLOOKUP(B10,'Wilo Price List'!B:H,5,FALSE) -> £2,532 | G10: PG03 | H10: 260
B11: 2155462 | C11: DPL32/135-1,5/2-IE3 | D11: 1 Pump | E11: VeroTwin-DPL | F11: =VLOOKUP(B11,'Wilo Price List'!B:H,5,FALSE) -> £2,685 | G11: PG03 | H11: 260
B12: 2121242 | C12: DPL32/165-3/2-IE3 | D12: 1 Pump | E12: VeroTwin-DPL | F12: =VLOOKUP(B12,'Wilo Price List'!B:H,5,FALSE) -> £4,161 | G12: PG03 | H12: 320
B13: 2121243 | C13: DPL32/175-4/2-IE3 | D13: 1 Pump | E13: VeroTwin-DPL | F13: =VLOOKUP(B13,'Wilo Price List'!B:H,5,FALSE) -> £4,573 | G13: PG03 | H13: 320
B14: 2150365 | C14: DPL32/85-0,37/2 | D14: 1 Pump | E14: VeroTwin-DPL | F14: =VLOOKUP(B14,'Wilo Price List'!B:H,5,FALSE) -> £1,873 | G14: PG03 | H14: 260
B15: 2150366 | C15: DPL32/95-0,55/2 | D15: 1 Pump | E15: VeroTwin-DPL | F15: =VLOOKUP(B15,'Wilo Price List'!B:H,5,FALSE) -> £2,006 | G15: PG03 | H15: 260
B17: 2089643 | C17: DPL40/115-0,55/2 | D17: 1 Pump | E17: VeroTwin-DPL | F17: =VLOOKUP(B17,'Wilo Price List'!B:H,5,FALSE) -> £2,382 | G17: PG03 | H17: 250
B18: 2121244 | C18: DPL40/120-1,5/2-IE3 | D18: 1 Pump | E18: VeroTwin-DPL | F18: =VLOOKUP(B18,'Wilo Price List'!B:H,5,FALSE) -> £2,572 | G18: PG03 | H18: 320
B19: 2089620 | C19: DPL40/130-0,25/4 | D19: 1 Pump | E19: VeroTwin-DPL | F19: =VLOOKUP(B19,'Wilo Price List'!B:H,5,FALSE) -> £2,274 | G19: PG03 | H19: 320
B20: 2121245 | C20: DPL40/130-2,2/2-IE3 | D20: 1 Pump | E20: VeroTwin-DPL | F20: =VLOOKUP(B20,'Wilo Price List'!B:H,5,FALSE) -> £2,879 | G20: PG03 | H20: 320
B21: 2121246 | C21: DPL40/150-3/2-IE3 | D21: 1 Pump | E21: VeroTwin-DPL | F21: =VLOOKUP(B21,'Wilo Price List'!B:H,5,FALSE) -> £3,444 | G21: PG03 | H21: 320
B22: 2089621 | C22: DPL40/160-0,37/4 | D22: 1 Pump | E22: VeroTwin-DPL | F22: =VLOOKUP(B22,'Wilo Price List'!B:H,5,FALSE) -> £2,583 | G22: PG03 | H22: 320
B23: 2121247 | C23: DPL40/160-4/2-IE3 | D23: 1 Pump | E23: VeroTwin-DPL | F23: =VLOOKUP(B23,'Wilo Price List'!B:H,5,FALSE) -> £3,698 | G23: PG03 | H23: 320
B24: 2121248 | C24: DPL40/165-4/2-IE3 | D24: 1 Pump | E24: VeroTwin-DPL | F24: =VLOOKUP(B24,'Wilo Price List'!B:H,5,FALSE) -> £4,560 | G24: PG03 | H24: 340
B25: 2121249 | C25: DPL40/175-5,5/2-IE3 | D25: 1 Pump | E25: VeroTwin-DPL | F25: =VLOOKUP(B25,'Wilo Price List'!B:H,5,FALSE) -> £5,322 | G25: PG03 | H25: 340
B26: 2121250 | C26: DPL40/195-7,5/2-IE3 | D26: 1 Pump | E26: VeroTwin-DPL | F26: =VLOOKUP(B26,'Wilo Price List'!B:H,5,FALSE) -> £5,431 | G26: PG03 | H26: 440
B27: 2157302 | C27: DPL40/75-0,12/2 | D27: 1 Pump | E27: VeroTwin-DPL | F27: =VLOOKUP(B27,'Wilo Price List'!B:H,5,FALSE) -> £2,259 | G27: PG03 | H27: 250
B28: 2089642 | C28: DPL40/90-0,37/2 | D28: 1 Pump | E28: VeroTwin-DPL | F28: =VLOOKUP(B28,'Wilo Price List'!B:H,5,FALSE) -> £2,159 | G28: PG03 | H28: 250
B30: 2150374 | C30: DPL50/105-0,12/4 | D30: 1 Pump | E30: VeroTwin-DPL | F30: =VLOOKUP(B30,'Wilo Price List'!B:H,5,FALSE) -> £2,351 | G30: PG03 | H30: 280
B31: 2155465 | C31: DPL50/105-0,75/2-IE3 | D31: 1 Pump | E31: VeroTwin-DPL | F31: =VLOOKUP(B31,'Wilo Price List'!B:H,5,FALSE) -> £2,853 | G31: PG03 | H31: 280
B32: 2121252 | C32: DPL50/120-1,5/2-IE3 | D32: 1 Pump | E32: VeroTwin-DPL | F32: =VLOOKUP(B32,'Wilo Price List'!B:H,5,FALSE) -> £2,932 | G32: PG03 | H32: 340
B33: 2089623 | C33: DPL50/130-0,37/4 | D33: 1 Pump | E33: VeroTwin-DPL | F33: =VLOOKUP(B33,'Wilo Price List'!B:H,5,FALSE) -> £2,646 | G33: PG03 | H33: 340
B34: 2121253 | C34: DPL50/130-2,2/2-IE3 | D34: 1 Pump | E34: VeroTwin-DPL | F34: =VLOOKUP(B34,'Wilo Price List'!B:H,5,FALSE) -> £3,104 | G34: PG03 | H34: 340
B35: 2121254 | C35: DPL50/140-3/2-IE3 | D35: 1 Pump | E35: VeroTwin-DPL | F35: =VLOOKUP(B35,'Wilo Price List'!B:H,5,FALSE) -> £3,499 | G35: PG03 | H35: 340
B36: 2121255 | C36: DPL50/150-4/2-IE3 | D36: 1 Pump | E36: VeroTwin-DPL | F36: =VLOOKUP(B36,'Wilo Price List'!B:H,5,FALSE) -> £3,749 | G36: PG03 | H36: 340
B37: 2121256 | C37: DPL50/155-4/2-IE3 | D37: 1 Pump | E37: VeroTwin-DPL | F37: =VLOOKUP(B37,'Wilo Price List'!B:H,5,FALSE) -> £4,569 | G37: PG03 | H37: 340
B38: 2089624 | C38: DPL50/160-0,55/4 | D38: 1 Pump | E38: VeroTwin-DPL | F38: =VLOOKUP(B38,'Wilo Price List'!B:H,5,FALSE) -> £2,967 | G38: PG03 | H38: 340
B39: 2121257 | C39: DPL50/165-5,5/2-IE3 | D39: 1 Pump | E39: VeroTwin-DPL | F39: =VLOOKUP(B39,'Wilo Price List'!B:H,5,FALSE) -> £5,646 | G39: PG03 | H39: 340
B40: 2121258 | C40: DPL50/175-5,5/2-IE3 | D40: 1 Pump | E40: VeroTwin-DPL | F40: =VLOOKUP(B40,'Wilo Price List'!B:H,5,FALSE) -> £5,214 | G40: PG03 | H40: 340
B41: 2121259 | C41: DPL50/175-7,5/2-IE3 | D41: 1 Pump | E41: VeroTwin-DPL | F41: =VLOOKUP(B41,'Wilo Price List'!B:H,5,FALSE) -> £5,508 | G41: PG03 | H41: 440
B42: 2121260 | C42: DPL50/185-7,5/2-IE3 | D42: 1 Pump | E42: VeroTwin-DPL | F42: =VLOOKUP(B42,'Wilo Price List'!B:H,5,FALSE) -> £5,943 | G42: PG03 | H42: 440
B43: 2152445 | C43: DPL50/95-0,55/2 | D43: 1 Pump | E43: VeroTwin-DPL | F43: =VLOOKUP(B43,'Wilo Price List'!B:H,5,FALSE) -> £2,681 | G43: PG03 | H43: 280
B45: 2133205 | C45: DPL65/110-0,25/4 | D45: 1 Pump | E45: VeroTwin-DPL | F45: =VLOOKUP(B45,'Wilo Price List'!B:H,5,FALSE) -> £2,823 | G45: PG03 | H45: 340
B46: 2121262 | C46: DPL65/110-2,2/2-IE3 | D46: 1 Pump | E46: VeroTwin-DPL | F46: =VLOOKUP(B46,'Wilo Price List'!B:H,5,FALSE) -> £3,617 | G46: PG03 | H46: 340
B47: 2121261 | C47: DPL65/115-1,5/2-IE3 | D47: 1 Pump | E47: VeroTwin-DPL | F47: =VLOOKUP(B47,'Wilo Price List'!B:H,5,FALSE) -> £3,478 | G47: PG03 | H47: 340
B48: 2133206 | C48: DPL65/120-0,37/4 | D48: 1 Pump | E48: VeroTwin-DPL | F48: =VLOOKUP(B48,'Wilo Price List'!B:H,5,FALSE) -> £2,962 | G48: PG03 | H48: 340
B49: 2121263 | C49: DPL65/120-3/2-IE3 | D49: 1 Pump | E49: VeroTwin-DPL | F49: =VLOOKUP(B49,'Wilo Price List'!B:H,5,FALSE) -> £3,930 | G49: PG03 | H49: 340
B50: 2133207 | C50: DPL65/130-0,55/4 | D50: 1 Pump | E50: VeroTwin-DPL | F50: =VLOOKUP(B50,'Wilo Price List'!B:H,5,FALSE) -> £3,021 | G50: PG03 | H50: 340
B51: 2121264 | C51: DPL65/130-4/2-IE3 | D51: 1 Pump | E51: VeroTwin-DPL | F51: =VLOOKUP(B51,'Wilo Price List'!B:H,5,FALSE) -> £4,140 | G51: PG03 | H51: 340
B52: 2121265 | C52: DPL65/145-5,5/2-IE3 | D52: 1 Pump | E52: VeroTwin-DPL | F52: =VLOOKUP(B52,'Wilo Price List'!B:H,5,FALSE) -> £5,400 | G52: PG03 | H52: 340
B53: 2121266 | C53: DPL65/155-5,5/2-IE3 | D53: 1 Pump | E53: VeroTwin-DPL | F53: =VLOOKUP(B53,'Wilo Price List'!B:H,5,FALSE) -> £5,349 | G53: PG03 | H53: 340
B54: 2121267 | C54: DPL65/155-7,5/2-IE3 | D54: 1 Pump | E54: VeroTwin-DPL | F54: =VLOOKUP(B54,'Wilo Price List'!B:H,5,FALSE) -> £5,780 | G54: PG03 | H54: 340
B55: 2121268 | C55: DPL65/165-5,5/2-IE3 | D55: 1 Pump | E55: VeroTwin-DPL | F55: =VLOOKUP(B55,'Wilo Price List'!B:H,5,FALSE) -> £5,542 | G55: PG03 | H55: 430
B56: 2121269 | C56: DPL65/175-5,5/2-IE3 | D56: 1 Pump | E56: VeroTwin-DPL | F56: =VLOOKUP(B56,'Wilo Price List'!B:H,5,FALSE) -> £5,542 | G56: PG03 | H56: 430
B57: 2121270 | C57: DPL65/175-7,5/2-IE3 | D57: 1 Pump | E57: VeroTwin-DPL | F57: =VLOOKUP(B57,'Wilo Price List'!B:H,5,FALSE) -> £5,796 | G57: PG03 | H57: 430
B59: 2121272 | C59: DPL80/105-3/2-IE3 | D59: 1 Pump | E59: VeroTwin-DPL | F59: =VLOOKUP(B59,'Wilo Price List'!B:H,5,FALSE) -> £4,136 | G59: PG03 | H59: 360
B60: 2121273 | C60: DPL80/110-4/2-IE3 | D60: 1 Pump | E60: VeroTwin-DPL | F60: =VLOOKUP(B60,'Wilo Price List'!B:H,5,FALSE) -> £4,339 | G60: PG03 | H60: 360
B61: 2121271 | C61: DPL80/115-2,2/2-IE3 | D61: 1 Pump | E61: VeroTwin-DPL | F61: =VLOOKUP(B61,'Wilo Price List'!B:H,5,FALSE) -> £4,030 | G61: PG03 | H61: 360
B62: 2133208 | C62: DPL80/120-0,55/4 | D62: 1 Pump | E62: VeroTwin-DPL | F62: =VLOOKUP(B62,'Wilo Price List'!B:H,5,FALSE) -> £3,320 | G62: PG03 | H62: 360
B63: 2155463 | C63: DPL80/120-4/2-IE3 | D63: 1 Pump | E63: VeroTwin-DPL | F63: =VLOOKUP(B63,'Wilo Price List'!B:H,5,FALSE) -> £4,339 | G63: PG03 | H63: 360
B64: 2155464 | C64: DPL80/120-5,5/2-IE3 | D64: 1 Pump | E64: VeroTwin-DPL | F64: =VLOOKUP(B64,'Wilo Price List'!B:H,5,FALSE) -> £5,070 | G64: PG03 | H64: 360
B65: 2121233 | C65: DPL80/125-0,75/4-IE3 | D65: 1 Pump | E65: VeroTwin-DPL | F65: =VLOOKUP(B65,'Wilo Price List'!B:H,5,FALSE) -> £3,993 | G65: PG03 | H65: 360
B66: 2121234 | C66: DPL80/140-1,1/4-IE3 | D66: 1 Pump | E66: VeroTwin-DPL | F66: =VLOOKUP(B66,'Wilo Price List'!B:H,5,FALSE) -> £4,343 | G66: PG03 | H66: 360
B67: 2121274 | C67: DPL80/145-5,5/2-IE3 | D67: 1 Pump | E67: VeroTwin-DPL | F67: =VLOOKUP(B67,'Wilo Price List'!B:H,5,FALSE) -> £5,514 | G67: PG03 | H67: 400
B68: 2121275 | C68: DPL80/155-7,5/2-IE3 | D68: 1 Pump | E68: VeroTwin-DPL | F68: =VLOOKUP(B68,'Wilo Price List'!B:H,5,FALSE) -> £5,758 | G68: PG03 | H68: 400
B70: 2121235 | C70: DPL100/135-1,1/4-IE3 | D70: 1 Pump | E70: VeroTwin-DPL | F70: =VLOOKUP(B70,'Wilo Price List'!B:H,5,FALSE) -> £6,325 | G70: PG03 | H70: 500
B71: 2121236 | C71: DPL100/145-1,5/4-IE3 | D71: 1 Pump | E71: VeroTwin-DPL | F71: =VLOOKUP(B71,'Wilo Price List'!B:H,5,FALSE) -> £6,503 | G71: PG03 | H71: 500
B72: 2121237 | C72: DPL100/165-2,2/4-IE3 | D72: 1 Pump | E72: VeroTwin-DPL | F72: =VLOOKUP(B72,'Wilo Price List'!B:H,5,FALSE) -> £6,951 | G72: PG03 | H72: 500
B73: 2121238 | C73: DPL100/175-3/4-IE3 | D73: 1 Pump | E73: VeroTwin-DPL | F73: =VLOOKUP(B73,'Wilo Price List'!B:H,5,FALSE) -> £7,637 | G73: PG03 | H73: 500

Sheet Yonos Giga 2.0
B2: Yonos Giga | H2: Home
B5: Article No. (or variant) | C5: Article description | D5: List Price | E5: Price group
B7: 3~
B9: 2204971 | C9: Yonos GIGA2.0-I 32/1-12/0,55 | D9: =VLOOKUP(B9,'Wilo Price List'!B:F,5,FALSE) -> £4,881.00 | E9: PG3
B10: 2204970 | C10: Yonos GIGA2.0-I 32/1-15/0,75 | D10: =VLOOKUP(B10,'Wilo Price List'!B:F,5,FALSE) -> £5,003.00 | E10: PG3
B11: 2204969 | C11: Yonos GIGA2.0-I 32/1-19/1,1 | D11: =VLOOKUP(B11,'Wilo Price List'!B:F,5,FALSE) -> £5,009.00 | E11: PG3
B12: 2204968 | C12: Yonos GIGA2.0-I 32/1-24/1,5 | D12: =VLOOKUP(B12,'Wilo Price List'!B:F,5,FALSE) -> £5,162.00 | E12: PG3
B13: 2204973 | C13: Yonos GIGA2.0-I 32/1-32/2,2 | D13: =VLOOKUP(B13,'Wilo Price List'!B:F,5,FALSE) -> £5,159.00 | E13: PG3
B15: 2204977 | C15: Yonos GIGA2.0-I 40/1-8/0,55 | D15: =VLOOKUP(B15,'Wilo Price List'!B:F,5,FALSE) -> £4,928.00 | E15: PG3
B16: 2204976 | C16: Yonos GIGA2.0-I 40/1-10/0,75 | D16: =VLOOKUP(B16,'Wilo Price List'!B:F,5,FALSE) -> £4,995.00 | E16: PG3
B17: 2204975 | C17: Yonos GIGA2.0-I 40/1-13/1,1 | D17: =VLOOKUP(B17,'Wilo Price List'!B:F,5,FALSE) -> £4,995.00 | E17: PG3
B18: 2204974 | C18: Yonos GIGA2.0-I 40/1-16/1,5 | D18: =VLOOKUP(B18,'Wilo Price List'!B:F,5,FALSE) -> £5,085.00 | E18: PG3
B19: 2204983 | C19: Yonos GIGA2.0-I 40/1-21/2,2 | D19: =VLOOKUP(B19,'Wilo Price List'!B:F,5,FALSE) -> £5,151.00 | E19: PG3
B20: 2204982 | C20: Yonos GIGA2.0-I 40/1-26/3,0 | D20: =VLOOKUP(B20,'Wilo Price List'!B:F,5,FALSE) -> £5,149.00 | E20: PG3
B21: 2204981 | C21: Yonos GIGA2.0-I 40/1-31/4,0 | D21: =VLOOKUP(B21,'Wilo Price List'!B:F,5,FALSE) -> £5,468.00 | E21: PG3
B23: 2204987 | C23: Yonos GIGA2.0-I 50/1-6/0,55 | D23: =VLOOKUP(B23,'Wilo Price List'!B:F,5,FALSE) -> £5,024.00 | E23: PG3
B24: 2204986 | C24: Yonos GIGA2.0-I 50/1-8/0,75 | D24: =VLOOKUP(B24,'Wilo Price List'!B:F,5,FALSE) -> £5,091.00 | E24: PG3
B25: 2204985 | C25: Yonos GIGA2.0-I 50/1-10/1,1 | D25: =VLOOKUP(B25,'Wilo Price List'!B:F,5,FALSE) -> £5,091.00 | E25: PG3
B26: 2204984 | C26: Yonos GIGA2.0-I 50/1-13/1,5 | D26: =VLOOKUP(B26,'Wilo Price List'!B:F,5,FALSE) -> £5,224.00 | E26: PG3
B27: 2204993 | C27: Yonos GIGA2.0-I 50/1-17/2,2 | D27: =VLOOKUP(B27,'Wilo Price List'!B:F,5,FALSE) -> £5,247.00 | E27: PG3
B28: 2204992 | C28: Yonos GIGA2.0-I 50/1-20/3,0 | D28: =VLOOKUP(B28,'Wilo Price List'!B:F,5,FALSE) -> £5,246.00 | E28: PG3
B29: 2204991 | C29: Yonos GIGA2.0-I 50/1-25/4,0 | D29: =VLOOKUP(B29,'Wilo Price List'!B:F,5,FALSE) -> £5,611.00 | E29: PG3
B31: 2204997 | C31: Yonos GIGA2.0-I 65/1-5/0,55 | D31: =VLOOKUP(B31,'Wilo Price List'!B:F,5,FALSE) -> £4,937.00 | E31: PG3
B32: 2204996 | C32: Yonos GIGA2.0-I 65/1-6/0,75 | D32: =VLOOKUP(B32,'Wilo Price List'!B:F,5,FALSE) -> £5,101.00 | E32: PG3
B33: 2204995 | C33: Yonos GIGA2.0-I 65/1-8/1,1 2 | D33: =VLOOKUP(B33,'Wilo Price List'!B:F,5,FALSE) -> £5,104.00 | E33: PG3
B34: 2204994 | C34: Yonos GIGA2.0-I 65/1-10/1,5 | D34: =VLOOKUP(B34,'Wilo Price List'!B:F,5,FALSE) -> £5,238.00 | E34: PG3
B35: 2205003 | C35: Yonos GIGA2.0-I 65/1-14/2,2 | D35: =VLOOKUP(B35,'Wilo Price List'!B:F,5,FALSE) -> £5,260.00 | E35: PG3
B36: 2205002 | C36: Yonos GIGA2.0-I 65/1-16/3,0 | D36: =VLOOKUP(B36,'Wilo Price List'!B:F,5,FALSE) -> £5,329.00 | E36: PG3
B37: 2205001 | C37: Yonos GIGA2.0-I 65/1-20/4,0 | D37: =VLOOKUP(B37,'Wilo Price List'!B:F,5,FALSE) -> £5,586.00 | E37: PG3
B38: 2205000 | C38: Yonos GIGA2.0-I 65/1-24/5,5 | D38: =VLOOKUP(B38,'Wilo Price List'!B:F,5,FALSE) -> £6,431.00 | E38: PG3
B39: 2204999 | C39: Yonos GIGA2.0-I 65/1-31/7,5 | D39: =VLOOKUP(B39,'Wilo Price List'!B:F,5,FALSE) -> £6,431.00 | E39: PG3
B41: 2205007 | C41: Yonos GIGA2.0-I 80/1-4/0,55 | D41: =VLOOKUP(B41,'Wilo Price List'!B:F,5,FALSE) -> £5,250.00 | E41: PG3
B42: 2205006 | C42: Yonos GIGA2.0-I 80/1-5/0,75 | D42: =VLOOKUP(B42,'Wilo Price List'!B:F,5,FALSE) -> £5,276.00 | E42: PG3
B43: 2205005 | C43: Yonos GIGA2.0-I 80/1-6/1,1 2 | D43: =VLOOKUP(B43,'Wilo Price List'!B:F,5,FALSE) -> £5,276.00 | E43: PG3
B44: 2205004 | C44: Yonos GIGA2.0-I 80/1-8/1,5 2 | D44: =VLOOKUP(B44,'Wilo Price List'!B:F,5,FALSE) -> £5,409.00 | E44: PG3
B45: 2205013 | C45: Yonos GIGA2.0-I 80/1-10/2,2 | D45: =VLOOKUP(B45,'Wilo Price List'!B:F,5,FALSE) -> £5,432.00 | E45: PG3
B46: 2205012 | C46: Yonos GIGA2.0-I 80/1-12/3,0 | D46: =VLOOKUP(B46,'Wilo Price List'!B:F,5,FALSE) -> £5,446.00 | E46: PG3
B47: 2205011 | C47: Yonos GIGA2.0-I 80/1-15/4,0 | D47: =VLOOKUP(B47,'Wilo Price List'!B:F,5,FALSE) -> £5,758.00 | E47: PG3
B48: 2205010 | C48: Yonos GIGA2.0-I 80/1-19/5,5 | D48: =VLOOKUP(B48,'Wilo Price List'!B:F,5,FALSE) -> £6,556.00 | E48: PG3
B49: 2205009 | C49: Yonos GIGA2.0-I 80/1-23/7,5 | D49: =VLOOKUP(B49,'Wilo Price List'!B:F,5,FALSE) -> £6,556.00 | E49: PG3
B51: 2205023 | C51: Yonos GIGA2.0-I 100/1-8/2,2 | D51: =VLOOKUP(B51,'Wilo Price List'!B:F,5,FALSE) -> £7,541.00 | E51: PG3
B52: 2205022 | C52: Yonos GIGA2.0-I 100/1-9/3,0 | D52: =VLOOKUP(B52,'Wilo Price List'!B:F,5,FALSE) -> £7,524.00 | E52: PG3
B53: 2205021 | C53: Yonos GIGA2.0-I 100/1-11/4,0 | D53: =VLOOKUP(B53,'Wilo Price List'!B:F,5,FALSE) -> £8,957.00 | E53: PG3
B54: 2205020 | C54: Yonos GIGA2.0-I 100/1-14/5,5 | D54: =VLOOKUP(B54,'Wilo Price List'!B:F,5,FALSE) -> £10,927.00 | E54: PG3
B55: 2205019 | C55: Yonos GIGA2.0-I 100/1-18/7,5 | D55: =VLOOKUP(B55,'Wilo Price List'!B:F,5,FALSE) -> £10,873.00 | E55: PG3
B57: 2205028 | C57: Yonos GIGA2.0-I 125/1-7/2,2 | D57: =VLOOKUP(B57,'Wilo Price List'!B:F,5,FALSE) -> £7,959.00 | E57: PG3
B58: 2205027 | C58: Yonos GIGA2.0-I 125/1-9/3,0 | D58: =VLOOKUP(B58,'Wilo Price List'!B:F,5,FALSE) -> £7,959.00 | E58: PG3
B59: 2205026 | C59: Yonos GIGA2.0-I 125/1-11/4,0 | D59: =VLOOKUP(B59,'Wilo Price List'!B:F,5,FALSE) -> £9,327.00 | E59: PG3
B60: 2205025 | C60: Yonos GIGA2.0-I 125/1-14/5,5 | D60: =VLOOKUP(B60,'Wilo Price List'!B:F,5,FALSE) -> £11,624.00 | E60: PG3
B61: 2205024 | C61: Yonos GIGA2.0-I 125/1-17/7,5 | D61: =VLOOKUP(B61,'Wilo Price List'!B:F,5,FALSE) -> £11,570.00 | E61: PG3
B63: 1~
B65: 2207029 | C65: Yonos GIGA2.0-I 32/1-9/M-0,37 | D65: =VLOOKUP(B65,'Wilo Price List'!B:F,5,FALSE) -> £4,592.00 | E65: PG3
B66: 2207028 | C66: Yonos GIGA2.0-I 32/1-12/M-0,55 | D66: =VLOOKUP(B66,'Wilo Price List'!B:F,5,FALSE) -> £4,592.00 | E66: PG3
B67: 2207027 | C67: Yonos GIGA2.0-I 32/1-15/M-0,75 | D67: =VLOOKUP(B67,'Wilo Price List'!B:F,5,FALSE) -> £4,734.00 | E67: PG3
B68: 2207026 | C68: Yonos GIGA2.0-I 32/1-19/M-1,1 | D68: =VLOOKUP(B68,'Wilo Price List'!B:F,5,FALSE) -> £4,734.00 | E68: PG3
B69: 2207025 | C69: Yonos GIGA2.0-I 32/1-24/M-1,5 | D69: =VLOOKUP(B69,'Wilo Price List'!B:F,5,FALSE) -> £4,728.00 | E69: PG3
B71: 2207034 | C71: Yonos GIGA2.0-I 40/1-6/M-0,37 | D71: =VLOOKUP(B71,'Wilo Price List'!B:F,5,FALSE) -> £4,596.00 | E71: PG3
B72: 2207033 | C72: Yonos GIGA2.0-I 40/1-8/M-0,55 | D72: =VLOOKUP(B72,'Wilo Price List'!B:F,5,FALSE) -> £4,711.00 | E72: PG3
B73: 2207032 | C73: Yonos GIGA2.0-I 40/1-10/M-0,75 | D73: =VLOOKUP(B73,'Wilo Price List'!B:F,5,FALSE) -> £4,711.00 | E73: PG3
B74: 2207031 | C74: Yonos GIGA2.0-I 40/1-13/M-1,1 | D74: =VLOOKUP(B74,'Wilo Price List'!B:F,5,FALSE) -> £4,711.00 | E74: PG3
B75: 2207030 | C75: Yonos GIGA2.0-I 40/1-16/M-1,5 | D75: =VLOOKUP(B75,'Wilo Price List'!B:F,5,FALSE) -> £4,921.00 | E75: PG3
B77: 2207039 | C77: Yonos GIGA2.0-I 50/1-5/M-0,37 | D77: =VLOOKUP(B77,'Wilo Price List'!B:F,5,FALSE) -> £4,691.00 | E77: PG3
B78: 2207038 | C78: Yonos GIGA2.0-I 50/1-6/M-0,55 | D78: =VLOOKUP(B78,'Wilo Price List'!B:F,5,FALSE) -> £4,807.00 | E78: PG3
B79: 2207037 | C79: Yonos GIGA2.0-I 50/1-8/M-0,75 | D79: =VLOOKUP(B79,'Wilo Price List'!B:F,5,FALSE) -> £4,807.00 | E79: PG3
B80: 2207036 | C80: Yonos GIGA2.0-I 50/1-10/M-1,1 | D80: =VLOOKUP(B80,'Wilo Price List'!B:F,5,FALSE) -> £4,807.00 | E80: PG3
B81: 2207035 | C81: Yonos GIGA2.0-I 50/1-13/M-1,5 | D81: =VLOOKUP(B81,'Wilo Price List'!B:F,5,FALSE) -> £5,019.00 | E81: PG3
B83: 2207044 | C83: Yonos GIGA2.0-I 65/1-4/M-0,37 | D83: =VLOOKUP(B83,'Wilo Price List'!B:F,5,FALSE) -> £4,706.00 | E83: PG3
B84: 2207043 | C84: Yonos GIGA2.0-I 65/1-5/M-0,55 | D84: =VLOOKUP(B84,'Wilo Price List'!B:F,5,FALSE) -> £4,706.00 | E84: PG3
B85: 2207042 | C85: Yonos GIGA2.0-I 65/1-6/M-0,75 | D85: =VLOOKUP(B85,'Wilo Price List'!B:F,5,FALSE) -> £4,847.00 | E85: PG3
B86: 2207041 | C86: Yonos GIGA2.0-I 65/1-8/M-1,1 | D86: =VLOOKUP(B86,'Wilo Price List'!B:F,5,FALSE) -> £4,846.00 | E86: PG3
B87: 2207040 | C87: Yonos GIGA2.0-I 65/1-10/M-1,5 | D87: =VLOOKUP(B87,'Wilo Price List'!B:F,5,FALSE) -> £5,055.00 | E87: PG3
B89: 2207049 | C89: Yonos GIGA2.0-I 80/1-3/M-0,37 | D89: =VLOOKUP(B89,'Wilo Price List'!B:F,5,FALSE) -> £4,883.00 | E89: PG3
B90: 2207048 | C90: Yonos GIGA2.0-I 80/1-4/M-0,55 | D90: =VLOOKUP(B90,'Wilo Price List'!B:F,5,FALSE) -> £4,999.00 | E90: PG3
B91: 2207047 | C91: Yonos GIGA2.0-I 80/1-5/M-0,75 | D91: =VLOOKUP(B91,'Wilo Price List'!B:F,5,FALSE) -> £4,999.00 | E91: PG3
B92: 2207046 | C92: Yonos GIGA2.0-I 80/1-6/M-1,1 | D92: =VLOOKUP(B92,'Wilo Price List'!B:F,5,FALSE) -> £4,999.00 | E92: PG3
B93: 2207045 | C93: Yonos GIGA2.0-I 80/1-8/M-1,5 | D93: =VLOOKUP(B93,'Wilo Price List'!B:F,5,FALSE) -> £5,208.00 | E93: PG3

Sheet Stratos Giga I 2.0
B2: Stratos Giga 2.0 I | H2: Home
B5: Article No. (or variant) | C5: Article description | D5: List Price | E5: Price group
B7: 3~
B9: 2204720 | C9: Stratos GIGA2.0-I 32/1-25/1,5 | D9: =VLOOKUP(B9,'Wilo Price List'!B:F,5,FALSE) -> £6,644.00 | E9: PG3
B10: 2204721 | C10: Stratos GIGA2.0-I 32/1-20/1,1 | D10: =VLOOKUP(B10,'Wilo Price List'!B:F,5,FALSE) -> £6,480.00 | E10: PG3
B11: 2204722 | C11: Stratos GIGA2.0-I 32/1-15/0,75 | D11: =VLOOKUP(B11,'Wilo Price List'!B:F,5,FALSE) -> £6,311.00 | E11: PG3
B12: 2204723 | C12: Stratos GIGA2.0-I 32/1-13/0,55 | D12: =VLOOKUP(B12,'Wilo Price List'!B:F,5,FALSE) -> £6,126.00 | E12: PG3
B14: 2204726 | C14: Stratos GIGA2.0-I 40/1-19/1,1 | D14: =VLOOKUP(B14,'Wilo Price List'!B:F,5,FALSE) -> £6,448.00 | E14: PG3
B15: 2204727 | C15: Stratos GIGA2.0-I 40/1-14/0,75 | D15: =VLOOKUP(B15,'Wilo Price List'!B:F,5,FALSE) -> £6,235.00 | E15: PG3
B16: 2204728 | C16: Stratos GIGA2.0-I 40/1-11/0,55 | D16: =VLOOKUP(B16,'Wilo Price List'!B:F,5,FALSE) -> £6,094.00 | E16: PG3
B18: 2204733 | C18: Stratos GIGA2.0-I 50/1-17/1,1 | D18: =VLOOKUP(B18,'Wilo Price List'!B:F,5,FALSE) -> £6,521.00 | E18: PG3
B19: 2204734 | C19: Stratos GIGA2.0-I 50/1-13/0,75 | D19: =VLOOKUP(B19,'Wilo Price List'!B:F,5,FALSE) -> £6,251.00 | E19: PG3
B20: 2204735 | C20: Stratos GIGA2.0-I 50/1-10/0,55 | D20: =VLOOKUP(B20,'Wilo Price List'!B:F,5,FALSE) -> £6,181.00 | E20: PG3
B22: 2204740 | C22: Stratos GIGA2.0-I 65/1-12/1,1 | D22: =VLOOKUP(B22,'Wilo Price List'!B:F,5,FALSE) -> £6,435.00 | E22: PG3
B23: 2204741 | C23: Stratos GIGA2.0-I 65/1-9/0,75 | D23: =VLOOKUP(B23,'Wilo Price List'!B:F,5,FALSE) -> £6,435.00 | E23: PG3
B24: 2204742 | C24: Stratos GIGA2.0-I 65/1-7/0,55 | D24: =VLOOKUP(B24,'Wilo Price List'!B:F,5,FALSE) -> £6,295.00 | E24: PG3
B26: 2204748 | C26: Stratos GIGA2.0-I 80/1-10/1,1 | D26: =VLOOKUP(B26,'Wilo Price List'!B:F,5,FALSE) -> £6,744.00 | E26: PG3
B27: 2204749 | C27: Stratos GIGA2.0-I 80/1-8/0,75 | D27: =VLOOKUP(B27,'Wilo Price List'!B:F,5,FALSE) -> £6,695.00 | E27: PG3
B28: 2204750 | C28: Stratos GIGA2.0-I 80/1-6/0,55 | D28: =VLOOKUP(B28,'Wilo Price List'!B:F,5,FALSE) -> £6,625.00 | E28: PG3
B30: 2204725 | C30: Stratos GIGA2.0-I 40/1-23/1,5 | D30: =VLOOKUP(B30,'Wilo Price List'!B:F,5,FALSE) -> £6,551.00 | E30: PG3
B31: 2204730 | C31: Stratos GIGA2.0-I 40/1-37/3,0 | D31: =VLOOKUP(B31,'Wilo Price List'!B:F,5,FALSE) -> £6,731.00 | E31: PG3
B32: 2204731 | C32: Stratos GIGA2.0-I 40/1-31/2,2 | D32: =VLOOKUP(B32,'Wilo Price List'!B:F,5,FALSE) -> £6,598.00 | E32: PG3
B34: 2204732 | C34: Stratos GIGA2.0-I 50/1-20/1,5 | D34: =VLOOKUP(B34,'Wilo Price List'!B:F,5,FALSE) -> £6,660.00 | E34: PG3
B35: 2204737 | C35: Stratos GIGA2.0-I 50/1-37/3,0 | D35: =VLOOKUP(B35,'Wilo Price List'!B:F,5,FALSE) -> £6,820.00 | E35: PG3
B36: 2204738 | C36: Stratos GIGA2.0-I 50/1-30/2,2 | D36: =VLOOKUP(B36,'Wilo Price List'!B:F,5,FALSE) -> £6,687.00 | E36: PG3
B38: 2204739 | C38: Stratos GIGA2.0-I 65/1-15/1,5 | D38: =VLOOKUP(B38,'Wilo Price List'!B:F,5,FALSE) -> £6,765.00 | E38: PG3
B39: 2204744 | C39: Stratos GIGA2.0-I 65/1-37/4,0 | D39: =VLOOKUP(B39,'Wilo Price List'!B:F,5,FALSE) -> £7,093.00 | E39: PG3
B40: 2204745 | C40: Stratos GIGA2.0-I 65/1-31/3,0 | D40: =VLOOKUP(B40,'Wilo Price List'!B:F,5,FALSE) -> £6,916.00 | E40: PG3
B41: 2204746 | C41: Stratos GIGA2.0-I 65/1-25/2,2 | D41: =VLOOKUP(B41,'Wilo Price List'!B:F,5,FALSE) -> £6,968.00 | E41: PG3
B43: 2204747 | C43: Stratos GIGA2.0-I 80/1-13/1,5 | D43: =VLOOKUP(B43,'Wilo Price List'!B:F,5,FALSE) -> £7,189.00 | E43: PG3
B44: 2204754 | C44: Stratos GIGA2.0-I 80/1-30/4,0 | D44: =VLOOKUP(B44,'Wilo Price List'!B:F,5,FALSE) -> £7,392.00 | E44: PG3
B45: 2204755 | C45: Stratos GIGA2.0-I 80/1-24/3,0 | D45: =VLOOKUP(B45,'Wilo Price List'!B:F,5,FALSE) -> £7,244.00 | E45: PG3
B46: 2204756 | C46: Stratos GIGA2.0-I 80/1-20/2,2 | D46: =VLOOKUP(B46,'Wilo Price List'!B:F,5,FALSE) -> £7,244.00 | E46: PG3
B48: 2204758 | C48: Stratos GIGA2.0-I 100/1-8/1,1 | D48: =VLOOKUP(B48,'Wilo Price List'!B:F,5,FALSE) -> £7,605.00 | E48: PG3
B49: 2204757 | C49: Stratos GIGA2.0-I 100/1-9/1,5 | D49: =VLOOKUP(B49,'Wilo Price List'!B:F,5,FALSE) -> £7,678.00 | E49: PG3
B50: 2204764 | C50: Stratos GIGA2.0-I 100/1-25/4,0 | D50: =VLOOKUP(B50,'Wilo Price List'!B:F,5,FALSE) -> £7,856.00 | E50: PG3
B51: 2204765 | C51: Stratos GIGA2.0-I 100/1-20/3,0 | D51: =VLOOKUP(B51,'Wilo Price List'!B:F,5,FALSE) -> £7,753.00 | E51: PG3
B52: 2204766 | C52: Stratos GIGA2.0-I 100/1-17/2,2 | D52: =VLOOKUP(B52,'Wilo Price List'!B:F,5,FALSE) -> £7,858.00 | E52: PG3
B53: 2204774 | C53: Stratos GIGA2.0-I 100/1-11/4,0 | D53: =VLOOKUP(B53,'Wilo Price List'!B:F,5,FALSE) -> £10,380.00 | E53: PG3
B54: 2204775 | C54: Stratos GIGA2.0-I 100/1-9/3,0 | D54: =VLOOKUP(B54,'Wilo Price List'!B:F,5,FALSE) -> £8,576.00 | E54: PG3
B55: 2204776 | C55: Stratos GIGA2.0-I 100/1-8/2,2 | D55: =VLOOKUP(B55,'Wilo Price List'!B:F,5,FALSE) -> £8,577.00 | E55: PG3
B57: 2204779 | C57: Stratos GIGA2.0-I 125/1-11/4,0 | D57: =VLOOKUP(B57,'Wilo Price List'!B:F,5,FALSE) -> £10,746.00 | E57: PG3
B58: 2204780 | C58: Stratos GIGA2.0-I 125/1-9/3,0 | D58: =VLOOKUP(B58,'Wilo Price List'!B:F,5,FALSE) -> £8,980.00 | E58: PG3
B59: 2204781 | C59: Stratos GIGA2.0-I 125/1-7/2,2 | D59: =VLOOKUP(B59,'Wilo Price List'!B:F,5,FALSE) -> £8,995.00 | E59: PG3
B62: 1~
B63: 2206909 | C63: Stratos GIGA2.0-I 32/1-9/M-0,37 | D63: =VLOOKUP(B63,'Wilo Price List'!B:F,5,FALSE) -> £6,033.00 | E63: PG3
B64: 2206908 | C64: Stratos GIGA2.0-I 32/1-13/M-0,55 | D64: =VLOOKUP(B64,'Wilo Price List'!B:F,5,FALSE) -> £6,033.00 | E64: PG3
B65: 2206907 | C65: Stratos GIGA2.0-I 32/1-15/M-0,75 | D65: =VLOOKUP(B65,'Wilo Price List'!B:F,5,FALSE) -> £6,174.00 | E65: PG3
B66: 2206906 | C66: Stratos GIGA2.0-I 32/1-20/M-1,1 | D66: =VLOOKUP(B66,'Wilo Price List'!B:F,5,FALSE) -> £6,168.00 | E66: PG3
B67: 2206905 | C67: Stratos GIGA2.0-I 32/1-25/M-1,5 | D67: =VLOOKUP(B67,'Wilo Price List'!B:F,5,FALSE) -> £6,169.00 | E67: PG3
B69: 2206914 | C69: Stratos GIGA2.0-I 40/1-8/M-0,37 | D69: =VLOOKUP(B69,'Wilo Price List'!B:F,5,FALSE) -> £5,665.00 | E69: PG3
B70: 2206913 | C70: Stratos GIGA2.0-I 40/1-11/M-0,55 | D70: =VLOOKUP(B70,'Wilo Price List'!B:F,5,FALSE) -> £5,665.00 | E70: PG3
B71: 2206912 | C71: Stratos GIGA2.0-I 40/1-14/M-0,75 | D71: =VLOOKUP(B71,'Wilo Price List'!B:F,5,FALSE) -> £5,807.00 | E71: PG3
B72: 2206911 | C72: Stratos GIGA2.0-I 40/1-19/M-1,1 | D72: =VLOOKUP(B72,'Wilo Price List'!B:F,5,FALSE) -> £5,801.00 | E72: PG3
B73: 2206910 | C73: Stratos GIGA2.0-I 40/1-23/M-1,5 | D73: =VLOOKUP(B73,'Wilo Price List'!B:F,5,FALSE) -> £5,801.00 | E73: PG3
B75: 2206919 | C75: Stratos GIGA2.0-I 50/1-8/M-0,37 | D75: =VLOOKUP(B75,'Wilo Price List'!B:F,5,FALSE) -> £5,743.00 | E75: PG3
B76: 2206918 | C76: Stratos GIGA2.0-I 50/1-10/M-0,55 | D76: =VLOOKUP(B76,'Wilo Price List'!B:F,5,FALSE) -> £5,743.00 | E76: PG3
B77: 2206917 | C77: Stratos GIGA2.0-I 50/1-13/M-0,75 | D77: =VLOOKUP(B77,'Wilo Price List'!B:F,5,FALSE) -> £5,743.00 | E77: PG3
B78: 2206916 | C78: Stratos GIGA2.0-I 50/1-17/M-1,1 | D78: =VLOOKUP(B78,'Wilo Price List'!B:F,5,FALSE) -> £5,897.00 | E78: PG3
B79: 2206915 | C79: Stratos GIGA2.0-I 50/1-20/M-1,5 | D79: =VLOOKUP(B79,'Wilo Price List'!B:F,5,FALSE) -> £5,906.00 | E79: PG3
B81: 2206924 | C81: Stratos GIGA2.0-I 65/1-5/M-0,37 | D81: =VLOOKUP(B81,'Wilo Price List'!B:F,5,FALSE) -> £6,105.00 | E81: PG3
B82: 2206923 | C82: Stratos GIGA2.0-I 65/1-7/M-0,55 | D82: =VLOOKUP(B82,'Wilo Price List'!B:F,5,FALSE) -> £6,105.00 | E82: PG3
B83: 2206922 | C83: Stratos GIGA2.0-I 65/1-9/M-0,75 | D83: =VLOOKUP(B83,'Wilo Price List'!B:F,5,FALSE) -> £6,246.00 | E83: PG3
B84: 2206921 | C84: Stratos GIGA2.0-I 65/1-12/M-1,1 | D84: =VLOOKUP(B84,'Wilo Price List'!B:F,5,FALSE) -> £6,246.00 | E84: PG3
B85: 2206920 | C85: Stratos GIGA2.0-I 65/1-15/M-1,5 | D85: =VLOOKUP(B85,'Wilo Price List'!B:F,5,FALSE) -> £6,240.00 | E85: PG3
B87: 2206929 | C87: Stratos GIGA2.0-I 80/1-5/M-0,37 | D87: =VLOOKUP(B87,'Wilo Price List'!B:F,5,FALSE) -> £6,202.00 | E87: PG3
B88: 2206928 | C88: Stratos GIGA2.0-I 80/1-6/M-0,55 | D88: =VLOOKUP(B88,'Wilo Price List'!B:F,5,FALSE) -> £6,318.00 | E88: PG3
B89: 2206927 | C89: Stratos GIGA2.0-I 80/1-8/M-0,75 | D89: =VLOOKUP(B89,'Wilo Price List'!B:F,5,FALSE) -> £6,318.00 | E89: PG3
B90: 2206926 | C90: Stratos GIGA2.0-I 80/1-10/M-1,1 | D90: =VLOOKUP(B90,'Wilo Price List'!B:F,5,FALSE) -> £6,318.00 | E90: PG3
B91: 2206925 | C91: Stratos GIGA2.0-I 80/1-13/M-1,5 | D91: =VLOOKUP(B91,'Wilo Price List'!B:F,5,FALSE) -> £6,552.00 | E91: PG3
B93: 2206931 | C93: Stratos GIGA2.0-I 100/1-8/M-1,1 | D93: =VLOOKUP(B93,'Wilo Price List'!B:F,5,FALSE) -> £6,951.00 | E93: PG3
B94: 2206930 | C94: Stratos GIGA2.0-I 100/1-9/M-1,5 | D94: =VLOOKUP(B94,'Wilo Price List'!B:F,5,FALSE) -> £6,950.00 | E94: PG3

Sheet Stratos Giga D 2.0
B2: Stratos Giga 2.0 D | H2: Home
B5: Article No. (or variant) | C5: Article description | D5: List Price | E5: Price group
B7: 3~
B8: 2205604 | C8: Stratos GIGA2.0-D 32/1-25/1,5 | D8: =VLOOKUP(B8,'Wilo Price List'!B:F,5,FALSE) -> £12,535.00 | E8: PG3
B9: 2205605 | C9: Stratos GIGA2.0-D 32/1-20/1,1 | D9: =VLOOKUP(B9,'Wilo Price List'!B:F,5,FALSE) -> £12,208.00 | E9: PG3
B10: 2205606 | C10: Stratos GIGA2.0-D 32/1-15/0,75 | D10: =VLOOKUP(B10,'Wilo Price List'!B:F,5,FALSE) -> £11,782.00 | E10: PG3
B11: 2205607 | C11: Stratos GIGA2.0-D 32/1-13/0,55 | D11: =VLOOKUP(B11,'Wilo Price List'!B:F,5,FALSE) -> £11,500.00 | E11: PG3
B12: 2205604 | C12: Stratos GIGA2.0-D 32/1-25/1.5 | D12: =VLOOKUP(B12,'Wilo Price List'!B:F,5,FALSE) -> £12,535.00 | E12: PG3
B13: 2205605 | C13: Stratos GIGA2.0-D 32/1-20/1.1 | D13: =VLOOKUP(B13,'Wilo Price List'!B:F,5,FALSE) -> £12,208.00 | E13: PG3
B14: 2205606 | C14: Stratos GIGA2.0-D 32/1-15/0.75 | D14: =VLOOKUP(B14,'Wilo Price List'!B:F,5,FALSE) -> £11,782.00 | E14: PG3
B15: 2205607 | C15: Stratos GIGA2.0-D 32/1-13/0.55 | D15: =VLOOKUP(B15,'Wilo Price List'!B:F,5,FALSE) -> £11,500.00 | E15: PG3
B17: 2205610 | C17: Stratos GIGA2.0-D 40/1-19/1,1 | D17: =VLOOKUP(B17,'Wilo Price List'!B:F,5,FALSE) -> £12,897.00 | E17: PG3
B18: 2205611 | C18: Stratos GIGA2.0-D 40/1-14/0,75 | D18: =VLOOKUP(B18,'Wilo Price List'!B:F,5,FALSE) -> £12,471.00 | E18: PG3
B19: 2205612 | C19: Stratos GIGA2.0-D 40/1-11/0,55 | D19: =VLOOKUP(B19,'Wilo Price List'!B:F,5,FALSE) -> £12,189.00 | E19: PG3
B20: 2205609 | C20: Stratos GIGA2.0-D 40/1-23/1,5 | D20: =VLOOKUP(B20,'Wilo Price List'!B:F,5,FALSE) -> £13,347.00 | E20: PG3
B21: 2205614 | C21: Stratos GIGA2.0-D 40/1-37/3,0 | D21: =VLOOKUP(B21,'Wilo Price List'!B:F,5,FALSE) -> £13,654.00 | E21: PG3
B22: 2205615 | C22: Stratos GIGA2.0-D 40/1-31/2,2 | D22: =VLOOKUP(B22,'Wilo Price List'!B:F,5,FALSE) -> £13,389.00 | E22: PG3
B23: 2205610 | C23: Stratos GIGA2.0-D 40/1-19/1.1 | D23: =VLOOKUP(B23,'Wilo Price List'!B:F,5,FALSE) -> £12,897.00 | E23: PG3
B24: 2205611 | C24: Stratos GIGA2.0-D 40/1-14/0.75 | D24: =VLOOKUP(B24,'Wilo Price List'!B:F,5,FALSE) -> £12,471.00 | E24: PG3
B25: 2205612 | C25: Stratos GIGA2.0-D 40/1-11/0.55 | D25: =VLOOKUP(B25,'Wilo Price List'!B:F,5,FALSE) -> £12,189.00 | E25: PG3
B27: 2205617 | C27: Stratos GIGA2.0-D 50/1-17/1,1 | D27: =VLOOKUP(B27,'Wilo Price List'!B:F,5,FALSE) -> £13,409.00 | E27: PG3
B28: 2205618 | C28: Stratos GIGA2.0-D 50/1-13/0,75 | D28: =VLOOKUP(B28,'Wilo Price List'!B:F,5,FALSE) -> £12,870.00 | E28: PG3
B29: 2205619 | C29: Stratos GIGA2.0-D 50/1-10/0,55 | D29: =VLOOKUP(B29,'Wilo Price List'!B:F,5,FALSE) -> £12,730.00 | E29: PG3
B30: 2205616 | C30: Stratos GIGA2.0-D 50/1-20/1,5 | D30: =VLOOKUP(B30,'Wilo Price List'!B:F,5,FALSE) -> £14,713.00 | E30: PG3
B31: 2205621 | C31: Stratos GIGA2.0-D 50/1-37/3,0 | D31: =VLOOKUP(B31,'Wilo Price List'!B:F,5,FALSE) -> £15,812.00 | E31: PG3
B32: 2205622 | C32: Stratos GIGA2.0-D 50/1-30/2,2 | D32: =VLOOKUP(B32,'Wilo Price List'!B:F,5,FALSE) -> £15,428.00 | E32: PG3
B33: 2205617 | C33: Stratos GIGA2.0-D 50/1-17/1.1 | D33: =VLOOKUP(B33,'Wilo Price List'!B:F,5,FALSE) -> £13,409.00 | E33: PG3
B34: 2205618 | C34: Stratos GIGA2.0-D 50/1-13/0.75 | D34: =VLOOKUP(B34,'Wilo Price List'!B:F,5,FALSE) -> £12,870.00 | E34: PG3
B35: 2205619 | C35: Stratos GIGA2.0-D 50/1-10/0.55 | D35: =VLOOKUP(B35,'Wilo Price List'!B:F,5,FALSE) -> £12,730.00 | E35: PG3
B37: 2205624 | C37: Stratos GIGA2.0-D 65/1-12/1,1 | D37: =VLOOKUP(B37,'Wilo Price List'!B:F,5,FALSE) -> £13,276.00 | E37: PG3
B38: 2205625 | C38: Stratos GIGA2.0-D 65/1-9/0,75 | D38: =VLOOKUP(B38,'Wilo Price List'!B:F,5,FALSE) -> £13,276.00 | E38: PG3
B39: 2205626 | C39: Stratos GIGA2.0-D 65/1-7/0,55 | D39: =VLOOKUP(B39,'Wilo Price List'!B:F,5,FALSE) -> £12,994.00 | E39: PG3
B40: 2205623 | C40: Stratos GIGA2.0-D 65/1-15/1,5 | D40: =VLOOKUP(B40,'Wilo Price List'!B:F,5,FALSE) -> £14,269.00 | E40: PG3
B41: 2205628 | C41: Stratos GIGA2.0-D 65/1-37/4,0 | D41: =VLOOKUP(B41,'Wilo Price List'!B:F,5,FALSE) -> £15,809.00 | E41: PG3
B42: 2205629 | C42: Stratos GIGA2.0-D 65/1-31/3,0 | D42: =VLOOKUP(B42,'Wilo Price List'!B:F,5,FALSE) -> £15,405.00 | E42: PG3
B43: 2205630 | C43: Stratos GIGA2.0-D 65/1-25/2,2 | D43: =VLOOKUP(B43,'Wilo Price List'!B:F,5,FALSE) -> £15,560.00 | E43: PG3
B44: 2205624 | C44: Stratos GIGA2.0-D 65/1-12/1.1 | D44: =VLOOKUP(B44,'Wilo Price List'!B:F,5,FALSE) -> £13,276.00 | E44: PG3
B45: 2205625 | C45: Stratos GIGA2.0-D 65/1-9/0.75 | D45: =VLOOKUP(B45,'Wilo Price List'!B:F,5,FALSE) -> £13,276.00 | E45: PG3
B46: 2205626 | C46: Stratos GIGA2.0-D 65/1-7/0.55 | D46: =VLOOKUP(B46,'Wilo Price List'!B:F,5,FALSE) -> £12,994.00 | E46: PG3
B48: 2205632 | C48: Stratos GIGA2.0-D 80/1-10/1,1 | D48: =VLOOKUP(B48,'Wilo Price List'!B:F,5,FALSE) -> £13,679.00 | E48: PG3
B49: 2205633 | C49: Stratos GIGA2.0-D 80/1-8/0,75 | D49: =VLOOKUP(B49,'Wilo Price List'!B:F,5,FALSE) -> £13,679.00 | E49: PG3
B50: 2205634 | C50: Stratos GIGA2.0-D 80/1-6/0,55 | D50: =VLOOKUP(B50,'Wilo Price List'!B:F,5,FALSE) -> £13,540.00 | E50: PG3
B51: 2205631 | C51: Stratos GIGA2.0-D 80/1-13/1,5 | D51: =VLOOKUP(B51,'Wilo Price List'!B:F,5,FALSE) -> £15,010.00 | E51: PG3
B52: 2205638 | C52: Stratos GIGA2.0-D 80/1-30/4,0 | D52: =VLOOKUP(B52,'Wilo Price List'!B:F,5,FALSE) -> £15,067.00 | E52: PG3
B53: 2205639 | C53: Stratos GIGA2.0-D 80/1-24/3,0 | D53: =VLOOKUP(B53,'Wilo Price List'!B:F,5,FALSE) -> £14,746.00 | E53: PG3
B54: 2205640 | C54: Stratos GIGA2.0-D 80/1-20/2,2 | D54: =VLOOKUP(B54,'Wilo Price List'!B:F,5,FALSE) -> £14,746.00 | E54: PG3
B55: 2205637 | C55: Stratos GIGA2.0-D 80/1-35/5,5 | D55: =VLOOKUP(B55,'Wilo Price List'!B:F,5,FALSE) -> £16,149.00 | E55: PG3
B56: 2205636 | C56: Stratos GIGA2.0-D 80/1-43/7,5 | D56: =VLOOKUP(B56,'Wilo Price List'!B:F,5,FALSE) -> £16,168.00 | E56: PG3
B57: 2205632 | C57: Stratos GIGA2.0-D 80/1-10/1.1 | D57: =VLOOKUP(B57,'Wilo Price List'!B:F,5,FALSE) -> £13,679.00 | E57: PG3
B58: 2205633 | C58: Stratos GIGA2.0-D 80/1-8/0.75 | D58: =VLOOKUP(B58,'Wilo Price List'!B:F,5,FALSE) -> £13,679.00 | E58: PG3
B59: 2205634 | C59: Stratos GIGA2.0-D 80/1-6/0.55 | D59: =VLOOKUP(B59,'Wilo Price List'!B:F,5,FALSE) -> £13,540.00 | E59: PG3
B61: 2205642 | C61: Stratos GIGA2.0-D 100/1-8/1,1 | D61: =VLOOKUP(B61,'Wilo Price List'!B:F,5,FALSE) -> £14,851.00 | E61: PG3
B62: 2205641 | C62: Stratos GIGA2.0-D 100/1-9/1,5 | D62: =VLOOKUP(B62,'Wilo Price List'!B:F,5,FALSE) -> £15,467.00 | E62: PG3
B63: 2205648 | C63: Stratos GIGA2.0-D 100/1-25/4,0 | D63: =VLOOKUP(B63,'Wilo Price List'!B:F,5,FALSE) -> £15,561.00 | E63: PG3
B64: 2205649 | C64: Stratos GIGA2.0-D 100/1-20/3,0 | D64: =VLOOKUP(B64,'Wilo Price List'!B:F,5,FALSE) -> £15,355.00 | E64: PG3
B65: 2205650 | C65: Stratos GIGA2.0-D 100/1-17/2,2 | D65: =VLOOKUP(B65,'Wilo Price List'!B:F,5,FALSE) -> £15,566.00 | E65: PG3
B66: 2205658 | C66: Stratos GIGA2.0-D 100/1-11/4,0 | D66: =VLOOKUP(B66,'Wilo Price List'!B:F,5,FALSE) -> £22,181.00 | E66: PG3
B67: 2205659 | C67: Stratos GIGA2.0-D 100/1-9/3,0 | D67: =VLOOKUP(B67,'Wilo Price List'!B:F,5,FALSE) -> £18,574.00 | E67: PG3
B68: 2205660 | C68: Stratos GIGA2.0-D 100/1-8/2,2 | D68: =VLOOKUP(B68,'Wilo Price List'!B:F,5,FALSE) -> £18,689.00 | E68: PG3
B69: 2205647 | C69: Stratos GIGA2.0-D 100/1-30/5,5 | D69: =VLOOKUP(B69,'Wilo Price List'!B:F,5,FALSE) -> £16,678.00 | E69: PG3
B70: 2205646 | C70: Stratos GIGA2.0-D 100/1-38/7,5 | D70: =VLOOKUP(B70,'Wilo Price List'!B:F,5,FALSE) -> £16,691.00 | E70: PG3
B71: 2205657 | C71: Stratos GIGA2.0-D 100/1-14/5,5 | D71: =VLOOKUP(B71,'Wilo Price List'!B:F,5,FALSE) -> £25,186.00 | E71: PG3
B72: 2205656 | C72: Stratos GIGA2.0-D 100/1-18/7,5 | D72: =VLOOKUP(B72,'Wilo Price List'!B:F,5,FALSE) -> £25,070.00 | E72: PG3
B73: 2205642 | C73: Stratos GIGA2.0-D 100/1-8/1.1 | D73: =VLOOKUP(B73,'Wilo Price List'!B:F,5,FALSE) -> £14,851.00 | E73: PG3
B74: 2205641 | C74: Stratos GIGA2.0-D 100/1-9/1.5 | D74: =VLOOKUP(B74,'Wilo Price List'!B:F,5,FALSE) -> £15,467.00 | E74: PG3
B76: 2205663 | C76: Stratos GIGA2.0-D 125/1-11/4,0 | D76: =VLOOKUP(B76,'Wilo Price List'!B:F,5,FALSE) -> £32,660.00 | E76: PG3
B77: 2205664 | C77: Stratos GIGA2.0-D 125/1-9/3,0 | D77: =VLOOKUP(B77,'Wilo Price List'!B:F,5,FALSE) -> £29,099.00 | E77: PG3
B78: 2205665 | C78: Stratos GIGA2.0-D 125/1-7/2,2 | D78: =VLOOKUP(B78,'Wilo Price List'!B:F,5,FALSE) -> £29,099.00 | E78: PG3
B79: 2205662 | C79: Stratos GIGA2.0-D 125/1-14/5,5 | D79: =VLOOKUP(B79,'Wilo Price List'!B:F,5,FALSE) -> £33,027.00 | E79: PG3
B80: 2205661 | C80: Stratos GIGA2.0-D 125/1-17/7,5 | D80: =VLOOKUP(B80,'Wilo Price List'!B:F,5,FALSE) -> £32,911.00 | E80: PG3
B82: 1~
B83: 2207129 | C83: Stratos GIGA2.0-D 32/1-9/M-0,37 | D83: =VLOOKUP(B83,'Wilo Price List'!B:F,5,FALSE) -> £10,494.00 | E83: PG3
B84: 2207128 | C84: Stratos GIGA2.0-D 32/1-13/M-0,55 | D84: =VLOOKUP(B84,'Wilo Price List'!B:F,5,FALSE) -> £10,494.00 | E84: PG3
B85: 2207127 | C85: Stratos GIGA2.0-D 32/1-15/M-0,75 | D85: =VLOOKUP(B85,'Wilo Price List'!B:F,5,FALSE) -> £10,777.00 | E85: PG3
B86: 2207126 | C86: Stratos GIGA2.0-D 32/1-20/M-1,1 | D86: =VLOOKUP(B86,'Wilo Price List'!B:F,5,FALSE) -> £10,766.00 | E86: PG3
B87: 2207125 | C87: Stratos GIGA2.0-D 32/1-25/M-1,5 | D87: =VLOOKUP(B87,'Wilo Price List'!B:F,5,FALSE) -> £10,766.00 | E87: PG3
B89: 2207134 | C89: Stratos GIGA2.0-D 40/1-8/M-0,37 | D89: =VLOOKUP(B89,'Wilo Price List'!B:F,5,FALSE) -> £11,291.00 | E89: PG3
B90: 2207133 | C90: Stratos GIGA2.0-D 40/1-11/M-0,55 | D90: =VLOOKUP(B90,'Wilo Price List'!B:F,5,FALSE) -> £11,291.00 | E90: PG3
B91: 2207132 | C91: Stratos GIGA2.0-D 40/1-14/M-0,75 | D91: =VLOOKUP(B91,'Wilo Price List'!B:F,5,FALSE) -> £11,574.00 | E91: PG3
B92: 2207131 | C92: Stratos GIGA2.0-D 40/1-19/M-1,1 | D92: =VLOOKUP(B92,'Wilo Price List'!B:F,5,FALSE) -> £11,355.00 | E92: PG3
B93: 2207130 | C93: Stratos GIGA2.0-D 40/1-23/M-1,5 | D93: =VLOOKUP(B93,'Wilo Price List'!B:F,5,FALSE) -> £11,355.00 | E93: PG3
B95: 2207139 | C95: Stratos GIGA2.0-D 50/1-8/M-0,37 | D95: =VLOOKUP(B95,'Wilo Price List'!B:F,5,FALSE) -> £11,734.00 | E95: PG3
B96: 2207138 | C96: Stratos GIGA2.0-D 50/1-10/M-0,55 | D96: =VLOOKUP(B96,'Wilo Price List'!B:F,5,FALSE) -> £11,733.00 | E96: PG3
B97: 2207137 | C97: Stratos GIGA2.0-D 50/1-13/M-0,75 | D97: =VLOOKUP(B97,'Wilo Price List'!B:F,5,FALSE) -> £11,733.00 | E97: PG3
B98: 2207136 | C98: Stratos GIGA2.0-D 50/1-17/M-1,1 | D98: =VLOOKUP(B98,'Wilo Price List'!B:F,5,FALSE) -> £11,798.00 | E98: PG3
B99: 2207135 | C99: Stratos GIGA2.0-D 50/1-20/M-1,5 | D99: =VLOOKUP(B99,'Wilo Price List'!B:F,5,FALSE) -> £11,853.00 | E99: PG3
B101: 2207144 | C101: Stratos GIGA2.0-D 65/1-5/M-0,37 | D101: =VLOOKUP(B101,'Wilo Price List'!B:F,5,FALSE) -> £11,791.00 | E101: PG3
B102: 2207143 | C102: Stratos GIGA2.0-D 65/1-7/M-0,55 | D102: =VLOOKUP(B102,'Wilo Price List'!B:F,5,FALSE) -> £11,791.00 | E102: PG3
B103: 2207142 | C103: Stratos GIGA2.0-D 65/1-9/M-0,75 | D103: =VLOOKUP(B103,'Wilo Price List'!B:F,5,FALSE) -> £12,281.00 | E103: PG3
B104: 2207141 | C104: Stratos GIGA2.0-D 65/1-12/M-1,1 | D104: =VLOOKUP(B104,'Wilo Price List'!B:F,5,FALSE) -> £12,073.00 | E104: PG3
B105: 2207140 | C105: Stratos GIGA2.0-D 65/1-15/M-1,5 | D105: =VLOOKUP(B105,'Wilo Price List'!B:F,5,FALSE) -> £12,062.00 | E105: PG3
B107: 2207149 | C107: Stratos GIGA2.0-D 80/1-5/M-0,37 | D107: =VLOOKUP(B107,'Wilo Price List'!B:F,5,FALSE) -> £12,424.00 | E107: PG3
B108: 2207148 | C108: Stratos GIGA2.0-D 80/1-6/M-0,55 | D108: =VLOOKUP(B108,'Wilo Price List'!B:F,5,FALSE) -> £12,448.00 | E108: PG3
B109: 2207147 | C109: Stratos GIGA2.0-D 80/1-8/M-0,75 | D109: =VLOOKUP(B109,'Wilo Price List'!B:F,5,FALSE) -> £12,655.00 | E109: PG3
B110: 2207146 | C110: Stratos GIGA2.0-D 80/1-10/M-1,1 | D110: =VLOOKUP(B110,'Wilo Price List'!B:F,5,FALSE) -> £12,448.00 | E110: PG3
B111: 2207145 | C111: Stratos GIGA2.0-D 80/1-13/M-1,5 | D111: =VLOOKUP(B111,'Wilo Price List'!B:F,5,FALSE) -> £12,915.00 | E111: PG3
B113: 2207151 | C113: Stratos GIGA2.0-D 100/1-8/M-1,1 | D113: =VLOOKUP(B113,'Wilo Price List'!B:F,5,FALSE) -> £13,396.00 | E113: PG3
B114: 2207150 | C114: Stratos GIGA2.0-D 100/1-9/M-1,5 | D114: =VLOOKUP(B114,'Wilo Price List'!B:F,5,FALSE) -> £13,396.00 | E114: PG3

Sheet Yonos Giga D 2.0
B2: Yonos Giga | H2: Home
B5: Article No. (or variant) | C5: Article description | D5: List Price | E5: Price group
B7: 3~
B9: 2205855 | C9: Yonos GIGA2.0-D 32/1-12/0,55 | D9: =VLOOKUP(B9,'Wilo Price List'!B:F,5,FALSE) -> £8,697.00 | E9: PG3
B10: 2205854 | C10: Yonos GIGA2.0-D 32/1-15/0,75 | D10: =VLOOKUP(B10,'Wilo Price List'!B:F,5,FALSE) -> £9,020.00 | E10: PG3
B11: 2205853 | C11: Yonos GIGA2.0-D 32/1-19/1,1 | D11: =VLOOKUP(B11,'Wilo Price List'!B:F,5,FALSE) -> £9,031.00 | E11: PG3
B12: 2205852 | C12: Yonos GIGA2.0-D 32/1-24/1,5 | D12: =VLOOKUP(B12,'Wilo Price List'!B:F,5,FALSE) -> £9,010.00 | E12: PG3
B13: 2205857 | C13: Yonos GIGA2.0-D 32/1-32/2,2 | D13: =VLOOKUP(B13,'Wilo Price List'!B:F,5,FALSE) -> £9,337.00 | E13: PG3
B15: 2205861 | C15: Yonos GIGA2.0-D 40/1-8/0,55 | D15: =VLOOKUP(B15,'Wilo Price List'!B:F,5,FALSE) -> £8,512.00 | E15: PG3
B16: 2205860 | C16: Yonos GIGA2.0-D 40/1-10/0,75 | D16: =VLOOKUP(B16,'Wilo Price List'!B:F,5,FALSE) -> £8,974.00 | E16: PG3
B17: 2205859 | C17: Yonos GIGA2.0-D 40/1-13/1,1 | D17: =VLOOKUP(B17,'Wilo Price List'!B:F,5,FALSE) -> £8,974.00 | E17: PG3
B18: 2205858 | C18: Yonos GIGA2.0-D 40/1-16/1,5 | D18: =VLOOKUP(B18,'Wilo Price List'!B:F,5,FALSE) -> £9,241.00 | E18: PG3
B19: 2205867 | C19: Yonos GIGA2.0-D 40/1-21/2,2 | D19: =VLOOKUP(B19,'Wilo Price List'!B:F,5,FALSE) -> £9,285.00 | E19: PG3
B20: 2205866 | C20: Yonos GIGA2.0-D 40/1-26/3,0 | D20: =VLOOKUP(B20,'Wilo Price List'!B:F,5,FALSE) -> £9,282.00 | E20: PG3
B21: 2205865 | C21: Yonos GIGA2.0-D 40/1-31/4,0 | D21: =VLOOKUP(B21,'Wilo Price List'!B:F,5,FALSE) -> £9,921.00 | E21: PG3
B23: 2205871 | C23: Yonos GIGA2.0-D 50/1-6/0,55 | D23: =VLOOKUP(B23,'Wilo Price List'!B:F,5,FALSE) -> £9,230.00 | E23: PG3
B24: 2205870 | C24: Yonos GIGA2.0-D 50/1-8/0,75 | D24: =VLOOKUP(B24,'Wilo Price List'!B:F,5,FALSE) -> £9,364.00 | E24: PG3
B25: 2205869 | C25: Yonos GIGA2.0-D 50/1-10/1,1 | D25: =VLOOKUP(B25,'Wilo Price List'!B:F,5,FALSE) -> £9,364.00 | E25: PG3
B26: 2205868 | C26: Yonos GIGA2.0-D 50/1-13/1,5 | D26: =VLOOKUP(B26,'Wilo Price List'!B:F,5,FALSE) -> £9,631.00 | E26: PG3
B27: 2205877 | C27: Yonos GIGA2.0-D 50/1-17/2,2 | D27: =VLOOKUP(B27,'Wilo Price List'!B:F,5,FALSE) -> £9,676.00 | E27: PG3
B28: 2205876 | C28: Yonos GIGA2.0-D 50/1-20/3,0 | D28: =VLOOKUP(B28,'Wilo Price List'!B:F,5,FALSE) -> £9,673.00 | E28: PG3
B29: 2205875 | C29: Yonos GIGA2.0-D 50/1-25/4,0 | D29: =VLOOKUP(B29,'Wilo Price List'!B:F,5,FALSE) -> £10,321.00 | E29: PG3
B31: 2205881 | C31: Yonos GIGA2.0-D 65/1-5/0,55 | D31: =VLOOKUP(B31,'Wilo Price List'!B:F,5,FALSE) -> £9,244.00 | E31: PG3
B32: 2205880 | C32: Yonos GIGA2.0-D 65/1-6/0,75 | D32: =VLOOKUP(B32,'Wilo Price List'!B:F,5,FALSE) -> £9,572.00 | E32: PG3
B33: 2205879 | C33: Yonos GIGA2.0-D 65/1-8/1,1 2 | D33: =VLOOKUP(B33,'Wilo Price List'!B:F,5,FALSE) -> £9,577.00 | E33: PG3
B34: 2205878 | C34: Yonos GIGA2.0-D 65/1-10/1,5 | D34: =VLOOKUP(B34,'Wilo Price List'!B:F,5,FALSE) -> £9,844.00 | E34: PG3
B35: 2205887 | C35: Yonos GIGA2.0-D 65/1-14/2,2 | D35: =VLOOKUP(B35,'Wilo Price List'!B:F,5,FALSE) -> £9,889.00 | E35: PG3
B36: 2205886 | C36: Yonos GIGA2.0-D 65/1-16/3,0 | D36: =VLOOKUP(B36,'Wilo Price List'!B:F,5,FALSE) -> £10,027.00 | E36: PG3
B37: 2205885 | C37: Yonos GIGA2.0-D 65/1-20/4,0 | D37: =VLOOKUP(B37,'Wilo Price List'!B:F,5,FALSE) -> £10,540.00 | E37: PG3
B38: 2205884 | C38: Yonos GIGA2.0-D 65/1-24/5,5 | D38: =VLOOKUP(B38,'Wilo Price List'!B:F,5,FALSE) -> £12,448.00 | E38: PG3
B39: 2205883 | C39: Yonos GIGA2.0-D 65/1-31/7,5 | D39: =VLOOKUP(B39,'Wilo Price List'!B:F,5,FALSE) -> £12,448.00 | E39: PG3
B41: 2205891 | C41: Yonos GIGA2.0-D 80/1-4/0,55 | D41: =VLOOKUP(B41,'Wilo Price List'!B:F,5,FALSE) -> £9,555.00 | E41: PG3
B42: 2205890 | C42: Yonos GIGA2.0-D 80/1-5/0,75 | D42: =VLOOKUP(B42,'Wilo Price List'!B:F,5,FALSE) -> £9,689.00 | E42: PG3
B43: 2205889 | C43: Yonos GIGA2.0-D 80/1-6/1,1 2 | D43: =VLOOKUP(B43,'Wilo Price List'!B:F,5,FALSE) -> £9,689.00 | E43: PG3
B44: 2205888 | C44: Yonos GIGA2.0-D 80/1-8/1,5 2 | D44: =VLOOKUP(B44,'Wilo Price List'!B:F,5,FALSE) -> £9,956.00 | E44: PG3
B45: 2205897 | C45: Yonos GIGA2.0-D 80/1-10/2,2 | D45: =VLOOKUP(B45,'Wilo Price List'!B:F,5,FALSE) -> £10,000.00 | E45: PG3
B46: 2205896 | C46: Yonos GIGA2.0-D 80/1-12/3,0 | D46: =VLOOKUP(B46,'Wilo Price List'!B:F,5,FALSE) -> £10,030.00 | E46: PG3
B47: 2205895 | C47: Yonos GIGA2.0-D 80/1-15/4,0 | D47: =VLOOKUP(B47,'Wilo Price List'!B:F,5,FALSE) -> £10,653.00 | E47: PG3
B48: 2205894 | C48: Yonos GIGA2.0-D 80/1-19/5,5 | D48: =VLOOKUP(B48,'Wilo Price List'!B:F,5,FALSE) -> £12,248.00 | E48: PG3
B49: 2205893 | C49: Yonos GIGA2.0-D 80/1-23/7,5 | D49: =VLOOKUP(B49,'Wilo Price List'!B:F,5,FALSE) -> £12,248.00 | E49: PG3
B51: 2205907 | C51: Yonos GIGA2.0-D 100/1-8/2,2 | D51: =VLOOKUP(B51,'Wilo Price List'!B:F,5,FALSE) -> £16,735.00 | E51: PG3
B52: 2205906 | C52: Yonos GIGA2.0-D 100/1-9/3,0 | D52: =VLOOKUP(B52,'Wilo Price List'!B:F,5,FALSE) -> £16,701.00 | E52: PG3
B53: 2205905 | C53: Yonos GIGA2.0-D 100/1-11/4,0 | D53: =VLOOKUP(B53,'Wilo Price List'!B:F,5,FALSE) -> £19,597.00 | E53: PG3
B54: 2205904 | C54: Yonos GIGA2.0-D 100/1-14/5,5 | D54: =VLOOKUP(B54,'Wilo Price List'!B:F,5,FALSE) -> £22,867.00 | E54: PG3
B55: 2205903 | C55: Yonos GIGA2.0-D 100/1-18/7,5 | D55: =VLOOKUP(B55,'Wilo Price List'!B:F,5,FALSE) -> £22,759.00 | E55: PG3
B57: 2205912 | C57: Yonos GIGA2.0-D 125/1-7/2,2 | D57: =VLOOKUP(B57,'Wilo Price List'!B:F,5,FALSE) -> £25,717.00 | E57: PG3
B58: 2205911 | C58: Yonos GIGA2.0-D 125/1-9/3,0 | D58: =VLOOKUP(B58,'Wilo Price List'!B:F,5,FALSE) -> £25,717.00 | E58: PG3
B59: 2205910 | C59: Yonos GIGA2.0-D 125/1-11/4,0 | D59: =VLOOKUP(B59,'Wilo Price List'!B:F,5,FALSE) -> £28,460.00 | E59: PG3
B60: 2205909 | C60: Yonos GIGA2.0-D 125/1-14/5,5 | D60: =VLOOKUP(B60,'Wilo Price List'!B:F,5,FALSE) -> £30,167.00 | E60: PG3
B61: 2205908 | C61: Yonos GIGA2.0-D 125/1-17/7,5 | D61: =VLOOKUP(B61,'Wilo Price List'!B:F,5,FALSE) -> £30,060.00 | E61: PG3
B63: 1~
B65: 2207249 | C65: Yonos GIGA2.0-D 32/1-9/M-0,37 | D65: =VLOOKUP(B65,'Wilo Price List'!B:F,5,FALSE) -> £8,020.00 | E65: PG3
B66: 2207248 | C66: Yonos GIGA2.0-D 32/1-12/M-0,55 | D66: =VLOOKUP(B66,'Wilo Price List'!B:F,5,FALSE) -> £8,020.00 | E66: PG3
B67: 2207247 | C67: Yonos GIGA2.0-D 32/1-15/M-0,75 | D67: =VLOOKUP(B67,'Wilo Price List'!B:F,5,FALSE) -> £8,303.00 | E67: PG3
B68: 2207246 | C68: Yonos GIGA2.0-D 32/1-19/M-1,1 | D68: =VLOOKUP(B68,'Wilo Price List'!B:F,5,FALSE) -> £8,303.00 | E68: PG3
B69: 2207245 | C69: Yonos GIGA2.0-D 32/1-24/M-1,5 | D69: =VLOOKUP(B69,'Wilo Price List'!B:F,5,FALSE) -> £8,292.00 | E69: PG3
B71: 2207254 | C71: Yonos GIGA2.0-D 40/1-6/M-0,37 | D71: =VLOOKUP(B71,'Wilo Price List'!B:F,5,FALSE) -> £8,816.00 | E71: PG3
B72: 2207253 | C72: Yonos GIGA2.0-D 40/1-8/M-0,55 | D72: =VLOOKUP(B72,'Wilo Price List'!B:F,5,FALSE) -> £9,047.00 | E72: PG3
B73: 2207252 | C73: Yonos GIGA2.0-D 40/1-10/M-0,75 | D73: =VLOOKUP(B73,'Wilo Price List'!B:F,5,FALSE) -> £9,047.00 | E73: PG3
B74: 2207251 | C74: Yonos GIGA2.0-D 40/1-13/M-1,1 | D74: =VLOOKUP(B74,'Wilo Price List'!B:F,5,FALSE) -> £9,047.00 | E74: PG3
B75: 2207250 | C75: Yonos GIGA2.0-D 40/1-16/M-1,5 | D75: =VLOOKUP(B75,'Wilo Price List'!B:F,5,FALSE) -> £9,466.00 | E75: PG3
B77: 2207259 | C77: Yonos GIGA2.0-D 50/1-5/M-0,37 | D77: =VLOOKUP(B77,'Wilo Price List'!B:F,5,FALSE) -> £8,788.00 | E77: PG3
B78: 2207258 | C78: Yonos GIGA2.0-D 50/1-6/M-0,55 | D78: =VLOOKUP(B78,'Wilo Price List'!B:F,5,FALSE) -> £9,020.00 | E78: PG3
B79: 2207257 | C79: Yonos GIGA2.0-D 50/1-8/M-0,75 | D79: =VLOOKUP(B79,'Wilo Price List'!B:F,5,FALSE) -> £9,020.00 | E79: PG3
B80: 2207256 | C80: Yonos GIGA2.0-D 50/1-10/M-1,1 | D80: =VLOOKUP(B80,'Wilo Price List'!B:F,5,FALSE) -> £9,020.00 | E80: PG3
B81: 2207255 | C81: Yonos GIGA2.0-D 50/1-13/M-1,5 | D81: =VLOOKUP(B81,'Wilo Price List'!B:F,5,FALSE) -> £9,439.00 | E81: PG3
B83: 2207264 | C83: Yonos GIGA2.0-D 65/1-4/M-0,37 | D83: =VLOOKUP(B83,'Wilo Price List'!B:F,5,FALSE) -> £8,966.00 | E83: PG3
B84: 2207263 | C84: Yonos GIGA2.0-D 65/1-5/M-0,55 | D84: =VLOOKUP(B84,'Wilo Price List'!B:F,5,FALSE) -> £8,966.00 | E84: PG3
B85: 2207262 | C85: Yonos GIGA2.0-D 65/1-6/M-0,75 | D85: =VLOOKUP(B85,'Wilo Price List'!B:F,5,FALSE) -> £9,249.00 | E85: PG3
B86: 2207261 | C86: Yonos GIGA2.0-D 65/1-8/M-1,1 | D86: =VLOOKUP(B86,'Wilo Price List'!B:F,5,FALSE) -> £9,246.00 | E86: PG3
B87: 2207260 | C87: Yonos GIGA2.0-D 65/1-10/M-1,5 | D87: =VLOOKUP(B87,'Wilo Price List'!B:F,5,FALSE) -> £9,665.00 | E87: PG3
B89: 2207269 | C89: Yonos GIGA2.0-D 80/1-3/M-0,37 | D89: =VLOOKUP(B89,'Wilo Price List'!B:F,5,FALSE) -> £8,842.00 | E89: PG3
B90: 2207268 | C90: Yonos GIGA2.0-D 80/1-4/M-0,55 | D90: =VLOOKUP(B90,'Wilo Price List'!B:F,5,FALSE) -> £9,074.00 | E90: PG3
B91: 2207267 | C91: Yonos GIGA2.0-D 80/1-5/M-0,75 | D91: =VLOOKUP(B91,'Wilo Price List'!B:F,5,FALSE) -> £9,074.00 | E91: PG3
B92: 2207266 | C92: Yonos GIGA2.0-D 80/1-6/M-1,1 | D92: =VLOOKUP(B92,'Wilo Price List'!B:F,5,FALSE) -> £9,074.00 | E92: PG3
B93: 2207265 | C93: Yonos GIGA2.0-D 80/1-8/M-1,5 | D93: =VLOOKUP(B93,'Wilo Price List'!B:F,5,FALSE) -> £9,492.00 | E93: PG3

Sheet ISAR
B2: ISAR Sce | I2: Home
B5: Article No. (or variant) | C5: Article description | D5: Type (Pump / Accessory / Spare Part / Addon / Service) | E5: Product range | F5: List Price | G5: Price group
B6: 29993549 | C6: ISAR MODH1-2CH1-L-202/SCe | D6: 2 Pump | E6: SCe-HVAC system | F6: =VLOOKUP(B6,'Wilo Price List'!B2:G44098,5,FALSE) -> £10,505 | G6: PG06
B7: 29993550 | C7: ISAR MODH1-2CH1-L-203/SCe | D7: 2 Pump | E7: SCe-HVAC system | F7: =VLOOKUP(B7,'Wilo Price List'!B3:G44099,5,FALSE) -> £10,564 | G7: PG06
B8: 29993551 | C8: ISAR MODH1-2CH1-L-204/SCe | D8: 2 Pump | E8: SCe-HVAC system | F8: =VLOOKUP(B8,'Wilo Price List'!B4:G44100,5,FALSE) -> £10,713 | G8: PG06
B9: 29993552 | C9: ISAR MODH1-2CH1-L-205/SCe | D9: 2 Pump | E9: SCe-HVAC system | F9: =VLOOKUP(B9,'Wilo Price List'!B5:G44101,5,FALSE) -> £10,867 | G9: PG06
B10: 29993553 | C10: ISAR MODH1-2CH1-L-206/SCe | D10: 2 Pump | E10: SCe-HVAC system | F10: =VLOOKUP(B10,'Wilo Price List'!B6:G44102,5,FALSE) -> £11,036 | G10: PG06
B11: 29993554 | C11: ISAR MODH1-2CH1-L-207/SCe | D11: 2 Pump | E11: SCe-HVAC system | F11: =VLOOKUP(B11,'Wilo Price List'!B7:G44103,5,FALSE) -> £11,201 | G11: PG06
B12: 29993555 | C12: ISAR MODH1-2CH1-L-402/SCe | D12: 2 Pump | E12: SCe-HVAC system | F12: =VLOOKUP(B12,'Wilo Price List'!B8:G44104,5,FALSE) -> £10,578 | G12: PG06
B13: 29993556 | C13: ISAR MODH1-2CH1-L-403/SCe | D13: 2 Pump | E13: SCe-HVAC system | F13: =VLOOKUP(B13,'Wilo Price List'!B9:G44105,5,FALSE) -> £10,613 | G13: PG06
B14: 29993557 | C14: ISAR MODH1-2CH1-L-404/SCe | D14: 2 Pump | E14: SCe-HVAC system | F14: =VLOOKUP(B14,'Wilo Price List'!B10:G44106,5,FALSE) -> £10,788 | G14: PG06
B15: 29993558 | C15: ISAR MODH1-2CH1-L-405/SCe | D15: 2 Pump | E15: SCe-HVAC system | F15: =VLOOKUP(B15,'Wilo Price List'!B11:G44107,5,FALSE) -> £10,973 | G15: PG06
B16: 29993559 | C16: ISAR MODH1-2CH1-L-406/SCe | D16: 2 Pump | E16: SCe-HVAC system | F16: =VLOOKUP(B16,'Wilo Price List'!B12:G44108,5,FALSE) -> £11,068 | G16: PG06
B17: 29993560 | C17: ISAR MODH1-2CH1-L-407/SCe | D17: 2 Pump | E17: SCe-HVAC system | F17: =VLOOKUP(B17,'Wilo Price List'!B13:G44109,5,FALSE) -> £11,960 | G17: PG06
B18: 29993561 | C18: ISAR MODH1-2CH1-L-602/SCe | D18: 2 Pump | E18: SCe-HVAC system | F18: =VLOOKUP(B18,'Wilo Price List'!B14:G44110,5,FALSE) -> £10,723 | G18: PG06
B19: 29993562 | C19: ISAR MODH1-2CH1-L-603/SCe | D19: 2 Pump | E19: SCe-HVAC system | F19: =VLOOKUP(B19,'Wilo Price List'!B15:G44111,5,FALSE) -> £11,058 | G19: PG06
B20: 29993563 | C20: ISAR MODH1-2CH1-L-604/SCe | D20: 2 Pump | E20: SCe-HVAC system | F20: =VLOOKUP(B20,'Wilo Price List'!B16:G44112,5,FALSE) -> £11,799 | G20: PG06
B21: 29993564 | C21: ISAR MODH1-2CH1-L-605/SCe | D21: 2 Pump | E21: SCe-HVAC system | F21: =VLOOKUP(B21,'Wilo Price List'!B17:G44113,5,FALSE) -> £12,130 | G21: PG06
B22: 29993565 | C22: ISAR MODH1-2CH1-L-1002/SCe | D22: 2 Pump | E22: SCe-HVAC system | F22: =VLOOKUP(B22,'Wilo Price List'!B18:G44114,5,FALSE) -> £12,014 | G22: PG06
B23: 29993566 | C23: ISAR MODH1-2CH1-L-1003/SCe | D23: 2 Pump | E23: SCe-HVAC system | F23: =VLOOKUP(B23,'Wilo Price List'!B19:G44115,5,FALSE) -> £12,354 | G23: PG06
B24: 29993567 | C24: ISAR MODH1-2CH1-L-1004/SCe | D24: 2 Pump | E24: SCe-HVAC system | F24: =VLOOKUP(B24,'Wilo Price List'!B20:G44116,5,FALSE) -> £12,550 | G24: PG06
B25: 29993568 | C25: ISAR MODH1-2CH1-L-1005/SCe | D25: 2 Pump | E25: SCe-HVAC system | F25: =VLOOKUP(B25,'Wilo Price List'!B20:G44117,5,FALSE) -> £13,992 | G25: PG06
B27: 29993573 | C27: ISAR MODH1-3CH1-L-202/SCe | D27: 3 Pump | E27: SCe-HVAC system | F27: =VLOOKUP(B27,'Wilo Price List'!B22:G44119,5,FALSE) -> £13,792 | G27: PG06
B28: 29993574 | C28: ISAR MODH1-3CH1-L-203/SCe | D28: 3 Pump | E28: SCe-HVAC system | F28: =VLOOKUP(B28,'Wilo Price List'!B23:G44120,5,FALSE) -> £13,881 | G28: PG06
B29: 29993575 | C29: ISAR MODH1-3CH1-L-204/SCe | D29: 3 Pump | E29: SCe-HVAC system | F29: =VLOOKUP(B29,'Wilo Price List'!B24:G44121,5,FALSE) -> £14,104 | G29: PG06
B30: 29993576 | C30: ISAR MODH1-3CH1-L-205/SCe | D30: 3 Pump | E30: SCe-HVAC system | F30: =VLOOKUP(B30,'Wilo Price List'!B25:G44122,5,FALSE) -> £14,335 | G30: PG06
B31: 29993577 | C31: ISAR MODH1-3CH1-L-206/SCe | D31: 3 Pump | E31: SCe-HVAC system | F31: =VLOOKUP(B31,'Wilo Price List'!B26:G44123,5,FALSE) -> £14,588 | G31: PG06
B32: 29993578 | C32: ISAR MODH1-3CH1-L-207/SCe | D32: 3 Pump | E32: SCe-HVAC system | F32: =VLOOKUP(B32,'Wilo Price List'!B27:G44124,5,FALSE) -> £14,835 | G32: PG06
B33: 29993579 | C33: ISAR MODH1-3CH1-L-402/SCe | D33: 3 Pump | E33: SCe-HVAC system | F33: =VLOOKUP(B33,'Wilo Price List'!B28:G44125,5,FALSE) -> £13,835 | G33: PG06
B34: 29993580 | C34: ISAR MODH1-3CH1-L-403/SCe | D34: 3 Pump | E34: SCe-HVAC system | F34: =VLOOKUP(B34,'Wilo Price List'!B29:G44126,5,FALSE) -> £13,940 | G34: PG06
B35: 29993581 | C35: ISAR MODH1-3CH1-L-404/SCe | D35: 3 Pump | E35: SCe-HVAC system | F35: =VLOOKUP(B35,'Wilo Price List'!B30:G44127,5,FALSE) -> £14,150 | G35: PG06
B36: 29993582 | C36: ISAR MODH1-3CH1-L-405/SCe | D36: 3 Pump | E36: SCe-HVAC system | F36: =VLOOKUP(B36,'Wilo Price List'!B31:G44128,5,FALSE) -> £14,452 | G36: PG06
B37: 29993583 | C37: ISAR MODH1-3CH1-L-406/SCe | D37: 3 Pump | E37: SCe-HVAC system | F37: =VLOOKUP(B37,'Wilo Price List'!B32:G44129,5,FALSE) -> £14,850 | G37: PG06
B38: 29993584 | C38: ISAR MODH1-3CH1-L-407/SCe | D38: 3 Pump | E38: SCe-HVAC system | F38: =VLOOKUP(B38,'Wilo Price List'!B33:G44130,5,FALSE) -> £15,193 | G38: PG06
B39: 29993585 | C39: ISAR MODH1-3CH1-L-602/SCe | D39: 3 Pump | E39: SCe-HVAC system | F39: =VLOOKUP(B39,'Wilo Price List'!B34:G44131,5,FALSE) -> £13,871 | G39: PG06
B40: 29993586 | C40: ISAR MODH1-3CH1-L-603/SCe | D40: 3 Pump | E40: SCe-HVAC system | F40: =VLOOKUP(B40,'Wilo Price List'!B35:G44132,5,FALSE) -> £14,094 | G40: PG06
B41: 29993587 | C41: ISAR MODH1-3CH1-L-604/SCe | D41: 3 Pump | E41: SCe-HVAC system | F41: =VLOOKUP(B41,'Wilo Price List'!B36:G44133,5,FALSE) -> £14,711 | G41: PG06
B42: 29993588 | C42: ISAR MODH1-3CH1-L-605/SCe | D42: 3 Pump | E42: SCe-HVAC system | F42: =VLOOKUP(B42,'Wilo Price List'!B37:G44134,5,FALSE) -> £14,964 | G42: PG06
B43: 29993589 | C43: ISAR MODH1-3CH1-L-1002/SCe | D43: 3 Pump | E43: SCe-HVAC system | F43: =VLOOKUP(B43,'Wilo Price List'!B38:G44135,5,FALSE) -> £15,275 | G43: PG06
B44: 29993590 | C44: ISAR MODH1-3CH1-L-1003/SCe | D44: 3 Pump | E44: SCe-HVAC system | F44: =VLOOKUP(B44,'Wilo Price List'!B39:G44136,5,FALSE) -> £15,785 | G44: PG06
B45: 29993591 | C45: ISAR MODH1-3CH1-L-1004/SCe | D45: 3 Pump | E45: SCe-HVAC system | F45: =VLOOKUP(B45,'Wilo Price List'!B40:G44137,5,FALSE) -> £16,076 | G45: PG06
B46: 29993592 | C46: ISAR MODH1-3CH1-L-1005/SCe | D46: 3 Pump | E46: SCe-HVAC system | F46: =VLOOKUP(B46,'Wilo Price List'!B41:G44138,5,FALSE) -> £18,141 | G46: PG06

Sheet Si Boost
B2: SI Boost | I2: Home
B5: Article No. (or variant) | C5: Article description | D5: Type (Pump / Accessory / Spare Part / Addon / Service) | E5: Product range | F5: List Price | G5: Price group
B6: 29990278 | C6: SIBOOST SMART 2 HELIX VE 204 | D6: 1 Pump | E6: SIBOOST-System | F6: =VLOOKUP(B6,'Wilo Price List'!B:H,5,FALSE) -> £14,801 | G6: PG6
B7: 29990279 | C7: SIBOOST SMART 3 HELIX VE 204 | D7: 1 Pump | E7: SIBOOST-System | F7: =VLOOKUP(B7,'Wilo Price List'!B:H,5,FALSE) -> £20,069 | G7: PG6
B8: 29990280 | C8: SIBOOST SMART 4 HELIX VE 204 | D8: 1 Pump | E8: SIBOOST-System | F8: =VLOOKUP(B8,'Wilo Price List'!B:H,5,FALSE) -> £25,571 | G8: PG6
B10: 29990200 | C10: SIBOOST SMART 2 HELIX VE 208 | D10: 1 Pump | E10: SIBOOST-System | F10: =VLOOKUP(B10,'Wilo Price List'!B:H,5,FALSE) -> £16,135 | G10: PG6
B11: 29990201 | C11: SIBOOST SMART 3 HELIX VE 208 | D11: 1 Pump | E11: SIBOOST-System | F11: =VLOOKUP(B11,'Wilo Price List'!B:H,5,FALSE) -> £22,277 | G11: PG6
B12: 29990202 | C12: SIBOOST SMART 4 HELIX VE 208 | D12: 1 Pump | E12: SIBOOST-System | F12: =VLOOKUP(B12,'Wilo Price List'!B:H,5,FALSE) -> £28,231 | G12: PG6
B14: 29991721 | C14: SIBOOST SMART 2 HELIX VE 211 | D14: 1 Pump | E14: SIBOOST-System | F14: =VLOOKUP(B14,'Wilo Price List'!B:H,5,FALSE) -> £17,569 | G14: PG6
B15: 29991793 | C15: SIBOOST SMART 3 HELIX VE 211 | D15: 1 Pump | E15: SIBOOST-System | F15: =VLOOKUP(B15,'Wilo Price List'!B:H,5,FALSE) -> £24,124 | G15: PG6
B16: 29991861 | C16: SIBOOST SMART 4 HELIX VE 211 | D16: 1 Pump | E16: SIBOOST-System | F16: =VLOOKUP(B16,'Wilo Price List'!B:H,5,FALSE) -> £31,095 | G16: PG6
B18: 29990281 | C18: SIBOOST SMART 2 HELIX VE 403 | D18: 1 Pump | E18: SIBOOST-System | F18: =VLOOKUP(B18,'Wilo Price List'!B:H,5,FALSE) -> £14,747 | G18: PG6
B19: 29990283 | C19: SIBOOST SMART 3 HELIX VE 403 | D19: 1 Pump | E19: SIBOOST-System | F19: =VLOOKUP(B19,'Wilo Price List'!B:H,5,FALSE) -> £20,200 | G19: PG6
B20: 29990285 | C20: SIBOOST SMART 4 HELIX VE 403 | D20: 1 Pump | E20: SIBOOST-System | F20: =VLOOKUP(B20,'Wilo Price List'!B:H,5,FALSE) -> £25,549 | G20: PG6
B22: 29990852 | C22: SIBOOST SMART 2 HELIX VE 404 | D22: 1 Pump | E22: SIBOOST-System | F22: =VLOOKUP(B22,'Wilo Price List'!B:H,5,FALSE) -> £14,984 | G22: PG6
B23: 29990853 | C23: SIBOOST SMART 3 HELIX VE 404 | D23: 1 Pump | E23: SIBOOST-System | F23: =VLOOKUP(B23,'Wilo Price List'!B:H,5,FALSE) -> £18,036 | G23: PG6
B24: 29990854 | C24: SIBOOST SMART 4 HELIX VE 404 | D24: 1 Pump | E24: SIBOOST-System | F24: =VLOOKUP(B24,'Wilo Price List'!B:H,5,FALSE) -> £22,361 | G24: PG6
B26: 29990203 | C26: SIBOOST SMART 2 HELIX VE 405 | D26: 1 Pump | E26: SIBOOST-System | F26: =VLOOKUP(B26,'Wilo Price List'!B:H,5,FALSE) -> £15,828 | G26: PG6
B27: 29990205 | C27: SIBOOST SMART 3 HELIX VE 405 | D27: 1 Pump | E27: SIBOOST-System | F27: =VLOOKUP(B27,'Wilo Price List'!B:H,5,FALSE) -> £21,864 | G27: PG6
B28: 29990207 | C28: SIBOOST SMART 4 HELIX VE 405 | D28: 1 Pump | E28: SIBOOST-System | F28: =VLOOKUP(B28,'Wilo Price List'!B:H,5,FALSE) -> £27,710 | G28: PG6
B30: 29990282 | C30: SIBOOST SMART 2 HELIX VE 407 | D30: 1 Pump | E30: SIBOOST-System | F30: =VLOOKUP(B30,'Wilo Price List'!B:H,5,FALSE) -> £16,650 | G30: PG6
B31: 29990284 | C31: SIBOOST SMART 3 HELIX VE 407 | D31: 1 Pump | E31: SIBOOST-System | F31: =VLOOKUP(B31,'Wilo Price List'!B:H,5,FALSE) -> £23,060 | G31: PG6
B32: 29990286 | C32: SIBOOST SMART 4 HELIX VE 407 | D32: 1 Pump | E32: SIBOOST-System | F32: =VLOOKUP(B32,'Wilo Price List'!B:H,5,FALSE) -> £29,366 | G32: PG6
B34: 29990204 | C34: SIBOOST SMART 2 HELIX VE 410 | D34: 1 Pump | E34: SIBOOST-System | F34: =VLOOKUP(B34,'Wilo Price List'!B:H,5,FALSE) -> £17,696 | G34: PG6
B35: 29990206 | C35: SIBOOST SMART 3 HELIX VE 410 | D35: 1 Pump | E35: SIBOOST-System | F35: =VLOOKUP(B35,'Wilo Price List'!B:H,5,FALSE) -> £24,662 | G35: PG6
B36: 29990208 | C36: SIBOOST SMART 4 HELIX VE 410 | D36: 1 Pump | E36: SIBOOST-System | F36: =VLOOKUP(B36,'Wilo Price List'!B:H,5,FALSE) -> £31,445 | G36: PG6
B38: 29990287 | C38: SIBOOST SMART 2 HELIX VE 602 | D38: 1 Pump | E38: SIBOOST-System | F38: =VLOOKUP(B38,'Wilo Price List'!B:H,5,FALSE) -> £15,639 | G38: PG6
B39: 29990290 | C39: SIBOOST SMART 3 HELIX VE 602 | D39: 1 Pump | E39: SIBOOST-System | F39: =VLOOKUP(B39,'Wilo Price List'!B:H,5,FALSE) -> £21,324 | G39: PG6
B40: 29990293 | C40: SIBOOST SMART 4 HELIX VE 602 | D40: 1 Pump | E40: SIBOOST-System | F40: =VLOOKUP(B40,'Wilo Price List'!B:H,5,FALSE) -> £27,045 | G40: PG6
B42: 29990209 | C42: SIBOOST SMART 2 HELIX VE 603 | D42: 1 Pump | E42: SIBOOST-System | F42: =VLOOKUP(B42,'Wilo Price List'!B:H,5,FALSE) -> £15,856 | G42: PG6
B43: 29990212 | C43: SIBOOST SMART 3 HELIX VE 603 | D43: 1 Pump | E43: SIBOOST-System | F43: =VLOOKUP(B43,'Wilo Price List'!B:H,5,FALSE) -> £21,708 | G43: PG6
B44: 29990215 | C44: SIBOOST SMART 4 HELIX VE 603 | D44: 1 Pump | E44: SIBOOST-System | F44: =VLOOKUP(B44,'Wilo Price List'!B:H,5,FALSE) -> £27,497 | G44: PG6
B46: 29990288 | C46: SIBOOST SMART 2 HELIX VE 604 | D46: 1 Pump | E46: SIBOOST-System | F46: =VLOOKUP(B46,'Wilo Price List'!B:H,5,FALSE) -> £16,555 | G46: PG6
B47: 29990291 | C47: SIBOOST SMART 3 HELIX VE 604 | D47: 1 Pump | E47: SIBOOST-System | F47: =VLOOKUP(B47,'Wilo Price List'!B:H,5,FALSE) -> £22,695 | G47: PG6
B48: 29990294 | C48: SIBOOST SMART 4 HELIX VE 604 | D48: 1 Pump | E48: SIBOOST-System | F48: =VLOOKUP(B48,'Wilo Price List'!B:H,5,FALSE) -> £28,878 | G48: PG6
B50: 29990210 | C50: SIBOOST SMART 2 HELIX VE 606 | D50: 1 Pump | E50: SIBOOST-System | F50: =VLOOKUP(B50,'Wilo Price List'!B:H,5,FALSE) -> £16,871 | G50: PG6
B51: 29990213 | C51: SIBOOST SMART 3 HELIX VE 606 | D51: 1 Pump | E51: SIBOOST-System | F51: =VLOOKUP(B51,'Wilo Price List'!B:H,5,FALSE) -> £23,231 | G51: PG6
B52: 29990216 | C52: SIBOOST SMART 4 HELIX VE 606 | D52: 1 Pump | E52: SIBOOST-System | F52: =VLOOKUP(B52,'Wilo Price List'!B:H,5,FALSE) -> £29,527 | G52: PG6
B54: 29990289 | C54: SIBOOST SMART 2 HELIX VE 608 | D54: 1 Pump | E54: SIBOOST-System | F54: =VLOOKUP(B54,'Wilo Price List'!B:H,5,FALSE) -> £17,978 | G54: PG6
B55: 29990292 | C55: SIBOOST SMART 3 HELIX VE 608 | D55: 1 Pump | E55: SIBOOST-System | F55: =VLOOKUP(B55,'Wilo Price List'!B:H,5,FALSE) -> £24,831 | G55: PG6
B56: 29990295 | C56: SIBOOST SMART 4 HELIX VE 608 | D56: 1 Pump | E56: SIBOOST-System | F56: =VLOOKUP(B56,'Wilo Price List'!B:H,5,FALSE) -> £31,723 | G56: PG6
B58: 29990211 | C58: SIBOOST SMART 2 HELIX VE 611 | D58: 1 Pump | E58: SIBOOST-System | F58: =VLOOKUP(B58,'Wilo Price List'!B:H,5,FALSE) -> £18,676 | G58: PG6
B59: 29990214 | C59: SIBOOST SMART 3 HELIX VE 611 | D59: 1 Pump | E59: SIBOOST-System | F59: =VLOOKUP(B59,'Wilo Price List'!B:H,5,FALSE) -> £25,937 | G59: PG6
B60: 29990217 | C60: SIBOOST SMART 4 HELIX VE 611 | D60: 1 Pump | E60: SIBOOST-System | F60: =VLOOKUP(B60,'Wilo Price List'!B:H,5,FALSE) -> £33,139 | G60: PG6
B62: 29990218 | C62: SIBOOST SMART 2 HELIX VE 1002 | D62: 1 Pump | E62: SIBOOST-System | F62: =VLOOKUP(B62,'Wilo Price List'!B:H,5,FALSE) -> £14,679 | G62: PG6
B63: 29990221 | C63: SIBOOST SMART 3 HELIX VE 1002 | D63: 1 Pump | E63: SIBOOST-System | F63: =VLOOKUP(B63,'Wilo Price List'!B:H,5,FALSE) -> £20,324 | G63: PG6
B64: 29990224 | C64: SIBOOST SMART 4 HELIX VE 1002 | D64: 1 Pump | E64: SIBOOST-System | F64: =VLOOKUP(B64,'Wilo Price List'!B:H,5,FALSE) -> £25,828 | G64: PG6
B66: 29990296 | C66: SIBOOST SMART 2 HELIX VE 1003 | D66: 1 Pump | E66: SIBOOST-System | F66: =VLOOKUP(B66,'Wilo Price List'!B:H,5,FALSE) -> £16,901 | G66: PG6
B67: 29990299 | C67: SIBOOST SMART 3 HELIX VE 1003 | D67: 1 Pump | E67: SIBOOST-System | F67: =VLOOKUP(B67,'Wilo Price List'!B:H,5,FALSE) -> £23,777 | G67: PG6
B68: 29990432 | C68: SIBOOST SMART 4 HELIX VE 1003 | D68: 1 Pump | E68: SIBOOST-System | F68: =VLOOKUP(B68,'Wilo Price List'!B:H,5,FALSE) -> £30,481 | G68: PG6
B70: 29990219 | C70: SIBOOST SMART 2 HELIX VE 1004 | D70: 1 Pump | E70: SIBOOST-System | F70: =VLOOKUP(B70,'Wilo Price List'!B:H,5,FALSE) -> £17,251 | G70: PG6
B71: 29990222 | C71: SIBOOST SMART 3 HELIX VE 1004 | D71: 1 Pump | E71: SIBOOST-System | F71: =VLOOKUP(B71,'Wilo Price List'!B:H,5,FALSE) -> £24,180 | G71: PG6
B72: 29990225 | C72: SIBOOST SMART 4 HELIX VE 1004 | D72: 1 Pump | E72: SIBOOST-System | F72: =VLOOKUP(B72,'Wilo Price List'!B:H,5,FALSE) -> £30,967 | G72: PG6
B74: 29990297 | C74: SIBOOST SMART 2 HELIX VE 1005 | D74: 1 Pump | E74: SIBOOST-System | F74: =VLOOKUP(B74,'Wilo Price List'!B:H,5,FALSE) -> £18,036 | G74: PG6
B75: 29990430 | C75: SIBOOST SMART 3 HELIX VE 1005 | D75: 1 Pump | E75: SIBOOST-System | F75: =VLOOKUP(B75,'Wilo Price List'!B:H,5,FALSE) -> £25,349 | G75: PG6
B76: 29990433 | C76: SIBOOST SMART 4 HELIX VE 1005 | D76: 1 Pump | E76: SIBOOST-System | F76: =VLOOKUP(B76,'Wilo Price List'!B:H,5,FALSE) -> £32,777 | G76: PG6
B78: 29990223 | C78: SIBOOST SMART 3 HELIX VE 1006 | D78: 1 Pump | E78: SIBOOST-System | F78: =VLOOKUP(B78,'Wilo Price List'!B:H,5,FALSE) -> £26,835 | G78: PG6
B79: 29990220 | C79: SIBOOST SMART 2 HELIX VE 1006 | D79: 1 Pump | E79: SIBOOST-System | F79: =VLOOKUP(B79,'Wilo Price List'!B:H,5,FALSE) -> £19,021 | G79: PG6
B80: 29990226 | C80: SIBOOST SMART 4 HELIX VE 1006 | D80: 1 Pump | E80: SIBOOST-System | F80: =VLOOKUP(B80,'Wilo Price List'!B:H,5,FALSE) -> £34,506 | G80: PG6
B82: 29990298 | C82: SIBOOST SMART 2 HELIX VE 1009 | D82: 1 Pump | E82: SIBOOST-System | F82: =VLOOKUP(B82,'Wilo Price List'!B:H,5,FALSE) -> £27,288 | G82: PG6
B83: 29990431 | C83: SIBOOST SMART 3 HELIX VE 1009 | D83: 1 Pump | E83: SIBOOST-System | F83: =VLOOKUP(B83,'Wilo Price List'!B:H,5,FALSE) -> £39,360 | G83: PG6
B84: 29990434 | C84: SIBOOST SMART 4 HELIX VE 1009 | D84: 1 Pump | E84: SIBOOST-System | F84: =VLOOKUP(B84,'Wilo Price List'!B:H,5,FALSE) -> £51,259 | G84: PG6
B86: 29990227 | C86: SIBOOST SMART 2 HELIX VE 1602 | D86: 1 Pump | E86: SIBOOST-System | F86: =VLOOKUP(B86,'Wilo Price List'!B:H,5,FALSE) -> £17,561 | G86: PG6
B87: 29990231 | C87: SIBOOST SMART 3 HELIX VE 1602 | D87: 1 Pump | E87: SIBOOST-System | F87: =VLOOKUP(B87,'Wilo Price List'!B:H,5,FALSE) -> £25,303 | G87: PG6
B88: 29990235 | C88: SIBOOST SMART 4 HELIX VE 1602 | D88: 1 Pump | E88: SIBOOST-System | F88: =VLOOKUP(B88,'Wilo Price List'!B:H,5,FALSE) -> £32,367 | G88: PG6
B90: 29990228 | C90: SIBOOST SMART 2 HELIX VE 1603-4 | D90: 1 Pump | E90: SIBOOST-System | F90: =VLOOKUP(B90,'Wilo Price List'!B:H,5,FALSE) -> £19,222 | G90: PG6
B91: 29990232 | C91: SIBOOST SMART 3 HELIX VE 1603-4 | D91: 1 Pump | E91: SIBOOST-System | F91: =VLOOKUP(B91,'Wilo Price List'!B:H,5,FALSE) -> £27,793 | G91: PG6
B92: 29990236 | C92: SIBOOST SMART 4 HELIX VE 1603-4 | D92: 1 Pump | E92: SIBOOST-System | F92: =VLOOKUP(B92,'Wilo Price List'!B:H,5,FALSE) -> £35,687 | G92: PG6
B94: 29990229 | C94: SIBOOST SMART 2 HELIX VE 1605 | D94: 1 Pump | E94: SIBOOST-System | F94: =VLOOKUP(B94,'Wilo Price List'!B:H,5,FALSE) -> £24,627 | G94: PG6
B95: 29990233 | C95: SIBOOST SMART 3 HELIX VE 1605 | D95: 1 Pump | E95: SIBOOST-System | F95: =VLOOKUP(B95,'Wilo Price List'!B:H,5,FALSE) -> £35,863 | G95: PG6
B96: 29990237 | C96: SIBOOST SMART 4 HELIX VE 1605 | D96: 1 Pump | E96: SIBOOST-System | F96: =VLOOKUP(B96,'Wilo Price List'!B:H,5,FALSE) -> £46,536 | G96: PG6
B98: 29990230 | C98: SIBOOST SMART 2 HELIX VE 1606 | D98: 1 Pump | E98: SIBOOST-System | F98: =VLOOKUP(B98,'Wilo Price List'!B:H,5,FALSE) -> £25,203 | G98: PG6
B99: 29990234 | C99: SIBOOST SMART 3 HELIX VE 1606 | D99: 1 Pump | E99: SIBOOST-System | F99: =VLOOKUP(B99,'Wilo Price List'!B:H,5,FALSE) -> £36,726 | G99: PG6
B100: 29990238 | C100: SIBOOST SMART 4 HELIX VE 1606 | D100: 1 Pump | E100: SIBOOST-System | F100: =VLOOKUP(B100,'Wilo Price List'!B:H,5,FALSE) -> £47,687 | G100: PG6
B102: 29990239 | C102: SIBOOST SMART 2 HELIX VE 2202 | D102: 1 Pump | E102: SIBOOST-System | F102: =VLOOKUP(B102,'Wilo Price List'!B:H,5,FALSE) -> £23,114 | G102: PG6
B103: 29990243 | C103: SIBOOST SMART 3 HELIX VE 2202 | D103: 1 Pump | E103: SIBOOST-System | F103: =VLOOKUP(B103,'Wilo Price List'!B:H,5,FALSE) -> £34,146 | G103: PG6
B104: 29990247 | C104: SIBOOST SMART 4 HELIX VE 2202 | D104: 1 Pump | E104: SIBOOST-System | F104: =VLOOKUP(B104,'Wilo Price List'!B:H,5,FALSE) -> £43,626 | G104: PG6
B106: 29990240 | C106: SIBOOST SMART 2 HELIX VE 2203 | D106: 1 Pump | E106: SIBOOST-System | F106: =VLOOKUP(B106,'Wilo Price List'!B:H,5,FALSE) -> £28,434 | G106: PG6
B107: 29990244 | C107: SIBOOST SMART 3 HELIX VE 2203 | D107: 1 Pump | E107: SIBOOST-System | F107: =VLOOKUP(B107,'Wilo Price List'!B:H,5,FALSE) -> £42,133 | G107: PG6
B108: 29990248 | C108: SIBOOST SMART 4 HELIX VE 2203 | D108: 1 Pump | E108: SIBOOST-System | F108: =VLOOKUP(B108,'Wilo Price List'!B:H,5,FALSE) -> £54,274 | G108: PG6
B110: 29990241 | C110: SIBOOST SMART 2 HELIX VE 2204 | D110: 1 Pump | E110: SIBOOST-System | F110: =VLOOKUP(B110,'Wilo Price List'!B:H,5,FALSE) -> £28,572 | G110: PG6
B111: 29990245 | C111: SIBOOST SMART 3 HELIX VE 2204 | D111: 1 Pump | E111: SIBOOST-System | F111: =VLOOKUP(B111,'Wilo Price List'!B:H,5,FALSE) -> £42,338 | G111: PG6
B112: 29990249 | C112: SIBOOST SMART 4 HELIX VE 2204 | D112: 1 Pump | E112: SIBOOST-System | F112: =VLOOKUP(B112,'Wilo Price List'!B:H,5,FALSE) -> £54,546 | G112: PG6
B114: 29990242 | C114: SIBOOST SMART 2 HELIX VE 2205 | D114: 1 Pump | E114: SIBOOST-System | F114: =VLOOKUP(B114,'Wilo Price List'!B:H,5,FALSE) -> £35,790 | G114: PG6
B115: 29990246 | C115: SIBOOST SMART 3 HELIX VE 2205 | D115: 1 Pump | E115: SIBOOST-System | F115: =VLOOKUP(B115,'Wilo Price List'!B:H,5,FALSE) -> £53,304 | G115: PG6
B116: 29990250 | C116: SIBOOST SMART 4 HELIX VE 2205 | D116: 1 Pump | E116: SIBOOST-System | F116: =VLOOKUP(B116,'Wilo Price List'!B:H,5,FALSE) -> £68,900 | G116: PG6

Sheet ISAR Boost 5
B2: Package Boosters and Tank | G2: Home
B5: Article No. (or variant) | C5: Article description | D5: List Price | E5: Price group
B7: 4250016 | C7: Wilo-Isar BOOST5-E-3-G | D7: =VLOOKUP(B7,'Wilo Price List'!B:F,5,FALSE) -> POA | E7: PG6
B8: 4250017 | C8: Wilo-Isar BOOST5-E-5-G | D8: =VLOOKUP(B8,'Wilo Price List'!B:F,5,FALSE) -> POA | E8: PG6
B9: T150
B10: 2815093 | C10: Isar BOOST5 E3 T150 | D10: =VLOOKUP(B10,'Wilo Price List'!B:F,5,FALSE) -> £3,714 | E10: PG6
B11: 2815094 | C11: Isar BOOST5 E5 T150 | D11: =VLOOKUP(B11,'Wilo Price List'!B:F,5,FALSE) -> £3,866 | E11: PG6
B13: 4252615 | C13: Electronic Expansion Board for Isar BOOST5 | D13: =VLOOKUP(B13,'Wilo Price List'!B:F,5,FALSE) -> £100 | E13: PG14

Sheet T Range
B2: Package Boosters and Tank | G2: Home
B5: Article No. (or variant) | C5: Article description | D5: List Price | E5: Price group
B6: T90
B7: 29993779 | C7: ISAR MODH1-202/EC-EM-T90 | D7: =VLOOKUP(B7,'Wilo Price List'!B6:G44098,5,FALSE) -> £6,067 | E7: PG06
B8: 29993780 | C8: ISAR MODH1-203/EC-EM-T90 | D8: =VLOOKUP(B8,'Wilo Price List'!B7:G44099,5,FALSE) -> £6,098 | E8: PG06
B9: 29993781 | C9: ISAR MODH1-204/EC-EM-T90 | D9: =VLOOKUP(B9,'Wilo Price List'!B8:G44100,5,FALSE) -> £6,172 | E9: PG06
B10: 29993782 | C10: ISAR MODH1-205/EC-EM-T90 | D10: =VLOOKUP(B10,'Wilo Price List'!B9:G44101,5,FALSE) -> £6,218 | E10: PG06
B11: 29993783 | C11: ISAR MODH1-206/EC-EM-T90 | D11: =VLOOKUP(B11,'Wilo Price List'!B10:G44102,5,FALSE) -> £6,303 | E11: PG06
B12: 29993784 | C12: ISAR MODH1-207/EC-EM-T90 | D12: =VLOOKUP(B12,'Wilo Price List'!B11:G44103,5,FALSE) -> £6,388 | E12: PG06
B13: 29993785 | C13: ISAR MODH1-402/EC-EM-T90 | D13: =VLOOKUP(B13,'Wilo Price List'!B12:G44104,5,FALSE) -> £6,097 | E13: PG06
B14: 29993786 | C14: ISAR MODH1-403/EC-EM-T90 | D14: =VLOOKUP(B14,'Wilo Price List'!B13:G44105,5,FALSE) -> £6,098 | E14: PG06
B15: 29993787 | C15: ISAR MODH1-404/EC-EM-T90 | D15: =VLOOKUP(B15,'Wilo Price List'!B14:G44106,5,FALSE) -> £6,199 | E15: PG06
B16: 29993788 | C16: ISAR MODH1-405/EC-EM-T90 | D16: =VLOOKUP(B16,'Wilo Price List'!B15:G44107,5,FALSE) -> £6,335 | E16: PG06
B17: 29993789 | C17: ISAR MODH1-406/EC-EM-T90 | D17: =VLOOKUP(B17,'Wilo Price List'!B16:G44108,5,FALSE) -> £6,365 | E17: PG06
B18: 29993790 | C18: ISAR MODH1-407/EC-EM-T90 | D18: =VLOOKUP(B18,'Wilo Price List'!B17:G44109,5,FALSE) -> £6,431 | E18: PG06
B19: 29993791 | C19: ISAR MODH1-602/EC-EM-T90 | D19: =VLOOKUP(B19,'Wilo Price List'!B18:G44110,5,FALSE) -> POA | E19: PG06
B20: 29993792 | C20: ISAR MODH1-603/EC-EM-T90 | D20: =VLOOKUP(B20,'Wilo Price List'!B19:G44111,5,FALSE) -> POA | E20: PG06
B21: 29993793 | C21: ISAR MODH1-604/EC-EM-T90 | D21: =VLOOKUP(B21,'Wilo Price List'!B20:G44112,5,FALSE) -> POA | E21: PG06
B22: 29993794 | C22: ISAR MODH1-605/EC-EM-T90 | D22: =VLOOKUP(B22,'Wilo Price List'!B20:G44113,5,FALSE) -> POA | E22: PG06
B23: 29993795 | C23: ISAR MODH1-1002/EC-EM-T90 | D23: =VLOOKUP(B23,'Wilo Price List'!B21:G44114,5,FALSE) -> POA | E23: PG06
B24: 29993796 | C24: ISAR MODH1-1003/EC-EM-T90 | D24: =VLOOKUP(B24,'Wilo Price List'!B22:G44115,5,FALSE) -> POA | E24: PG06
B25: 29993797 | C25: ISAR MODH1-1004/EC-EM-T90 | D25: =VLOOKUP(B25,'Wilo Price List'!B23:G44116,5,FALSE) -> POA | E25: PG06
B26: 29993798 | C26: ISAR MODH1-1005/EC-EM-T90 | D26: =VLOOKUP(B26,'Wilo Price List'!B24:G44117,5,FALSE) -> POA | E26: PG06
B27: T150
B28: 29993799 | C28: ISAR MODH1-202/EC-EM-T150 | D28: =VLOOKUP(B28,'Wilo Price List'!B26:G44119,5,FALSE) -> £4,519 | E28: PG06
B29: 29993800 | C29: ISAR MODH1-203/EC-EM-T150 | D29: =VLOOKUP(B29,'Wilo Price List'!B27:G44120,5,FALSE) -> £4,551 | E29: PG06
B30: 29993801 | C30: ISAR MODH1-204/EC-EM-T150 | D30: =VLOOKUP(B30,'Wilo Price List'!B28:G44121,5,FALSE) -> £4,623 | E30: PG06
B31: 29993802 | C31: ISAR MODH1-205/EC-EM-T150 | D31: =VLOOKUP(B31,'Wilo Price List'!B29:G44122,5,FALSE) -> £4,670 | E31: PG06
B32: 29993803 | C32: ISAR MODH1-206/EC-EM-T150 | D32: =VLOOKUP(B32,'Wilo Price List'!B30:G44123,5,FALSE) -> £4,755 | E32: PG06
B33: 29993804 | C33: ISAR MODH1-207/EC-EM-T150 | D33: =VLOOKUP(B33,'Wilo Price List'!B31:G44124,5,FALSE) -> £4,839 | E33: PG06
B34: 29993805 | C34: ISAR MODH1-402/EC-EM-T150 | D34: =VLOOKUP(B34,'Wilo Price List'!B32:G44125,5,FALSE) -> £4,549 | E34: PG06
B35: 29993806 | C35: ISAR MODH1-403/EC-EM-T150 | D35: =VLOOKUP(B35,'Wilo Price List'!B33:G44126,5,FALSE) -> £4,549 | E35: PG06
B36: 29993807 | C36: ISAR MODH1-404/EC-EM-T150 | D36: =VLOOKUP(B36,'Wilo Price List'!B34:G44127,5,FALSE) -> £4,651 | E36: PG06
B37: 29993808 | C37: ISAR MODH1-405/EC-EM-T150 | D37: =VLOOKUP(B37,'Wilo Price List'!B35:G44128,5,FALSE) -> £4,786 | E37: PG06
B38: 29993809 | C38: ISAR MODH1-406/EC-EM-T150 | D38: =VLOOKUP(B38,'Wilo Price List'!B36:G44129,5,FALSE) -> £4,817 | E38: PG06
B39: 29993810 | C39: ISAR MODH1-407/EC-EM-T150 | D39: =VLOOKUP(B39,'Wilo Price List'!B37:G44130,5,FALSE) -> £4,883 | E39: PG06
B40: 29993811 | C40: ISAR MODH1-602/EC-EM-T150 | D40: =VLOOKUP(B40,'Wilo Price List'!B38:G44131,5,FALSE) -> £4,849 | E40: PG06
B41: 29993812 | C41: ISAR MODH1-603/EC-EM-T150 | D41: =VLOOKUP(B41,'Wilo Price List'!B39:G44132,5,FALSE) -> £5,013 | E41: PG06
B42: 29993813 | C42: ISAR MODH1-604/EC-EM-T150 | D42: =VLOOKUP(B42,'Wilo Price List'!B40:G44133,5,FALSE) -> £5,061 | E42: PG06
B43: 29993814 | C43: ISAR MODH1-605/EC-EM-T150 | D43: =VLOOKUP(B43,'Wilo Price List'!B41:G44134,5,FALSE) -> £5,213 | E43: PG06
B44: 29993815 | C44: ISAR MODH1-1002/EC-EM-T150 | D44: =VLOOKUP(B44,'Wilo Price List'!B42:G44135,5,FALSE) -> £4,972 | E44: PG06
B45: 29993816 | C45: ISAR MODH1-1003/EC-EM-T150 | D45: =VLOOKUP(B45,'Wilo Price List'!B43:G44136,5,FALSE) -> £5,189 | E45: PG06
B46: 29993817 | C46: ISAR MODH1-1004/EC-EM-T150 | D46: =VLOOKUP(B46,'Wilo Price List'!B44:G44137,5,FALSE) -> £5,222 | E46: PG06
B47: 29993818 | C47: ISAR MODH1-1005/EC-EM-T150 | D47: =VLOOKUP(B47,'Wilo Price List'!B45:G44138,5,FALSE) -> £5,418 | E47: PG06
B48: T260
B49: 29993820 | C49: ISAR MODH1-2CH1-L-202/SCe-T260 | D49: =VLOOKUP(B49,'Wilo Price List'!B47:G44140,5,FALSE) -> £13,647 | E49: PG06
B50: 29993821 | C50: ISAR MODH1-2CH1-L-203/SCe-T260 | D50: =VLOOKUP(B50,'Wilo Price List'!B48:G44141,5,FALSE) -> £13,701 | E50: PG06
B51: 29993822 | C51: ISAR MODH1-2CH1-L-204/SCe-T260 | D51: =VLOOKUP(B51,'Wilo Price List'!B49:G44142,5,FALSE) -> £13,841 | E51: PG06
B52: 29993823 | C52: ISAR MODH1-2CH1-L-205/SCe-T260 | D52: =VLOOKUP(B52,'Wilo Price List'!B50:G44143,5,FALSE) -> £13,982 | E52: PG06
B53: 29993824 | C53: ISAR MODH1-2CH1-L-206/SCe-T260 | D53: =VLOOKUP(B53,'Wilo Price List'!B51:G44144,5,FALSE) -> £14,139 | E53: PG06
B54: 29993825 | C54: ISAR MODH1-2CH1-L-207/SCe-T260 | D54: =VLOOKUP(B54,'Wilo Price List'!B52:G44145,5,FALSE) -> £14,291 | E54: PG06
B55: 29993826 | C55: ISAR MODH1-2CH1-L-402/SCe-T260 | D55: =VLOOKUP(B55,'Wilo Price List'!B53:G44146,5,FALSE) -> £13,645 | E55: PG06
B56: 29993827 | C56: ISAR MODH1-2CH1-L-403/SCe-T260 | D56: =VLOOKUP(B56,'Wilo Price List'!B54:G44147,5,FALSE) -> £13,699 | E56: PG06
B57: 29993828 | C57: ISAR MODH1-2CH1-L-404/SCe-T260 | D57: =VLOOKUP(B57,'Wilo Price List'!B55:G44148,5,FALSE) -> £13,836 | E57: PG06
B58: 29993829 | C58: ISAR MODH1-2CH1-L-405/SCe-T260 | D58: =VLOOKUP(B58,'Wilo Price List'!B56:G44149,5,FALSE) -> £14,080 | E58: PG06
B59: 29993830 | C59: ISAR MODH1-2CH1-L-406/SCe-T260 | D59: =VLOOKUP(B59,'Wilo Price List'!B57:G44150,5,FALSE) -> £14,134 | E59: PG06
B60: 29993831 | C60: ISAR MODH1-2CH1-L-407/SCe-T260 | D60: =VLOOKUP(B60,'Wilo Price List'!B58:G44151,5,FALSE) -> £14,381 | E60: PG06
B61: 29993832 | C61: ISAR MODH1-2CH1-L-602/SCe-T260 | D61: =VLOOKUP(B61,'Wilo Price List'!B59:G44152,5,FALSE) -> £14,317 | E61: PG06
B62: 29993833 | C62: ISAR MODH1-2CH1-L-603/SCe-T260 | D62: =VLOOKUP(B62,'Wilo Price List'!B60:G44153,5,FALSE) -> £14,371 | E62: PG06
B63: 29993834 | C63: ISAR MODH1-2CH1-L-604/SCe-T260 | D63: =VLOOKUP(B63,'Wilo Price List'!B61:G44154,5,FALSE) -> £14,535 | E63: PG06
B64: 29993835 | C64: ISAR MODH1-2CH1-L-605/SCe-T260 | D64: =VLOOKUP(B64,'Wilo Price List'!B62:G44155,5,FALSE) -> £14,752 | E64: PG06
B65: 29993836 | C65: ISAR MODH1-2CH1-L-1002/SCe-T260 | D65: =VLOOKUP(B65,'Wilo Price List'!B63:G44156,5,FALSE) -> £15,409 | E65: PG06
B66: 29993837 | C66: ISAR MODH1-2CH1-L-1003/SCe-T260 | D66: =VLOOKUP(B66,'Wilo Price List'!B64:G44157,5,FALSE) -> £15,463 | E66: PG06
B67: 29993838 | C67: ISAR MODH1-2CH1-L-1004/SCe-T260 | D67: =VLOOKUP(B67,'Wilo Price List'!B65:G44158,5,FALSE) -> £15,627 | E67: PG06
B68: 29993839 | C68: ISAR MODH1-2CH1-L-1005/SCe-T260 | D68: =VLOOKUP(B68,'Wilo Price List'!B66:G44159,5,FALSE) -> £15,844 | E68: PG06

Sheet Comfort-Pressurisation
B2: Comfort Pressurisation | I2: Home
B5: Article No. (or variant) | C5: Article description | D5: Type (Pump / Accessory / Spare Part / Addon / Service) | E5: Product range | F5: List Price | G5: Price group
B6: Wall Mount
B7: 2819501 | C7: COMFORT P130-WM PRESSURISATION UNIT | D7: 1 Pump | E7: Comfort-Pressurisation System | F7: =VLOOKUP(B7,'Wilo Price List'!B:H,5,FALSE) -> £1,894 | G7: PG6
B8: 2819502 | C8: COMFORT P230-WM PRESSURISATION UNIT | D8: 1 Pump | E8: Comfort-Pressurisation System | F8: =VLOOKUP(B8,'Wilo Price List'!B:H,5,FALSE) -> £1,969 | G8: PG6
B9: Single Pump
B10: 2819492 | C10: COMFORT P135 PRESSURISATION UNIT | D10: 1 Pump | E10: Comfort-Pressurisation System | F10: =VLOOKUP(B10,'Wilo Price List'!B:H,5,FALSE) -> £2,047 | G10: PG6
B11: 2819493 | C11: COMFORT P160 PRESSURISATION UNIT | D11: 1 Pump | E11: Comfort-Pressurisation System | F11: =VLOOKUP(B11,'Wilo Price List'!B:H,5,FALSE) -> £2,281 | G11: PG6
B12: Twin Pump
B13: 2819495 | C13: COMFORT P235 PRESSURISATION UNIT | D13: 1 Pump | E13: Comfort-Pressurisation System | F13: =VLOOKUP(B13,'Wilo Price List'!B:H,5,FALSE) -> £2,342 | G13: PG6
B14: 2819496 | C14: COMFORT P260 PRESSURISATION UNIT | D14: 1 Pump | E14: Comfort-Pressurisation System | F14: =VLOOKUP(B14,'Wilo Price List'!B:H,5,FALSE) -> £2,812 | G14: PG6
B15: Twin System
B16: 2819498 | C16: COMFORT P135-TS PRESSURISATION UNIT | D16: 1 Pump | E16: Comfort-Pressurisation System | F16: =VLOOKUP(B16,'Wilo Price List'!B:H,5,FALSE) -> £2,618 | G16: PG6
B17: 2819499 | C17: COMFORT P160-TS PRESSURISATION UNIT | D17: 1 Pump | E17: Comfort-Pressurisation System | F17: =VLOOKUP(B17,'Wilo Price List'!B:H,5,FALSE) -> £3,115 | G17: PG6

Sheet Vessel
B2: Vessels | I2: Home
B5: Article No. (or variant) | C5: Article description | D5: Type (Pump / Accessory / Spare Part / Addon / Service) | E5: Product range | F5: List Price | G5: Price group
B6: Wilo Pro Heating Vessel
B7: 29990913 | C7: Wilo Pro 8L Heating Vessel | D7: Accessory | E7: Wilo Pro Pressurisation Vessel | F7: =VLOOKUP(B7,'Wilo Price List'!B:H,5,FALSE) -> £115 | G7: PG6
B8: 29990914 | C8: Wilo Pro 12L Heating Vessel | D8: Accessory | E8: Wilo Pro Pressurisation Vessel | F8: =VLOOKUP(B8,'Wilo Price List'!B:H,5,FALSE) -> £130 | G8: PG6
B9: 29990915 | C9: Wilo Pro 18L Heating Vessel | D9: Accessory | E9: Wilo Pro Pressurisation Vessel | F9: =VLOOKUP(B9,'Wilo Price List'!B:H,5,FALSE) -> £130 | G9: PG6
B10: 29990916 | C10: Wilo Pro 25L Heating Vessel | D10: Accessory | E10: Wilo Pro Pressurisation Vessel | F10: =VLOOKUP(B10,'Wilo Price List'!B:H,5,FALSE) -> £150 | G10: PG6
B11: 29990917 | C11: Wilo Pro 50L & Base Heating Vessel | D11: Accessory | E11: Wilo Pro Pressurisation Vessel | F11: =VLOOKUP(B11,'Wilo Price List'!B:H,5,FALSE) -> £240 | G11: PG6
B12: 29990918 | C12: Wilo Pro 105L Heating Vessel | D12: Accessory | E12: Wilo Pro Pressurisation Vessel | F12: =VLOOKUP(B12,'Wilo Price List'!B:H,5,FALSE) -> £380 | G12: PG6
B13: 29990919 | C13: Wilo Pro 200L Heating Vessel | D13: Accessory | E13: Wilo Pro Pressurisation Vessel | F13: =VLOOKUP(B13,'Wilo Price List'!B:H,5,FALSE) -> £670 | G13: PG6
B14: 29990920 | C14: Wilo Pro 300L Heating Vessel | D14: Accessory | E14: Wilo Pro Pressurisation Vessel | F14: =VLOOKUP(B14,'Wilo Price List'!B:H,5,FALSE) -> £950 | G14: PG6
B15: 29991001 | C15: Wilo Pro 400L Heating Vessel | D15: Accessory | E15: Wilo Pro Pressurisation Vessel | F15: =VLOOKUP(B15,'Wilo Price List'!B:H,5,FALSE) -> £1,640 | G15: PG6
B16: 29990921 | C16: Wilo Pro 500L Heating Vessel | D16: Accessory | E16: Wilo Pro Pressurisation Vessel | F16: =VLOOKUP(B16,'Wilo Price List'!B:H,5,FALSE) -> £1,690 | G16: PG6
B17: 29990922 | C17: Wilo Pro 600L Heating Vessel | D17: Accessory | E17: Wilo Pro Pressurisation Vessel | F17: =VLOOKUP(B17,'Wilo Price List'!B:H,5,FALSE) -> £2,100 | G17: PG6
B18: 29990923 | C18: Wilo Pro 700L Heating Vessel | D18: Accessory | E18: Wilo Pro Pressurisation Vessel | F18: =VLOOKUP(B18,'Wilo Price List'!B:H,5,FALSE) -> £3,300 | G18: PG6
B19: 29991002 | C19: Wilo Pro 800L Heating Vessel | D19: Accessory | E19: Wilo Pro Pressurisation Vessel | F19: =VLOOKUP(B19,'Wilo Price List'!B:H,5,FALSE) -> £3,600 | G19: PG6
B20: 29990753 | C20: Wilo Pro 900L Heating Vessel | D20: Accessory | E20: Wilo Pro Pressurisation Vessel | F20: =VLOOKUP(B20,'Wilo Price List'!B:H,5,FALSE) -> £3,650 | G20: PG6
B21: Wilo Ultra Pro Vessel
B22: 29991906 | C22: 12L ULTRA PRO VERTICAL VESSEL | D22: Accessory | E22: Ultra Pro_Expansion Vessel | F22: =VLOOKUP(B22,'Wilo Price List'!B:H,5,FALSE) -> £102 | G22: PG6
B23: 29991907 | C23: 18L ULTRA PRO VERTICAL VESSEL | D23: Accessory | E23: Ultra Pro_Expansion Vessel | F23: =VLOOKUP(B23,'Wilo Price List'!B:H,5,FALSE) -> £115 | G23: PG6
B24: 29991912 | C24: 24L ULTRA PRO VERTICAL VESSEL | D24: Accessory | E24: Ultra Pro_Expansion Vessel | F24: =VLOOKUP(B24,'Wilo Price List'!B:H,5,FALSE) -> £120 | G24: PG6
B25: 29991006 | C25: 60L ULTRA PRO VERTICAL VESSEL | D25: Accessory | E25: Ultra Pro_Expansion Vessel | F25: =VLOOKUP(B25,'Wilo Price List'!B:H,5,FALSE) -> £530 | G25: PG6
B26: 29991007 | C26: 100L ULTRA PRO VERTICAL VESSEL | D26: Accessory | E26: Ultra Pro_Expansion Vessel | F26: =VLOOKUP(B26,'Wilo Price List'!B:H,5,FALSE) -> £490 | G26: PG6
B27: 29991008 | C27: 200L ULTRA PRO VERTICAL VESSEL | D27: Accessory | E27: Ultra Pro_Expansion Vessel | F27: =VLOOKUP(B27,'Wilo Price List'!B:H,5,FALSE) -> £980 | G27: PG6
B28: 29991009 | C28: 300L ULTRA PRO VERTICAL VESSEL | D28: Accessory | E28: Ultra Pro_Expansion Vessel | F28: =VLOOKUP(B28,'Wilo Price List'!B:H,5,FALSE) -> £1,300 | G28: PG6
B29: 29991010 | C29: 500L ULTRA PRO VERTICAL VESSEL | D29: Accessory | E29: Ultra Pro_Expansion Vessel | F29: =VLOOKUP(B29,'Wilo Price List'!B:H,5,FALSE) -> £2,000 | G29: PG6
B30: 29991011 | C30: 750L ULTRA PRO VERTICAL VESSEL | D30: Accessory | E30: Ultra Pro_Expansion Vessel | F30: =VLOOKUP(B30,'Wilo Price List'!B:H,5,FALSE) -> £2,880 | G30: PG6
B31: 29991012 | C31: 1000L ULTRA PRO VERTICAL VESSEL | D31: Accessory | E31: Ultra Pro_Expansion Vessel | F31: =VLOOKUP(B31,'Wilo Price List'!B:H,5,FALSE) -> £4,890 | G31: PG6
B33: 29991013 | C33: 100L ULTRA PRO VERTICAL VESSEL 16BAR | D33: Accessory | E33: Ultra Pro_Expansion Vessel | F33: =VLOOKUP(B33,'Wilo Price List'!B:H,5,FALSE) -> £1,660 | G33: PG6
B34: 29991014 | C34: 200L ULTRA PRO VERTICAL VESSEL 16BAR | D34: Accessory | E34: Ultra Pro_Expansion Vessel | F34: =VLOOKUP(B34,'Wilo Price List'!B:H,5,FALSE) -> £2,000 | G34: PG6
B35: 29991015 | C35: 300L ULTRA PRO VERTICAL VESSEL 16BAR | D35: Accessory | E35: Ultra Pro_Expansion Vessel | F35: =VLOOKUP(B35,'Wilo Price List'!B:H,5,FALSE) -> £2,400 | G35: PG6
B37: 29991913 | C37: 24L ULTRA PRO HORIZONTAL VESSEL | D37: Accessory | E37: Ultra Pro_Expansion Vessel | F37: =VLOOKUP(B37,'Wilo Price List'!B:H,5,FALSE) -> £130 | G37: PG6
B38: 29991914 | C38: 60L ULTRA PRO HORIZONTAL VESSEL | D38: Accessory | E38: Ultra Pro_Expansion Vessel | F38: =VLOOKUP(B38,'Wilo Price List'!B:H,5,FALSE) -> £630 | G38: PG6
B39: 29991915 | C39: 80L ULTRA PRO HORIZONTAL VESSEL | D39: Accessory | E39: Ultra Pro_Expansion Vessel | F39: =VLOOKUP(B39,'Wilo Price List'!B:H,5,FALSE) -> £620 | G39: PG6
B40: 29991916 | C40: 100L ULTRA PRO HORIZONTAL VESSEL | D40: Accessory | E40: Ultra Pro_Expansion Vessel | F40: =VLOOKUP(B40,'Wilo Price List'!B:H,5,FALSE) -> £750 | G40: PG6
B41: 29991917 | C41: 200L ULTRA PRO HORIZTONAL VESSEL | D41: Accessory | E41: Ultra Pro_Expansion Vessel | F41: =VLOOKUP(B41,'Wilo Price List'!B:H,5,FALSE) -> £1,250 | G41: PG6
B42: 29991005 | C42: 300L ULTRA PRO HORIZONTAL VESSEL | D42: Accessory | E42: Ultra Pro_Expansion Vessel | F42: =VLOOKUP(B42,'Wilo Price List'!B:H,5,FALSE) -> £1,700 | G42: PG6

Sheet Wilo Price List
B1: Home
B3: Customer Price List 2024
B4: Validity Status: 01.01.2024
B5: THIS PRICE LIST IS CORRECT AT TIME OF PRINT AND SUBJECT TO CHANGE | I5: Home
B6: Article No. (or variant) | C6: Article description | D6: Type (Pump / Accessory / Spare Part / Addon / Service) | E6: Product range | F6: 2024 List Price £ | G6: Price group | H6: GTIN-code
B7: 4028111 | C7: STAR-Z20/1 | D7: 1 Pump | E7: Star-Z | F7: 386 | G7: PG01 | H7: 4016322364214
B8: 4232172 | C8: STAR-Z20/1(15-130) | D8: 1 Pump | E8: Star-Z | F8: 373 | G8: PG01 | H8: 4048482895918
B9: 4232178 | C9: STAR-Z20/1-3(15-130) | D9: 1 Pump | E9: Star-Z | F9: 387 | G9: PG01 | H9: 4048482895604
B10: 4232196 | C10: STAR-Z20/2-3(15-130) | D10: 1 Pump | E10: Star-Z | F10: 411 | G10: PG01 | H10: 4048482896113
B11: 4081193 | C11: STAR-Z20/4-3(150mm) | D11: 1 Pump | E11: Star-Z | F11: 411 | G11: PG01 | H11: 4016322698043
B12: 4081198 | C12: STAR-Z20/5-3(150mm) | D12: 1 Pump | E12: Star-Z | F12: 439 | G12: PG01 | H12: 4016322698050
B13: 4232265 | C13: STAR-Z20/5-3(158) | D13: 1 Pump | E13: Star-Z | F13: 439 | G13: PG01 | H13: 4048482897233
B14: 4081203 | C14: STAR-Z20/7-3(150mm) | D14: 1 Pump | E14: Star-Z | F14: 483 | G14: PG01 | H14: 4016322698067
B15: 4029062 | C15: STAR-Z25/2-EM | D15: 1 Pump | E15: Star-Z | F15: 633 | G15: PG01 | H15: 4016322364221
B16: 4047573 | C16: STAR-Z25/6 | D16: 1 Pump | E16: Star-Z | F16: 885 | G16: PG01 | H16: 4016322431244
B17: 4035477 | C17: SB5Y 1PH | D17: 2 Pump | E17: SB | F17: 513 | G17: PG02
B18: 4035479 | C18: SB30 230V 1PH | D18: 3 Pump | E18: SB | F18: 520 | G18: PG02
B19: 4035481 | C19: SB30G 230V 1PH | D19: 4 Pump | E19: SB | F19: 591 | G19: PG02
B20: 4132760 | C20: Star-Z NOVA (ROW) | D20: 1 Pump | E20: Star-Z NOVA | F20: 330 | G20: PG01 | H20: 4048482094151
B21: 4132761 | C21: Star-Z NOVA A (ROW) | D21: 1 Pump | E21: Star-Z NOVA | F21: 439 | G21: PG01 | H21: 4048482094168
B22: 4198220 | C22: Star-Z NOVA A-SmartHome | D22: 1 Pump | E22: Star-Z NOVA | F22: 544 | G22: PG01 | H22: 4048482578149
B23: 4132762 | C23: Star-Z NOVA C (ROW) | D23: 1 Pump | E23: Star-Z NOVA | F23: 510 | G23: PG01 | H23: 4048482094175
B24: 4222650 | C24: Star-Z NOVA T (ROW) | D24: 1 Pump | E24: Star-Z NOVA T | F24: 448 | G24: PG01 | H24: 4048482853406
B25: 4111288 | C25: STAR-ZD25/6-3 | D25: 1 Pump | E25: Star-ZD | F25: 659 | G25: PG01 | H25: 4016322985976
B26: 4244390 | C26: Stratos PICO 15/0,5-4 | D26: 1 Pump | E26: Stratos PICO | F26: 403 | G26: PG01 | H26: 4062679126036
B27: 4244391 | C27: Stratos PICO 15/0,5-6 | D27: 1 Pump | E27: Stratos PICO | F27: 410 | G27: PG01 | H27: 4062679126043
B28: 4244392 | C28: Stratos PICO 15/0,5-8 | D28: 1 Pump | E28: Stratos PICO | F28: 430 | G28: PG01
B29: 4244393 | C29: Stratos PICO 25/0,5-4 | D29: 1 Pump | E29: Stratos PICO | F29: 422 | G29: PG01 | H29: 4062679126067
B30: 4244394 | C30: Stratos PICO 25/0,5-4-130 | D30: 1 Pump | E30: Stratos PICO | F30: 280 | G30: PG01 | H30: 4062679126074
B31: 4244395 | C31: Stratos PICO 25/0,5-6-180 | D31: 1 Pump | E31: Stratos PICO | F31: 425 | G31: PG01 | H31: 4062679126159
B32: 4244396 | C32: Stratos PICO 25/0,5-6-130 | D32: 1 Pump | E32: Stratos PICO | F32: 295 | G32: PG01 | H32: 4062679126081
B33: 4244397 | C33: Stratos PICO 25/0,5-8-180 | D33: 1 Pump | E33: Stratos PICO | F33: 455 | G33: PG01
B34: 4244398 | C34: Stratos PICO 25/0,5-8-130 | D34: 1 Pump | E34: Stratos PICO | F34: 325 | G34: PG01 | H34: 4062679126111
B35: 4244399 | C35: Stratos PICO 30/0,5-4-180 | D35: 1 Pump | E35: Stratos PICO | F35: 435 | G35: PG01 | H35: 4062679126166
B36: 4244400 | C36: Stratos PICO 30/0,5-6-180 | D36: 1 Pump | E36: Stratos PICO | F36: 440 | G36: PG01 | H36: 4062679126128
B37: 4244401 | C37: Stratos PICO 30/0,5-8-180 | D37: 1 Pump | E37: Stratos PICO | F37: 480 | G37: PG01
B38: 4244402 | C38: Stratos PICO 25/0,5-6-180-N | D38: 1 Pump | E38: Stratos PICO | F38: 556 | G38: PG01 | H38: 4062679126142
B39: 4244403 | C39: Stratos PICO 25/0,5-4-BT | D39: 1 Pump | E39: Stratos PICO | F39: 627 | G39: PG01
B40: 4244404 | C40: Stratos PICO 25/0,5-6-BT | D40: 1 Pump | E40: Stratos PICO | F40: 647 | G40: PG01
B41: 4239241 | C41: Stratos PICO Smart Connect BT Module | D41: 1 Pump | E41: Stratos PICO | F41: 165 | G41: PG01 | H41: 4062679130750
B42: 4216470 | C42: Stratos-PICO-Z-20/1-4 | D42: 1 Pump | E42: Stratos PICO-Z | F42: 675 | G42: PG01 | H42: 4048482407081
B43: 4216471 | C43: Stratos-PICO-Z-20/1-6 | D43: 1 Pump | E43: Stratos PICO-Z | F43: 729 | G43: PG01 | H43: 4048482407098
B44: 4216472 | C44: Stratos-PICO-Z-25/1-4 | D44: 1 Pump | E44: Stratos PICO-Z | F44: 675 | G44: PG01 | H44: 4048482407210
B45: 4216473 | C45: Stratos-PICO-Z-25/1-6 | D45: 1 Pump | E45: Stratos PICO-Z | F45: 729 | G45: PG01 | H45: 4048482407227
B46: 4215540 | C46: Varios PICO-STG 15/1-7 | D46: 1 Pump | E46: Varios PICO | F46: 732 | G46: PG01 | H46: 4048482765594
B47: 4215542 | C47: Varios PICO-STG 25/1-7 | D47: 1 Pump | E47: Varios PICO | F47: 670 | G47: PG01 | H47: 4048482792156
B48: 4215541 | C48: Varios PICO-STG 25/1-7-130 | D48: 1 Pump | E48: Varios PICO | F48: 675 | G48: PG01 | H48: 4048482792149
B49: 4232747 | C49: Varios PICO-STG 15/1-13-130 | D49: 1 Pump | E49: Varios PICO-STG | F49: 731 | G49: PG01 | H49: 4048482943961
B50: 4232746 | C50: Varios PICO-STG 15/1-13-180 | D50: 1 Pump | E50: Varios PICO-STG | F50: 791 | G50: PG01 | H50: 4048482946139
B51: 4232742 | C51: Varios PICO-STG 15/1-8-130 | D51: 1 Pump | E51: Varios PICO-STG | F51: 667 | G51: PG01 | H51: 4048482946122
B52: 4232744 | C52: Varios PICO-STG 25/1-8-130 | D52: 1 Pump | E52: Varios PICO-STG | F52: 702 | G52: PG01 | H52: 4048482943916
B53: 4232743 | C53: Varios PICO-STG 25/1-8-180 | D53: 1 Pump | E53: Varios PICO-STG | F53: 733 | G53: PG01 | H53: 4048482943688
B54: 4232745 | C54: Varios PICO-STG 30/1-8-180 | D54: 1 Pump | E54: Varios PICO-STG | F54: 849 | G54: PG01 | H54: 4048482943923
B55: 4215511 | C55: YONOS PICO 15/1-4-(ROW) | D55: 1 Pump | E55: Yonos PICO | F55: 155 | G55: PG01 | H55: 4048482758435
B56: 4215512 | C56: YONOS PICO 15/1-6-(ROW) | D56: 1 Pump | E56: Yonos PICO | F56: 157 | G56: PG01 | H56: 4048482758442
B57: 4215513 | C57: YONOS PICO 25/1-4-(ROW) | D57: 1 Pump | E57: Yonos PICO | F57: 371 | G57: PG01
B58: 4215514 | C58: YONOS PICO 25/1-4-130-(ROW) | D58: 1 Pump | E58: Yonos PICO | F58: 517 | G58: PG01
B59: 4215522 | C59: YONOS PICO 25/1-5-130-(ROW) | D59: 1 Pump | E59: Yonos PICO | F59: 180 | G59: PG01 | H59: 4048482758541
B60: 4215515 | C60: YONOS PICO 25/1-6-(ROW) | D60: 1 Pump | E60: Yonos PICO | F60: 272 | G60: PG01 | H60: 4048482758473
B61: 4215516 | C61: YONOS PICO 25/1-6-130-(ROW) | D61: 1 Pump | E61: Yonos PICO | F61: 195 | G61: PG01 | H61: 4048482758480
B62: 4215517 | C62: YONOS PICO 25/1-8-(ROW) | D62: 1 Pump | E62: Yonos PICO | F62: 242 | G62: PG01
B63: 4215518 | C63: YONOS PICO 25/1-8-130-(ROW) | D63: 1 Pump | E63: Yonos PICO | F63: 224 | G63: PG01 | H63: 4048482758503
B64: 4215519 | C64: YONOS PICO 30/1-4-(ROW) | D64: 1 Pump | E64: Yonos PICO | F64: 444 | G64: PG01 | H64: 4048482758510
B65: 4215520 | C65: YONOS PICO 30/1-6-(ROW) | D65: 1 Pump | E65: Yonos PICO | F65: 511 | G65: PG01 | H65: 4048482758527
B66: 4215521 | C66: YONOS PICO 30/1-8-(ROW) | D66: 1 Pump | E66: Yonos PICO | F66: 579 | G66: PG01 | H66: 4048482758534
B67: 4224817 | C67: YONOS PICO 40/1-8 (ROW) | D67: 1 Pump | E67: Yonos PICO | F67: 765 | G67: PG01 | H67: 4048482848396
B68: 4230948 | C68: Yonos PICO-D 30/1-6 | D68: 1 Pump | E68: Yonos PICO | F68: 1,174 | G68: PG01 | H68: 4048482902357
B69: 4230949 | C69: Yonos PICO-D 30/1-8 | D69: 1 Pump | E69: Yonos PICO | F69: 1,376 | G69: PG01 | H69: 4048482902364
B70: 2045520 | C70: TOP-Z20/4 DM PN6/10 | D70: 1 Pump | E70: TOP-Z | F70: 742 | G70: PG02 | H70: 4016322652779
B71: 2045519 | C71: TOP-Z20/4 EM PN6/10 | D71: 1 Pump | E71: TOP-Z | F71: 679 | G71: PG02 | H71: 4016322652762
B72: 2175509 | C72: TOP-Z25/10 DM PN6/10 | D72: 1 Pump | E72: TOP-Z | F72: 1,099 | G72: PG02 | H72: 4048482742632
B73: 2061964 | C73: TOP-Z25/10 EM PN6/10 | D73: 1 Pump | E73: TOP-Z | F73: 1,012 | G73: PG02 | H73: 4016322891987
B74: 2045522 | C74: TOP-Z25/6 DM PN6/10 | D74: 1 Pump | E74: TOP-Z | F74: 805 | G74: PG02 | H74: 4016322652793
B75: 2045521 | C75: TOP-Z25/6 EM PN6/10 | D75: 1 Pump | E75: TOP-Z | F75: 720 | G75: PG02 | H75: 4016322652786
B76: 2175512 | C76: TOP-Z30/10 DM PN6/10 RG | D76: 1 Pump | E76: TOP-Z | F76: 1,147 | G76: PG02 | H76: 4048482742663
B77: 2059857 | C77: TOP-Z30/10 EM PN6/10 RG | D77: 1 Pump | E77: TOP-Z | F77: 1,292 | G77: PG02 | H77: 4016322864295
B78: 2048341 | C78: TOP-Z30/7 DM PN6/10 RG | D78: 1 Pump | E78: TOP-Z | F78: 1,106 | G78: PG02 | H78: 4016322709640
B79: 2048340 | C79: TOP-Z30/7 EM PN6/10 RG | D79: 1 Pump | E79: TOP-Z | F79: 1,182 | G79: PG02 | H79: 4016322709633
B80: 2175515 | C80: TOP-Z40/7 DM PN6/10 GG | D80: 1 Pump | E80: TOP-Z | F80: 2,441 | G80: PG02 | H80: 4048482742694
B81: 2175516 | C81: TOP-Z40/7 DM PN6/10 RG | D81: 1 Pump | E81: TOP-Z | F81: 2,058 | G81: PG02 | H81: 4048482742700
B82: 2046637 | C82: TOP-Z40/7 EM PN6/10 RG | D82: 1 Pump | E82: TOP-Z | F82: 2,183 | G82: PG02 | H82: 4016322685487
B83: 2175521 | C83: TOP-Z50/7 DM PN6/10 GG | D83: 1 Pump | E83: TOP-Z | F83: 3,202 | G83: PG02 | H83: 4048482742755
B84: 2175522 | C84: TOP-Z50/7 DM PN6/10 RG | D84: 1 Pump | E84: TOP-Z | F84: 3,618 | G84: PG02 | H84: 4048482742762
B85: 2175527 | C85: TOP-Z65/10 DM PN6/10 GG | D85: 1 Pump | E85: TOP-Z | F85: 5,485 | G85: PG02 | H85: 4048482742816
B86: 2175528 | C86: TOP-Z65/10 DM PN6/10 RG | D86: 1 Pump | E86: TOP-Z | F86: 4,247 | G86: PG02 | H86: 4048482742823
B87: 2175533 | C87: TOP-Z80/10 DM PN10 GG | D87: 1 Pump | E87: TOP-Z | F87: 6,978 | G87: PG02 | H87: 4048482742878
B88: 2175534 | C88: TOP-Z80/10 DM PN10 RG | D88: 1 Pump | E88: TOP-Z | F88: 5,937 | G88: PG02 | H88: 4048482742885
B89: 2175531 | C89: TOP-Z80/10 DM PN6 GG | D89: 1 Pump | E89: TOP-Z | F89: 6,647 | G89: PG02 | H89: 4048482742854
B90: 2175532 | C90: TOP-Z80/10 DM PN6 RG | D90: 1 Pump | E90: TOP-Z | F90: 5,400 | G90: PG02 | H90: 4048482742861
B91: 2175510 | C91: TOP-Z25/10 DM PN16 | D91: 1 Pump | E91: TOP-Z PN16 | F91: 2,400 | G91: PG02 | H91: 4048482742649
B92: 2086131 | C92: TOP-Z25/10 EM PN16 | D92: 1 Pump | E92: TOP-Z PN16 | F92: 2,614 | G92: PG02 | H92: 4016322932741
B93: 2175513 | C93: TOP-Z30/10 DM PN16 RG | D93: 1 Pump | E93: TOP-Z PN16 | F93: 2,550 | G93: PG02 | H93: 4048482742670
B94: 2115863 | C94: TOP-Z30/10 EM PN16 RG | D94: 1 Pump | E94: TOP-Z PN16 | F94: 2,773 | G94: PG02 | H94: 4048482161020
B95: 2175517 | C95: TOP-Z40/7 DM PN16 GG | D95: 1 Pump | E95: TOP-Z PN16 | F95: 2,586 | G95: PG02 | H95: 4048482742717
B96: 2175518 | C96: TOP-Z40/7 DM PN16 RG | D96: 1 Pump | E96: TOP-Z PN16 | F96: 4,179 | G96: PG02 | H96: 4048482742724
B97: 2071094 | C97: TOP-Z40/7 EM PN16 GG | D97: 1 Pump | E97: TOP-Z PN16 | F97: 2,846 | G97: PG02 | H97: 4016322469254
B98: 2070569 | C98: TOP-Z40/7 EM PN16 RG | D98: 1 Pump | E98: TOP-Z PN16 | F98: 4,502 | G98: PG02 | H98: 4016322380719
B99: 2175523 | C99: TOP-Z50/7 DM PN16 GG | D99: 1 Pump | E99: TOP-Z PN16 | F99: 3,364 | G99: PG02 | H99: 4048482742779
B100: 2175524 | C100: TOP-Z50/7 DM PN16 RG | D100: 1 Pump | E100: TOP-Z PN16 | F100: 5,041 | G100: PG02 | H100: 4048482742786
B101: 2175529 | C101: TOP-Z65/10 DM PN16 GG | D101: 1 Pump | E101: TOP-Z PN16 | F101: 5,188 | G101: PG02 | H101: 4048482742830
B102: 2175530 | C102: TOP-Z65/10 DM PN16 RG | D102: 1 Pump | E102: TOP-Z PN16 | F102: 6,951 | G102: PG02 | H102: 4048482742847
B103: 2175535 | C103: TOP-Z80/10 DM PN16 GG | D103: 1 Pump | E103: TOP-Z PN16 | F103: 6,394 | G103: PG02 | H103: 4048482742892
B104: 2175536 | C104: TOP-Z80/10 DM PN16 RG | D104: 1 Pump | E104: TOP-Z PN16 | F104: 8,243 | G104: PG02 | H104: 4048482742908
B105: 2150700 | C105: Yonos ECO 25/1-5 BMS | D105: 1 Pump | E105: Yonos ECO...-BMS | F105: 940 | G105: PG02 | H105: 4048482453507
B106: 2150701 | C106: Yonos ECO 30/1-5 BMS | D106: 1 Pump | E106: Yonos ECO...-BMS | F106: 968 | G106: PG02 | H106: 4048482453712
B107: 2120661 | C107: Yonos MAXO 100/0,5-12 PN10 | D107: 1 Pump | E107: Yonos MAXO | F107: 3,337 | G107: PG02 | H107: 4048482407982
B108: 2120660 | C108: Yonos MAXO 100/0,5-12 PN6 | D108: 1 Pump | E108: Yonos MAXO | F108: 3,005 | G108: PG02 | H108: 4048482407975
B109: 2120640 | C109: Yonos MAXO 25/0,5-10 PN10 | D109: 1 Pump | E109: Yonos MAXO | F109: 876 | G109: PG02 | H109: 4048482235875
B110: 2120641 | C110: Yonos MAXO 25/0,5-12 PN10 | D110: 1 Pump | E110: Yonos MAXO | F110: 988 | G110: PG02 | H110: 4048482235882
B111: 2120639 | C111: Yonos MAXO 25/0,5-7 PN10 | D111: 1 Pump | E111: Yonos MAXO | F111: 650 | G111: PG02 | H111: 4048482235868
B112: 2120643 | C112: Yonos MAXO 30/0,5-10 PN10 | D112: 1 Pump | E112: Yonos MAXO | F112: 998 | G112: PG02 | H112: 4048482235905
B113: 2120644 | C113: Yonos MAXO 30/0,5-12 PN10 | D113: 1 Pump | E113: Yonos MAXO | F113: 1,294 | G113: PG02 | H113: 4048482235912
B114: 2120642 | C114: Yonos MAXO 30/0,5-7 PN10 | D114: 1 Pump | E114: Yonos MAXO | F114: 720 | G114: PG02 | H114: 4048482235899
B115: 2210113 | C115: Yonos MAXO 32/0,5-10 PN6/10 | D115: 1 Pump | E115: Yonos MAXO | F115: 1,197 | G115: PG02 | H115: 4062679000701
B116: 2210114 | C116: Yonos MAXO 32/0,5-11 PN6/10 | D116: 1 Pump | E116: Yonos MAXO | F116: 1,479 | G116: PG02 | H116: 4062679000718
B117: 2120647 | C117: Yonos MAXO 40/0,5-12 PN6/10 | D117: 1 Pump | E117: Yonos MAXO | F117: 1,537 | G117: PG02 | H117: 4048482235943
B118: 2120648 | C118: Yonos MAXO 40/0,5-16 PN6/10 | D118: 1 Pump | E118: Yonos MAXO | F118: 2,757 | G118: PG02 | H118: 4048482407593
B119: 2120645 | C119: Yonos MAXO 40/0,5-4 PN6/10 | D119: 1 Pump | E119: Yonos MAXO | F119: 1,017 | G119: PG02 | H119: 4048482235929
B120: 2120646 | C120: Yonos MAXO 40/0,5-8 PN6/10 | D120: 1 Pump | E120: Yonos MAXO | F120: 1,205 | G120: PG02 | H120: 4048482235936
B121: 2120651 | C121: Yonos MAXO 50/0,5-12 PN6/10 | D121: 1 Pump | E121: Yonos MAXO | F121: 2,070 | G121: PG02 | H121: 4048482235974
B122: 2120652 | C122: Yonos MAXO 50/0,5-16 PN6/10 | D122: 1 Pump | E122: Yonos MAXO | F122: 2,878 | G122: PG02 | H122: 4048482407609
B123: 2120649 | C123: Yonos MAXO 50/0,5-8 PN6/10 | D123: 1 Pump | E123: Yonos MAXO | F123: 1,852 | G123: PG02 | H123: 4048482235950
B124: 2120650 | C124: Yonos MAXO 50/0,5-9 PN6/10 | D124: 1 Pump | E124: Yonos MAXO | F124: 1,961 | G124: PG02 | H124: 4048482235967
B125: 2120654 | C125: Yonos MAXO 65/0,5-12 PN6/10 | D125: 1 Pump | E125: Yonos MAXO | F125: 2,780 | G125: PG02 | H125: 4048482407913
B126: 2120655 | C126: Yonos MAXO 65/0,5-16 PN6/10 | D126: 1 Pump | E126: Yonos MAXO | F126: 2,991 | G126: PG02 | H126: 4048482407920
B127: 2120653 | C127: Yonos MAXO 65/0,5-9 PN6/10 | D127: 1 Pump | E127: Yonos MAXO | F127: 2,231 | G127: PG02 | H127: 4048482235981
B128: 2120659 | C128: Yonos MAXO 80/0,5-12 PN10 | D128: 1 Pump | E128: Yonos MAXO | F128: 3,631 | G128: PG02 | H128: 4048482407968
B129: 2120658 | C129: Yonos MAXO 80/0,5-12 PN6 | D129: 1 Pump | E129: Yonos MAXO | F129: 3,270 | G129: PG02 | H129: 4048482407951
B130: 2120657 | C130: Yonos MAXO 80/0,5-6 PN10 | D130: 1 Pump | E130: Yonos MAXO | F130: 3,494 | G130: PG02 | H130: 4048482407944
B131: 2120656 | C131: Yonos MAXO 80/0,5-6 PN6 | D131: 1 Pump | E131: Yonos MAXO | F131: 3,154 | G131: PG02 | H131: 4048482407937
B132: 2120663 | C132: Yonos MAXO-D 32/0,5-11 PN6/10 | D132: 1 Pump | E132: Yonos MAXO-D | F132: 2,265 | G132: PG02 | H132: 4048482274881
B133: 2160585 | C133: Yonos MAXO-D 32/0,5-7 PN6/10 | D133: 1 Pump | E133: Yonos MAXO-D | F133: 1,887 | G133: PG02 | H133: 4048482577913
B134: 2120665 | C134: Yonos MAXO-D 40/0,5-12 PN6/10 | D134: 1 Pump | E134: Yonos MAXO-D | F134: 3,199 | G134: PG02 | H134: 4048482274904
B135: 2120666 | C135: Yonos MAXO-D 40/0,5-16 PN6/10 | D135: 1 Pump | E135: Yonos MAXO-D | F135: 5,456 | G135: PG02 | H135: 4048482407999
B136: 2120664 | C136: Yonos MAXO-D 40/0,5-8 PN6/10 | D136: 1 Pump | E136: Yonos MAXO-D | F136: 2,364 | G136: PG02 | H136: 4048482274898
B137: 2120668 | C137: Yonos MAXO-D 50/0,5-12 PN6/10 | D137: 1 Pump | E137: Yonos MAXO-D | F137: 4,322 | G137: PG02 | H137: 4048482274928
B138: 2120669 | C138: Yonos MAXO-D 50/0,5-16 PN6/10 | D138: 1 Pump | E138: Yonos MAXO-D | F138: 5,754 | G138: PG02 | H138: 4048482408002
B139: 2120667 | C139: Yonos MAXO-D 50/0,5-9 PN6/10 | D139: 1 Pump | E139: Yonos MAXO-D | F139: 3,625 | G139: PG02 | H139: 4048482274911
B140: 2120670 | C140: Yonos MAXO-D 65/0,5-12 PN6/10 | D140: 1 Pump | E140: Yonos MAXO-D | F140: 5,529 | G140: PG02 | H140: 4048482496597
B141: 2120671 | C141: Yonos MAXO-D 65/0,5-16 PN6/10 | D141: 1 Pump | E141: Yonos MAXO-D | F141: 5,982 | G141: PG02 | H141: 4048482408019
B142: 2120673 | C142: Yonos MAXO-D 80/0,5-12 PN10 | D142: 1 Pump | E142: Yonos MAXO-D | F142: 6,862 | G142: PG02 | H142: 4048482408033
B143: 2120672 | C143: Yonos MAXO-D 80/0,5-12 PN6 | D143: 1 Pump | E143: Yonos MAXO-D | F143: 6,176 | G143: PG02 | H143: 4048482408026
B144: 2163261 | C144: Yonos MAXO-D 80/0,5-6 PN10 | D144: 1 Pump | E144: Yonos MAXO-D | F144: 6,633 | G144: PG02 | H144: 4048482617305
B145: 2163260 | C145: Yonos MAXO-D 80/0,5-6 PN6 | D145: 1 Pump | E145: Yonos MAXO-D | F145: 5,972 | G145: PG02 | H145: 4048482617299
B146: 2175539 | C146: Yonos MAXO-Z 25/0,5-10 PN10 | D146: 1 Pump | E146: Yonos MAXO-Z | F146: 1,610 | G146: PG02 | H146: 4048482739915
B147: 2175538 | C147: Yonos MAXO-Z 25/0,5-7 PN10 | D147: 1 Pump | E147: Yonos MAXO-Z | F147: 1,209 | G147: PG02 | H147: 4048482739908
B148: 2175541 | C148: Yonos MAXO-Z 30/0,5-12 PN10 | D148: 1 Pump | E148: Yonos MAXO-Z | F148: 1,940 | G148: PG02 | H148: 4048482739854
B149: 2175540 | C149: Yonos MAXO-Z 30/0,5-7 PN10 | D149: 1 Pump | E149: Yonos MAXO-Z | F149: 1,362 | G149: PG02 | H149: 4048482739847
B150: 2175543 | C150: Yonos MAXO-Z 40/0,5-12 PN6/10 | D150: 1 Pump | E150: Yonos MAXO-Z | F150: 2,765 | G150: PG02 | H150: 4048482739830
B151: 2175542 | C151: Yonos MAXO-Z 40/0,5-8 PN6/10 | D151: 1 Pump | E151: Yonos MAXO-Z | F151: 2,600 | G151: PG02 | H151: 4048482739823
B152: 2175544 | C152: Yonos MAXO-Z 50/0,5-9 PN6/10 | D152: 1 Pump | E152: Yonos MAXO-Z | F152: 3,383 | G152: PG02 | H152: 4048482739816
B153: 2175545 | C153: Yonos MAXO-Z 65/0,5-12 PN6/10 | D153: 1 Pump | E153: Yonos MAXO-Z | F153: 6,977 | G153: PG02 | H153: 4048482738512
B154: 2115469 | C154: TOP-Z 20/4 DM RMOT. | D154: 2 Accessory | E154: Rmot Top-Z | F154: 679 | G154: PG02 | H154: 4048482153353
B155: 2115468 | C155: TOP-Z 20/4 EM RMOT. | D155: 2 Accessory | E155: Rmot Top-Z | F155: 744 | G155: PG02 | H155: 4048482153346
B156: 2048351 | C156: TOP-Z/ZV30/7 DM RMOT. | D156: 2 Accessory | E156: Rmot Top-Z | F156: 1,105 | G156: PG02 | H156: 4016322709749
B157: 2176070 | C157: TOP-Z/ZV65/10 DM RMOT. (from 03/2017) | D157: 2 Accessory | E157: Rmot Top-Z | F157: 4,247 | G157: PG02 | H157: 4048482742960
B158: 2087599 | C158: TOP-Z25/10 DM PN6/10 RMOT. | D158: 2 Accessory | E158: Rmot Top-Z | F158: 1,098 | G158: PG02 | H158: 4016322948445
B159: 2175537 | C159: TOP-Z25/10 DM PN6/10 RMOT. (from 03/2017) | D159: 2 Accessory | E159: Rmot Top-Z | F159: 1,098 | G159: PG02 | H159: 4048482742915
B160: 2087600 | C160: TOP-Z25/10 EM PN6/10 RMOT. | D160: 2 Accessory | E160: Rmot Top-Z | F160: 1,012 | G160: PG02 | H160: 4016322948483
B161: 2122051 | C161: TOP-Z25/6 DM RMOT. | D161: 2 Accessory | E161: Rmot Top-Z | F161: 804 | G161: PG02 | H161: 4048482229171
B162: 2064235 | C162: TOP-Z25/6 EM RMOT. | D162: 2 Accessory | E162: Rmot Top-Z | F162: 720 | G162: PG02 | H162: 4016322854524
B163: 2109226 | C163: TOP-Z30/10 DM PN6/10 RMOT. | D163: 2 Accessory | E163: Rmot Top-Z | F163: 1,146 | G163: PG02 | H163: 4048482111414
B164: 2176066 | C164: TOP-Z30/10 DM PN6/10 RMOT. (from 03/2017) | D164: 2 Accessory | E164: Rmot Top-Z | F164: 1,147 | G164: PG02 | H164: 4048482742922
B165: 2090117 | C165: TOP-Z30/10 EM PN6/10 RMOT. | D165: 2 Accessory | E165: Rmot Top-Z | F165: 1,293 | G165: PG02 | H165: 4016322984610
B166: 2176067 | C166: TOP-Z40/7 DM GG/RG RMOT. (from 03/2017) | D166: 2 Accessory | E166: Rmot Top-Z | F166: 2,057 | G166: PG02 | H166: 4048482742939
B167: 2046683 | C167: TOP-Z40/7 EM GG/RG RMOT. | D167: 2 Accessory | E167: Rmot Top-Z | F167: 2,183 | G167: PG02 | H167: 4016322696162
B168: 2046687 | C168: TOP-Z50/7 DM GG/RG RMOT. | D168: 2 Accessory | E168: Rmot Top-Z | F168: 3,620 | G168: PG02 | H168: 4016322685593
B169: 2176069 | C169: TOP-Z50/7 DM GG/RG RMOT. (from 03/2017) | D169: 2 Accessory | E169: Rmot Top-Z | F169: 3,202 | G169: PG02 | H169: 4048482742953
B170: 2176071 | C170: TOP-Z80/10 DM GG/RG RMOT. (from 03/2017) | D170: 2 Accessory | E170: Rmot Top-Z | F170: 5,938 | G170: PG02 | H170: 4048482742977
B171: 2176068 | C171: TOP-ZV50/6 DM RMOT. (from 03/2017) | D171: 2 Accessory | E171: Rmot Top-Z | F171: 2,404 | G171: PG02 | H171: 4048482742946
B172: 2146244 | C172: Yonos MAXO /-D 40/0,5-16 RMOT. | D172: 2 Accessory | E172: Rmot Yonos MAXO/-D | F172: 2,757 | G172: PG02 | H172: 4048482418230
B173: 2146242 | C173: Yonos MAXO /-D 40/0,5-8 RMOT. | D173: 2 Accessory | E173: Rmot Yonos MAXO/-D | F173: 1,205 | G173: PG02 | H173: 4048482416694
B174: 2146248 | C174: Yonos MAXO /-D 50/0,5-16 RMOT. | D174: 2 Accessory | E174: Rmot Yonos MAXO/-D | F174: 2,877 | G174: PG02 | H174: 4048482418247
B175: 2146246 | C175: Yonos MAXO /-D 50/0,5-9 RMOT. | D175: 2 Accessory | E175: Rmot Yonos MAXO/-D | F175: 1,960 | G175: PG02 | H175: 4048482412764
B176: 2146250 | C176: Yonos MAXO /-D 65/0,5-12 RMOT. | D176: 2 Accessory | E176: Rmot Yonos MAXO/-D | F176: 2,780 | G176: PG02 | H176: 4048482418254
B177: 2146251 | C177: Yonos MAXO /-D 65/0,5-16 RMOT. | D177: 2 Accessory | E177: Rmot Yonos MAXO/-D | F177: 2,992 | G177: PG02 | H177: 4048482418261
B178: 2146253 | C178: Yonos MAXO /-D 80/0,5-12 RMOT. | D178: 2 Accessory | E178: Rmot Yonos MAXO/-D | F178: 3,272 | G178: PG02 | H178: 4048482418278
B179: 2146254 | C179: Yonos MAXO 100/0,5-12 RMOT. | D179: 2 Accessory | E179: Rmot Yonos MAXO/-D | F179: 3,005 | G179: PG02 | H179: 4048482418285
B180: 2146236 | C180: Yonos MAXO 25/0,5-10 RMOT. | D180: 2 Accessory | E180: Rmot Yonos MAXO/-D | F180: 877 | G180: PG02 | H180: 4048482416472
B181: 2146237 | C181: Yonos MAXO 25/0,5-12 RMOT. | D181: 2 Accessory | E181: Rmot Yonos MAXO/-D | F181: 987 | G181: PG02 | H181: 4048482416649
B182: 2146235 | C182: Yonos MAXO 25/0,5-7 RMOT. | D182: 2 Accessory | E182: Rmot Yonos MAXO/-D | F182: 649 | G182: PG02 | H182: 4048482416458
B183: 2146238 | C183: Yonos MAXO 30(-D 32)/0,5-7 RMOT. | D183: 2 Accessory | E183: Rmot Yonos MAXO/-D | F183: 720 | G183: PG02 | H183: 4048482416724
B184: 2146239 | C184: Yonos MAXO 30/0,5-10 RMOT. | D184: 2 Accessory | E184: Rmot Yonos MAXO/-D | F184: 999 | G184: PG02 | H184: 4048482416625
B185: 2146240 | C185: Yonos MAXO 30/0,5-12 RMOT. | D185: 2 Accessory | E185: Rmot Yonos MAXO/-D | F185: 1,295 | G185: PG02 | H185: 4048482416670
B186: 2146241 | C186: Yonos MAXO 40/0,5-4 RMOT. | D186: 2 Accessory | E186: Rmot Yonos MAXO/-D | F186: 1,017 | G186: PG02 | H186: 4048482416632
B187: 2146245 | C187: Yonos MAXO 50/0,5-8 RMOT. | D187: 2 Accessory | E187: Rmot Yonos MAXO/-D | F187: 1,852 | G187: PG02 | H187: 4048482416656
B188: 2146249 | C188: Yonos MAXO 65/0,5-9 RMOT. | D188: 2 Accessory | E188: Rmot Yonos MAXO/-D | F188: 2,229 | G188: PG02 | H188: 4048482416663
B189: 2146252 | C189: Yonos MAXO 80/0,5-6 RMOT. | D189: 2 Accessory | E189: Rmot Yonos MAXO/-D | F189: 3,154 | G189: PG02 | H189: 4048482418292
B190: 2146475 | C190: Yonos MAXO/-D 32/0,5-11 RMOT. | D190: 2 Accessory | E190: Rmot Yonos MAXO/-D | F190: 1,480 | G190: PG02 | H190: 4048482416731
B191: 2146243 | C191: Yonos MAXO/-D 40/0,5-12 RMOT. | D191: 2 Accessory | E191: Rmot Yonos MAXO/-D | F191: 1,538 | G191: PG02 | H191: 4048482416700
B192: 2146247 | C192: Yonos MAXO/-D 50/0,5-12 RMOT. | D192: 2 Accessory | E192: Rmot Yonos MAXO/-D | F192: 2,071 | G192: PG02 | H192: 4048482416717
B193: 2191262 | C193: Yonos MAXO-Z 25/0,5-10 RMOT. | D193: 3 Spare Part | E193: Yonos MAXO-Z | F193: 1,609 | G193: PG02 | H193: 4048482772127
B194: 2191261 | C194: Yonos MAXO-Z 25/0,5-7 RMOT. | D194: 3 Spare Part | E194: Yonos MAXO-Z | F194: 1,296 | G194: PG02 | H194: 4048482772110
B195: 2191264 | C195: Yonos MAXO-Z 30/0,5-12 RMOT. | D195: 3 Spare Part | E195: Yonos MAXO-Z | F195: 1,079 | G195: PG02 | H195: 4048482772141
B196: 2191263 | C196: Yonos MAXO-Z 30/0,5-7 RMOT. | D196: 3 Spare Part | E196: Yonos MAXO-Z | F196: 1,329 | G196: PG02 | H196: 4048482772134
B197: 2191266 | C197: Yonos MAXO-Z 40/0,5-12 RMOT. | D197: 3 Spare Part | E197: Yonos MAXO-Z | F197: 1,341 | G197: PG02 | H197: 4048482772165
B198: 2191265 | C198: Yonos MAXO-Z 40/0,5-8 RMOT. | D198: 3 Spare Part | E198: Yonos MAXO-Z | F198: 965 | G198: PG02 | H198: 4048482772158
B199: 2191267 | C199: Yonos MAXO-Z 50/0,5-9 RMOT. | D199: 3 Spare Part | E199: Yonos MAXO-Z | F199: 2,197 | G199: PG02 | H199: 4048482772172
B200: 2191268 | C200: Yonos MAXO-Z 65/0,5-12 RMOT. | D200: 3 Spare Part | E200: Yonos MAXO-Z | F200: 6,628 | G200: PG02 | H200: 4048482772189
B201: 4213181 | C201: BAC40-125-0.75_71/2-DM/R-2-IE3 | D201: 1 Pump | E201: BAC | F201: 882 | G201: PG03 | H201: 4048482707297
... 4298 more rows
